Workbook

Sheet 填表说明
B1: 简要说明
A2: 1 | B2: 本表按基准日审计后的数据填写账面值，企业只需填写账面价值及其以左各列，评估价值由评估公司填写
A3: 2 | B3: 各汇总表不需填写，自动链接生成，表格已锁定
A4: 3 | B4: 《资产评估汇总表》金额单位为万元，其他各表金额单位为元
A5: 4 | B5: 各科目明细表的合计数与科目余额表一致；资产评估汇总表自动链接生成的数据应与资产负债表一致
A6: 5 | B6: 在基础信息中填写企业信息,自动链接到各张明细表中
A7: 6 | B7: 企业没有的科目明细表不要删除，可以隐藏：点击格式-工作表-隐藏
A8: 7 | B8: 行数不够，可以在“本页小计”以上两行插入；不要随意插入列，会影响链接
A9: 8 | B9: 往来的发生日期填写最近一次发生日期，账龄分为：1年以内，1-2年，2-3年，3-4年、4－5年、5年以上
A10: 9 | B10: 表中的日期格式统一，例如：2008年7月20日应填为“2008年7月”
A11: 10 | B11: 联系电话：025-83312698

Sheet 基础信息
A1: 评估基准日：2021年6月30日
A2: 被评估单位：江苏省糖烟酒总公司
A3: 评估人员：李美花、刘婧
A4: 被评估单位填表人：俞蕊
A5: 填表日期：2021年8月27日

Sheet 有关科目的说明 (hidden)
A1: 有关项目说明：
A2: 1．“应收票据”项目，反映资产负债表日以摊余成本计量的、
A3: 企业因销售商品、提供服务等收到的商业汇票，包括银行承兑汇
A4: 票和商业承兑汇票。该项目应根据“应收票据”科目的期末余额，
A5: 减去“坏账准备”科目中相关坏账准备期末余额后的金额填列。
A6: 2．“应收账款”项目，反映资产负债表日以摊余成本计量
A7: 的、企业因销售商品、提供服务等经营活动应收取的款项。该项
A8: 目应根据“应收账款”科目的期末余额，减去“坏账准备”科目中相关坏账准备期末余额后的金额填列。
A9: 3．“其他应收款”项目，应根据“应收利息”“应收股利”
A10: 和“其他应收款”科目的期末余额合计数，减去“坏账准备”科
A11: 目中相关坏账准备期末余额后的金额填列。
A12: 4．“持有待售资产”项目，反映资产负债表日划分为持有待
A13: 售类别的非流动资产及划分为持有待售类别的处置组中的流动
A14: 资产和非流动资产的期末账面价值。该项目应根据“持有待售资
A15: 产”科目的期末余额，减去“持有待售资产减值准备”科目的期
A16: 末余额后的金额填列。
A17: 5．“固定资产”项目，反映资产负债表日企业固定资产的期
A18: 末账面价值和企业尚未清理完毕的固定资产清理净损益。该项目
A19: 应根据“固定资产”科目的期末余额，减去“累计折旧”和“固
A20: 定资产减值准备”科目的期末余额后的金额，以及“固定资产清
A21: 理”科目的期末余额填列。
A22: 6．“在建工程”项目，反映资产负债表日企业尚未达到预定
A23: 可使用状态的在建工程的期末账面价值和企业为在建工程准备
A24: 的各种物资的期末账面价值。该项目应根据“在建工程”科目的
A25: 期末余额，减去“在建工程减值准备”科目的期末余额后的金额，
A26: 以及“工程物资”科目的期末余额，减去“工程物资减值准备”
A27: 科目的期末余额后的金额填列。
A28: 7．“一年内到期的非流动资产”项目，通常反映预计自资产
A29: 负债表日起一年内变现的非流动资产。对于按照相关会计准则采
A30: 用折旧（或摊销、折耗）方法进行后续计量的固定资产、无形资
A31: 产和长期待摊费用等非流动资产，折旧（或摊销、折耗）年限（或
A32: 期限）只剩一年或不足一年的，或预计在一年内（含一年）进行
A33: 折旧（或摊销、折耗）的部分，不得归类为流动资产，仍在各该
A34: 非流动资产项目中填列，不转入“一年内到期的非流动资产”项
A35: 目。
A36: 8．“应付票据”项目，反映资产负债表日以摊余成本计量的、
A37: 企业因购买材料、商品和接受服务等开出、承兑的商业汇票，包
A38: 括银行承兑汇票和商业承兑汇票。该项目应根据“应付票据”科
A39: 目的期末余额填列。
A40: 9．“应付账款”项目，反映资产负债表日以摊余成本计量
A41: 的、企业因购买材料、商品和接受服务等经营活动应支付的款项。
A42: 该项目应根据“应付账款”和“预付账款”科目所属的相关明细
A43: 科目的期末贷方余额合计数填列。
A44: 10．“其他应付款”项目，应根据“应付利息”“应付股利”
A45: 和“其他应付款”科目的期末余额合计数填列。
A46: 11．“持有待售负债”项目，反映资产负债表日处置组中与
A47: 划分为持有待售类别的资产直接相关的负债的期末账面价值。该
A48: 项目应根据“持有待售负债”科目的期末余额填列。
A49: 12．“长期应付款”项目，反映资产负债表日企业除长期借
A50: 款和应付债券以外的其他各种长期应付款项的期末账面价值。该
A51: 项目应根据“长期应付款”科目的期末余额，减去相关的“未确
A52: 认融资费用”科目的期末余额后的金额，以及“专项应付款”科
A53: 目的期末余额填列。
A54: 13．“递延收益”项目中摊销期限只剩一年或不足一年的，
A55: 或预计在一年内（含一年）进行摊销的部分，不得归类为流动负
A56: 债，仍在该项目中填列，不转入“一年内到期的非流动负债”项
A57: 目。
A58: 14．“其他权益工具”项目，反映资产负债表日企业发行在
A59: 外的除普通股以外分类为权益工具的金融工具的期末账面价值。
A60: 对于资产负债表日企业发行的金融工具，分类为金融负债的，应
A61: 在“应付债券”项目填列，对于优先股和永续债，还应在“应付
A62: 债券”项目下的“优先股”项目和“永续债”项目分别填列；分
A63: 类为权益工具的, 应在“其他权益工具”项目填列，对于优先股
A64: 和永续债，还应在“其他权益工具”项目下的“优先股”项目和
A65: “永续债”项目分别填列。
A66: 15．“专项储备”项目，反映高危行业企业按国家规定提取
A67: 的安全生产费的期末账面价值。该项目应根据“专项储备”科目
A68: 的期末余额填列。

Sheet 1-汇总表
A1: 资产评估结果汇总表
A2: =基础信息!A1 -> 评估基准日：2021年6月30日
F3: 表1
A4: =基础信息!A2 -> 被评估单位：江苏省糖烟酒总公司 | F4: 金额单位：人民币万元
A5: 项目 | C5: 账面价值 | D5: 评估价值 | E5: 增减值 | F5: 增值率％
C6: A | D6: B | E6: C=B-A | F6: D=C/A×100%
A7: 1 | B7: 流动资产 | C7: ='2-分类汇总'!C6/10000 -> 1,785.87 | D7: ='2-分类汇总'!D6/10000 -> 1,856.00 | E7: =D7-C7 -> 70.13 | F7: =IF(C7=0,0,E7/C7*100) -> 3.93
A8: 2 | B8: 非流动资产 | C8: =SUM(C9:C23) -> 14,649.04 | D8: =SUM(D9:D23) -> 17,443.74 | E8: 2,794.70 | F8: 19.08
A9: 3 | B9: 其中：可供出售金融资产 | C9: ='2-分类汇总'!C19/10000 -> 50.00 | D9: ='2-分类汇总'!D19/10000 -> 49.70 | E9: -0.30 | F9: -0.60
A10: 4 | B10: 持有至到期投资
A11: 5 | B11: 长期应收款
A12: 6 | B12: 长期股权投资 | C12: ='2-分类汇总'!C22/10000 -> 0.00 | D12: ='2-分类汇总'!D22/10000 -> 0.00 | E12: ='2-分类汇总'!E22/10000 -> 0.00 | F12: ='2-分类汇总'!F22/10000 -> 0.00
A13: 7 | B13: 投资性房地产
A14: 8 | B14: 固定资产 | C14: ='2-分类汇总'!C24/10000 -> 14,599.04 | D14: ='2-分类汇总'!D24/10000 -> 17,394.04 | E14: 2,795.00 | F14: 19.15
A15: 9 | B15: 在建工程
A16: 10 | B16: 生产性生物资产
A17: 11 | B17: 油气资产
A18: 12 | B18: 无形资产 | C18: ='2-分类汇总'!C28/10000 -> 0.00 | D18: ='2-分类汇总'!D28/10000 -> 0.00 | E18: =D18-C18 -> 0.00 | F18: =IF(C18=0,0,E18/C18*100) -> 0.00
A19: 13 | B19: 开发支出
A20: 14 | B20: 商誉
A21: 15 | B21: 长期待摊费用
A22: 16 | B22: 递延所得税资产
A23: 17 | B23: 其他非流动资产
A24: 18 | B24: 资产总计 | C24: =C7+C8 -> 16,434.91 | D24: =D7+D8 -> 19,299.74 | E24: 2,864.83 | F24: 17.43
A25: 19 | B25: 流动负债 | C25: ='2-分类汇总'!C35/10000+0.01 -> 15,782.10 | D25: ='2-分类汇总'!D35/10000 -> 15,852.23 | E25: 70.13 | F25: 0.44
A26: 20 | B26: 非流动负债 | C26: ='6-非流动负债汇总 '!C28/10000 -> 0.00 | D26: ='2-分类汇总'!D48/10000 -> 0.00 | E26: 0.00 | F26: 0.00
A27: 21 | B27: 负债合计 | C27: =SUM(C25:C26) -> 15,782.10 | D27: =SUM(D25:D26) -> 15,852.23 | E27: 70.13 | F27: 0.44
A28: 22 | B28: 净资产 | C28: =C24-C27 -> 652.81 | D28: =D24-D27 -> 3,447.51 | E28: 2,794.70 | F28: 428.10 | G28: =D28*10000 -> 34475100
D29: 评估机构：江苏国衡中测土地房地产资产评估咨询有限公司

Sheet 2-分类汇总
A1: 资产评估结果分类汇总表
A2: =基础信息!A1 -> 评估基准日：2021年6月30日
F3: 表2
A4: =基础信息!A2 -> 被评估单位：江苏省糖烟酒总公司 | F4: 金额单位：人民币元
A5: 序号 | B5: 科目名称 | C5: 账面价值 | D5: 评估价值 | E5: 增减值 | F5: 增值率%
A6: 1 | B6: 一、流动资产合计 | C6: =SUM(C7:C17) -> 17,858,711.87 | D6: =SUM(D7:D17) -> 18,560,040.17 | E6: =D6-C6 -> 701,328.30 | F6: =IF(C6=0,0,E6/C6*100) -> 3.93
A7: 2 | B7: 货币资金 | C7: ='3-流动汇总'!C6 -> 259,695.59 | D7: ='3-流动汇总'!D6 -> 259,695.59 | E7: =D7-C7 -> 0 | F7: =IF(C7=0,0,E7/C7*100) -> 0
A8: 3 | B8: 以公允价值计量且其变动计入 当期损益的金融资产
A9: 4 | B9: 衍生金融资产
A10: 5 | B10: 应收票据
A11: 6 | B11: 应收账款 | C11: ='3-流动汇总'!C10 -> 0.00 | D11: ='3-流动汇总'!D10 -> 0.00 | E11: =D11-C11 -> 0 | F11: =IF(C11=0,0,E11/C11*100) -> 0
A12: 7 | B12: 预付款项 | C12: ='3-流动汇总'!C11 -> 0.00 | D12: ='3-流动汇总'!D11 -> 0.00 | E12: =D12-C12 -> 0 | F12: =IF(C12=0,0,E12/C12*100) -> 0
A13: 8 | B13: 其他应收款 | C13: ='3-流动汇总'!C12 -> 17,599,016.28 | D13: ='3-流动汇总'!D12 -> 17,599,016.28 | E13: =D13-C13 -> 0 | F13: =IF(C13=0,0,E13/C13*100) -> 0
A14: 9 | B14: 存货 | C14: ='3-流动汇总'!C13 -> 0.00 | D14: ='3-流动汇总'!D13 -> 0.00 | E14: =D14-C14 -> 0 | F14: =IF(C14=0,0,E14/C14*100) -> 0
A15: 10 | B15: 持有待售资产
A16: 11 | B16: 一年内到期的非流动资产
A17: 12 | B17: 其他流动资产 | C17: ='3-流动汇总'!C16 -> 0 | D17: ='3-流动汇总'!D16 -> 701,328.30 | E17: =D17-C17 -> 701,328.30 | F17: =IF(C17=0,0,E17/C17*100) -> 0
A18: 13 | B18: 二、非流动资产合计 | C18: =SUM(C19:C33) -> 146,490,355.88 | D18: =SUM(D19:D33) -> 174,437,396.36 | E18: =D18-C18 -> 27,947,040.48 | F18: =IF(C18=0,0,E18/C18*100) -> 19.08
A19: 14 | B19: 可供出售金融资产 | C19: ='4-非流动资产汇总'!C6 -> 500,000.00 | D19: ='4-非流动资产汇总'!D6 -> 496,996.36 | E19: -3,003.64 | F19: -0.60
A20: 15 | B20: 持有至到期投资
A21: 16 | B21: 长期应收款
A22: 17 | B22: 长期股权投资 | C22: ='4-4股权投资'!G27 -> 0.00 | D22: ='4-4股权投资'!I27 -> 0.00 | E22: =D22-C22 -> 0 | F22: =IF(C22=0,0,E22/C22*100) -> 0
A23: 18 | B23: 投资性房地产
A24: 19 | B24: 固定资产 | C24: ='4-非流动资产汇总'!C11 -> 145,990,355.88 | D24: ='4-非流动资产汇总'!D11 -> 173,940,400.00 | E24: =D24-C24 -> 27,950,044.12 | F24: =IF(C24=0,0,E24/C24*100) -> 19.15
A25: 20 | B25: 在建工程
A26: 21 | B26: 生产性生物资产
A27: 22 | B27: 油气资产
A28: 23 | B28: 无形资产 | C28: ='4-非流动资产汇总'!C15 -> 0.00 | D28: ='4-非流动资产汇总'!D15 -> 0.00 | E28: =D28-C28 -> 0 | F28: =IF(C28=0,0,E28/C28*100) -> 0
A29: 24 | B29: 开发支出
A30: 25 | B30: 商誉
A31: 26 | B31: 长期待摊费用
A32: 27 | B32: 递延所得税资产
A33: 28 | B33: 其他非流动资产
A34: 29 | B34: 三、资产总计 | C34: =C6+C18 -> 164,349,067.75 | D34: =D6+D18 -> 192,997,436.53 | E34: =D34-C34 -> 28,648,368.78 | F34: =IF(C34=0,0,E34/C34*100) -> 17.43
A35: 30 | B35: 四、流动负债合计 | C35: =SUM(C36:C47) -> 157,820,949.79 | D35: =SUM(D36:D47) -> 158,522,278.09 | E35: =D35-C35 -> 701,328.30 | F35: =IF(C35=0,0,E35/C35*100) -> 0.44
A36: 31 | B36: 短期借款
A37: 32 | B37: 以公允价值计量且其变动计入 当期损益的金融负债
A38: 33 | B38: 衍生金融负债
A39: 34 | B39: 应付票据
A40: 35 | B40: 应付账款
A41: 36 | B41: 预收款项
A42: 37 | B42: 应付职工薪酬 | C42: ='5-流动负债汇总'!C12 -> 15,000,000.00 | D42: ='5-流动负债汇总'!D12 -> 15,000,000.00 | E42: =D42-C42 -> 0 | F42: =IF(C42=0,0,E42/C42*100) -> 0
A43: 38 | B43: 应交税费 | C43: ='5-流动负债汇总'!C13 -> 48,473,376.44 | D43: ='5-流动负债汇总'!D13 -> 49,174,704.74 | E43: 701,328.30 | F43: 1.45
A44: 39 | B44: 其他应付款 | C44: ='5-流动负债汇总'!C14 -> 94,347,573.35 | D44: ='5-流动负债汇总'!D14 -> 94,347,573.35 | E44: 0 | F44: 0
A45: 40 | B45: 持有待售负债
A46: 41 | B46: 一年内到期的非流动负债
A47: 42 | B47: 其他流动负债
A48: 43 | B48: 五、非流动负债合计 | C48: =SUM(C49:C55) -> 0.00 | D48: =SUM(D49:D55) -> 0.00 | E48: =D48-C48 -> 0 | F48: =IF(C48=0,0,E48/C48*100) -> 0
A49: 44 | B49: 长期借款
A50: 45 | B50: 应付债券
A51: 46 | B51: 长期应付款
A52: 47 | B52: 预计负债
A53: 48 | B53: 递延收益
A54: 49 | B54: 递延所得税负债
A55: 50 | B55: 其他非流动负债
A56: 51 | B56: 六、负债总计 | C56: =C48+C35 -> 157,820,949.79 | D56: =D48+D35 -> 158,522,278.09 | E56: =D56-C56 -> 701,328.30 | F56: =IF(C56=0,0,E56/C56*100) -> 0.44
A57: 52 | B57: 七、净资产 | C57: =C34-C56 -> 6,528,117.96 | D57: =D34-D56 -> 34,475,158.44 | E57: =D57-C57 -> 27,947,040.48 | F57: =IF(C57=0,0,E57/C57*100) -> 428.10
D58: 评估机构：江苏国衡中测土地房地产资产评估咨询有限公司

Sheet 3-流动汇总
A1: 流动资产评估汇总表
A2: =基础信息!A1 -> 评估基准日：2021年6月30日
F3: 表3
A4: =基础信息!A2 -> 被评估单位：江苏省糖烟酒总公司 | F4: 金额单位：人民币元
A5: 编号 | B5: 科目名称 | C5: 账面价值 | D5: 评估价值 | E5: 增减值 | F5: 增值率%
A6: 3-1 | B6: 货币资金 | C6: ='表3-1货币汇总表'!C22 -> 259,695.59 | D6: ='表3-1货币汇总表'!D22 -> 259,695.59 | E6: =D6-C6 -> 0 | F6: =IF(C6=0,0,E6/C6*100) -> 0
A7: 3-2 | B7: 以公允价值计量且其变动计入 当期损益的金融资产
A8: 3-3 | B8: 衍生金融资产
A9: 3-4 | B9: 应收票据
A10: 3-5 | B10: 应收账款 | C10: ='3-5应收账款'!F639 -> 0.00 | D10: ='3-5应收账款'!G639 -> 0.00
A11: 3-6 | B11: 预付款项 | C11: ='3-6预付账款'!F107 -> 0.00 | D11: ='3-6预付账款'!G107 -> 0.00
A12: 3-7 | B12: 其他应收款 | C12: ='3-7其他应收款'!F127 -> 17,599,016.28 | D12: ='3-7其他应收款'!G127 -> 17,599,016.28 | E12: =D12-C12 -> 0 | F12: =IF(C12=0,0,E12/C12*100) -> 0
A13: 3-8 | B13: 存货
A14: 3-9 | B14: 持有待售资产
A15: 3-10 | B15: 一年内到期的非流动资产
A16: 3-11 | B16: 其他流动资产 | C16: ='3-11其他流动资产'!F22 -> 0.00 | D16: ='3-11其他流动资产'!G22 -> 701,328.30
A21: 流动资产合计 | C21: =SUM(C6:C20) -> 17,858,711.87 | D21: =SUM(D6:D20) -> 18,560,040.17 | E21: =D21-C21 -> 701,328.30 | F21: =IF(C21=0,0,E21/C21*100) -> 3.93
D22: =基础信息!A3 -> 评估人员：李美花、刘婧

Sheet 表3-1货币汇总表
A1: 货币资金评估汇总表
A2: =基础信息!A1 -> 评估基准日：2021年6月30日
F3: 表3-1
A4: =基础信息!A2 -> 被评估单位：江苏省糖烟酒总公司 | F4: 金额单位：人民币元
A5: 编号 | B5: 科目名称 | C5: 账面价值 | D5: 评估价值 | E5: 增减值 | F5: 增值率% | G5: 备注
A6: 3-1-1 | B6: 现金 | C6: ='3-1-1现金'!F22 -> 957.20 | D6: ='3-1-1现金'!G22 -> 957.20 | E6: =D6-C6 -> 0 | F6: =IF(C6=0,0,E6/C6*100) -> 0
A7: 3-1-2 | B7: 银行存款 | C7: ='3-1-2银行存款'!G22 -> 258,738.39 | D7: ='3-1-2银行存款'!H22 -> 258,738.39 | E7: =D7-C7 -> 0 | F7: =IF(C7=0,0,E7/C7*100) -> 0
A8: 3-1-3 | B8: 其他货币资金 | C8: ='3-1-3其他货币资金'!G22 -> 0 | D8: ='3-1-3其他货币资金'!H22 -> 0 | E8: =D8-C8 -> 0 | F8: =IF(C8=0,0,E8/C8*100) -> 0
A22: 合 计 | C22: =SUM(C6:C21) -> 259,695.59 | D22: =SUM(D6:D21) -> 259,695.59 | E22: =D22-C22 -> 0 | F22: =IF(C22=0,0,E22/C22*100) -> 0
D23: =基础信息!A3 -> 评估人员：李美花、刘婧

Sheet 3-1-1现金
A1: 货币资金—现金评估明细表
A2: =基础信息!A1 -> 评估基准日：2021年6月30日
I3: 表3-1-1
A4: =基础信息!A2 -> 被评估单位：江苏省糖烟酒总公司 | H4: 金额单位：人民币元
A5: 序号 | B5: 存放部门（单位) | C5: 币种 | D5: 外币账面金额 | E5: 评估基准日汇率 | F5: 账面价值 | G5: 评估价值 | H5: 增减值 | I5: 增值率% | J5: 备注
A6: 1 | B6: 财务部 | C6: 人民币 | D6: - | E6: - | F6: 957.20 | G6: =F6 -> 957.20
A22: 合 计 | F22: =SUM(F6:F21) -> 957.20 | G22: =SUM(G6:G21) -> 957.20
A23: =基础信息!A4 -> 被评估单位填表人：俞蕊 | F23: =基础信息!A3 -> 评估人员：李美花、刘婧
A24: =基础信息!A5 -> 填表日期：2021年8月27日

Sheet 3-1-2银行存款
A1: 货币资金—银行存款评估明细表
A2: =基础信息!A1 -> 评估基准日：2021年6月30日
J3: 表3-1-2
A4: =基础信息!A2 -> 被评估单位：江苏省糖烟酒总公司 | J4: 金额单位：人民币元
A5: 序号 | B5: 开户银行 | C5: 账号 | D5: 币种 | E5: 外币账面金额 | F5: 评估基准日汇率 | G5: 账面价值 | H5: 评估价值 | I5: 增减值 | J5: 增值率% | K5: 备注
A6: 1 | B6: 南京银行股份有限公司黄山路支行 | C6: 01650120420003990 | D6: 人民币 | G6: 20,310.21 | H6: =G6 -> 20,310.21
A7: 2 | B7: 中国农业银行股份有限公司南京汉中西路支行 | C7: 107101040032227 | D7: 人民币 | G7: 2,029.03 | H7: =G7 -> 2,029.03
A8: 3 | B8: 上海浦东发展银行南京分行新街口支行 | C8: 077424291222657 | D8: 人民币 | G8: 14,013.08 | H8: =G8 -> 14,013.08
A9: 4 | B9: 中国工商银行股份有限公司南京嘉陵江东街支行 | C9: 4301030119100002704 | D9: 人民币 | G9: 222,386.07 | H9: =G9 -> 222,386.07
A22: 合 计 | G22: =SUM(G6:G21) -> 258,738.39 | H22: =SUM(H6:H21) -> 258,738.39
A23: =基础信息!A4 -> 被评估单位填表人：俞蕊 | G23: =基础信息!A3 -> 评估人员：李美花、刘婧
A24: =基础信息!A5 -> 填表日期：2021年8月27日

Sheet 3-1-3其他货币资金 (hidden)
A1: 货币资金—其他货币资金评估明细表
A2: =基础信息!A1 -> 评估基准日：2021年6月30日
K3: 表3-1-3
A4: =基础信息!A2 -> 被评估单位：江苏省糖烟酒总公司 | K4: 金额单位：人民币元
A5: 序号 | B5: 名称及内容 | C5: 用途 | D5: 币种 | E5: 外币账面金额 | F5: 评估基准日汇率 | G5: 账面价值 | H5: 评估价值 | I5: 增减值 | J5: 增值率% | K5: 备注
A6: 1
A22: 合 计 | G22: =SUM(G6:G21) -> 0 | H22: =SUM(H6:H21) -> 0
A23: =基础信息!A4 -> 被评估单位填表人：俞蕊 | G23: =基础信息!A3 -> 评估人员：李美花、刘婧
A24: =基础信息!A5 -> 填表日期：2021年8月27日

Sheet 3-2以公允价值计量且其变动计入当期损益的金融资产汇总 (hidden)
A1: 交易性金融资产评估汇总表
A2: =基础信息!A1 -> 评估基准日：2021年6月30日
F3: 表3-2
A4: =基础信息!A2 -> 被评估单位：江苏省糖烟酒总公司 | F4: 金额单位：人民币元
A5: 编号 | B5: 科目名称 | C5: 账面价值 | D5: 评估价值 | E5: 增减值 | F5: 增值率%
A6: 3-2-1 | B6: 金融资产-股票投资 | C6: ='3-2-1金融资产-股票'!G27 -> 0 | D6: ='3-2-1金融资产-股票'!I27 -> 0 | E6: =D6-C6 -> 0 | F6: =IF(C6=0,0,E6/C6*100) -> 0
A7: 3-2-2 | B7: 金融资产-债券投资 | C7: ='3-2-2金融资产-债券'!H27 -> 0 | D7: ='3-2-2金融资产-债券'!I27 -> 0 | E7: =D7-C7 -> 0 | F7: =IF(C7=0,0,E7/C7*100) -> 0
A8: 3-2-3 | B8: 金融资产-基金投资 | C8: ='3-2-3金融资产-基金'!G27 -> 0 | D8: ='3-2-3金融资产-基金'!I27 -> 0 | E8: =D8-C8 -> 0 | F8: =IF(C8=0,0,E8/C8*100) -> 0
A24: 合 计 | C24: =SUM(C6:C23) -> 0 | D24: =SUM(D6:D23) -> 0 | E24: =D24-C24 -> 0 | F24: =IF(C24=0,0,E24/C24*100) -> 0
D25: =基础信息!A3 -> 评估人员：李美花、刘婧

Sheet 3-2-1金融资产-股票 (hidden)
A1: 金融资产—股票投资评估明细表
A2: =基础信息!A1 -> 评估基准日：2021年6月30日
K3: 表3-2-1
A4: =基础信息!A2 -> 被评估单位：江苏省糖烟酒总公司 | K4: 金额单位：人民币元
A5: 序号 | B5: 被投资单位名称 | C5: 股票名称 | D5: 投资日期 | E5: 持股数量 | F5: 成 本 | G5: 账面价值 | H5: 基准日收盘价元/股 | I5: 评估价值 | J5: 增减值 | K5: 增值率% | L5: 备注
A27: 合 计 | G27: =SUM(G6:G26) -> 0 | I27: =SUM(I6:I26) -> 0
A28: =基础信息!A4 -> 被评估单位填表人：俞蕊 | H28: =基础信息!A3 -> 评估人员：李美花、刘婧
A29: =基础信息!A5 -> 填表日期：2021年8月27日

Sheet 3-2-2金融资产-债券 (hidden)
A1: 金融资产—债券投资评估明细表
A2: =基础信息!A1 -> 评估基准日：2021年6月30日
K3: 表3-2-2
A4: =基础信息!A2 -> 被评估单位：江苏省糖烟酒总公司 | K4: 金额单位：人民币元
A5: 序号 | B5: 被投资单位名称 | C5: 债券名称 | D5: 发行日期 | E5: 投资日期 | F5: 票面利率% | G5: 成本 | H5: 账面价值 | I5: 评估价值 | J5: 增减值 | K5: 增值率% | L5: 备注
A27: 合 计 | H27: =SUM(H6:H26) -> 0 | I27: =SUM(I6:I26) -> 0
A28: =基础信息!A4 -> 被评估单位填表人：俞蕊 | H28: =基础信息!A3 -> 评估人员：李美花、刘婧
A29: =基础信息!A5 -> 填表日期：2021年8月27日

Sheet 3-2-3金融资产-基金 (hidden)
A1: 金融资产—基金投资评估明细表
A2: =基础信息!A1 -> 评估基准日：2021年6月30日
K3: 表3-2-3
A4: =基础信息!A2 -> 被评估单位：江苏省糖烟酒总公司 | K4: 金额单位：人民币元
A5: 序号 | B5: 基金发行单位 | C5: 基金名称 | D5: 基金类型 | E5: 投资日期 | F5: 成本 | G5: 账面价值 | H5: 基准日净值/份 | I5: 评估价值 | J5: 增减值 | K5: 增值率% | L5: 备注
A27: 合 计 | G27: =SUM(G6:G26) -> 0 | I27: =SUM(I6:I26) -> 0
A28: =基础信息!A4 -> 被评估单位填表人：俞蕊 | H28: =基础信息!A3 -> 评估人员：李美花、刘婧
A29: =基础信息!A5 -> 填表日期：2021年8月27日

Sheet 3-3衍生金融资产 (hidden)

Sheet 3-4应收票据 (hidden)
A1: 应收票据评估明细表
A2: =基础信息!A1 -> 评估基准日：2021年6月30日
J3: 表3-4
A4: =基础信息!A2 -> 被评估单位：江苏省糖烟酒总公司 | J4: 金额单位：人民币元
A5: 序号 | B5: 户名（结算对象) | C5: 出票日期 | D5: 到期日期 | E5: 票面利率% | F5: 账面价值 | G5: 评估价值 | H5: 增减值 | I5: 增值率% | J5: 备注
A26: 合 计 | F26: =SUM(F6:F25) -> 0 | G26: =SUM(G6:G25) -> 0
A27: 减：应收票据坏账准备
A28: 合 计 | F28: =F26-F27 -> 0 | G28: =G26-G27 -> 0
A29: =基础信息!A4 -> 被评估单位填表人：俞蕊 | G29: =基础信息!A3 -> 评估人员：李美花、刘婧
A30: =基础信息!A5 -> 填表日期：2021年8月27日

Sheet 3-5应收账款
A1: 应收账款评估明细表
A2: =基础信息!A1 -> 评估基准日：2021年6月30日
J3: 表3-5
A4: =基础信息!A2 -> 被评估单位：江苏省糖烟酒总公司 | J4: 金额单位：人民币元
A5: 序号 | B5: 欠款单位名称（结算对象) | C5: 业务内容 | D5: 发生日期 | E5: 账龄 | F5: 账面价值 | G5: 评估价值 | H5: 增减值 | I5: 增值率% | J5: 备注
A6: 1 | B6: 邳州特许店（五粮神） | C6: 货款 | D6: 2016年以前 | E6: 5年以上 | F6: 94,047.00 | G6: =F6 -> 94,047.00
A7: 2 | B7: 淮安乐民 | C7: 货款 | D7: 2016年以前 | E7: 5年以上 | F7: 79,692.00 | G7: =F7 -> 79,692.00
A8: 3 | B8: 东海泰和酒行 | C8: 货款 | D8: 2016年以前 | E8: 5年以上 | F8: 70,165.34 | G8: 70,165.34
A9: 4 | B9: 盐城滨海电信 | C9: 货款 | D9: 2016年以前 | E9: 5年以上 | F9: 66,912.00 | G9: 66,912.00
A10: 5 | B10: 客户丁金亮 | C10: 货款 | D10: 2016年以前 | E10: 5年以上 | F10: 48,141.20 | G10: 48,141.20
A11: 6 | B11: 滨海特许店 | C11: 货款 | D11: 2016年以前 | E11: 5年以上 | F11: 39,435.44 | G11: 39,435.44
A12: 7 | B12: 客户陈章亮 | C12: 货款 | D12: 2016年以前 | E12: 5年以上 | F12: 39,400.00 | G12: 39,400.00
A13: 8 | B13: 客户汪海 | C13: 货款 | D13: 2016年以前 | E13: 5年以上 | F13: 25,151.80 | G13: 25,151.80
A14: 9 | B14: 常州灿杰商贸 | C14: 货款 | D14: 2016年以前 | E14: 5年以上 | F14: 15,306.90 | G14: 15,306.90
A15: 10 | B15: 太仓特许店（杨小袆） | C15: 货款 | D15: 2016年以前 | E15: 5年以上 | F15: 12,487.00 | G15: 12,487.00
A16: 11 | B16: 滨江所 | C16: 货款 | D16: 2016年以前 | E16: 5年以上 | F16: 10,056.00 | G16: 10,056.00
A17: 12 | B17: 滨海百家宴 | C17: 货款 | D17: 2016年以前 | E17: 5年以上 | F17: 7,200.00 | G17: 7,200.00
A18: 13 | B18: 南京双威生物医学科技有限公司 | C18: 货款 | D18: 2016年以前 | E18: 5年以上 | F18: 5,664.00 | G18: 5,664.00
A19: 14 | B19: 江苏瑞洁塑料 | C19: 货款 | D19: 2016年以前 | E19: 5年以上 | F19: 5,178.00 | G19: 5,178.00
A20: 15 | B20: 展响实业有限公司 | C20: 货款 | D20: 2016年以前 | E20: 5年以上 | F20: 5,035.00 | G20: 5,035.00
A21: 16 | B21: 采蝶轩 | C21: 货款 | D21: 2016年以前 | E21: 5年以上 | F21: 4,224.00 | G21: 4,224.00
A22: 17 | B22: 头条杂志 | C22: 货款 | D22: 2016年以前 | E22: 5年以上 | F22: 4,154.00 | G22: 4,154.00
A23: 18 | B23: 徐州市乐鑫商贸有限公司 | C23: 货款 | D23: 2016年以前 | E23: 5年以上 | F23: 2,732.00 | G23: 2,732.00
A24: 19 | B24: 南京中福公司 | C24: 货款 | D24: 2016年以前 | E24: 5年以上 | F24: 1,300.00 | G24: 1,300.00
A25: 20 | B25: 大厂特许店 | C25: 货款 | D25: 2016年以前 | E25: 5年以上 | F25: 450.00 | G25: 450.00
A26: 21 | B26: 泰州特许店（钱晓燕） | C26: 货款 | D26: 2016年以前 | E26: 5年以上 | F26: 15.99 | G26: 15.99
A27: 22 | B27: 9373厂 | C27: 货款 | D27: 2016年以前 | E27: 5年以上 | F27: 4.00 | G27: 4.00
A28: 23 | B28: 紫金山庄 | C28: 货款 | D28: 2016年以前 | E28: 5年以上 | F28: 0.50 | G28: 0.50
A29: 24 | B29: 安徽省合肥同一糖业公司 | C29: 货款 | D29: 2011年以前 | E29: 10年以上 | F29: 592,000.00 | G29: 592,000.00
A30: 25 | B30: 南京市万杰贸易商行 | C30: 货款 | D30: 2011年以前 | E30: 10年以上 | F30: 527,600.00 | G30: 527,600.00
A31: 26 | B31: 江苏省睢宁县糖烟酒公司 | C31: 货款 | D31: 2011年以前 | E31: 10年以上 | F31: 383,924.40 | G31: 383,924.40
A32: 27 | B32: 赣榆市糖烟酒公司 | C32: 货款 | D32: 2011年以前 | E32: 10年以上 | F32: 343,383.71 | G32: 343,383.71
A33: 28 | B33: 江苏省常州食品总厂 | C33: 货款 | D33: 2011年以前 | E33: 10年以上 | F33: 250,733.48 | G33: 250,733.48
A34: 29 | B34: 南京市辛利丰酒业公司 | C34: 货款 | D34: 2011年以前 | E34: 10年以上 | F34: 244,912.00 | G34: 244,912.00
A35: 30 | B35: 江苏省苏州市吴县康乐食品厂 | C35: 货款 | D35: 2011年以前 | E35: 10年以上 | F35: 219,544.80 | G35: 219,544.80
A36: 31 | B36: 江苏省无锡糖果厂 | C36: 货款 | D36: 2011年以前 | E36: 10年以上 | F36: 171,205.32 | G36: 171,205.32
A37: 32 | B37: 南京市江桥贸易公司 | C37: 货款 | D37: 2011年以前 | E37: 10年以上 | F37: 168,128.00 | G37: 168,128.00
A38: 33 | B38: 吴滕（卖房款） | C38: 货款 | D38: 2011年以前 | E38: 10年以上 | F38: 149,879.99 | G38: 149,879.99
A39: 34 | B39: 江苏省江都肆丰酒行 | C39: 货款 | D39: 2011年以前 | E39: 10年以上 | F39: 148,220.28 | G39: 148,220.28
A40: 35 | B40: 南京市三友益源公司 | C40: 货款 | D40: 2011年以前 | E40: 10年以上 | F40: 147,649.75 | G40: 147,649.75
A41: 36 | B41: 南京市悦来商店 | C41: 货款 | D41: 2011年以前 | E41: 10年以上 | F41: 147,644.02 | G41: 147,644.02
A42: 37 | B42: 南京市干果食杂公司 | C42: 货款 | D42: 2011年以前 | E42: 10年以上 | F42: 147,525.36 | G42: 147,525.36
A43: 38 | B43: 南京市美登高公司 | C43: 货款 | D43: 2011年以前 | E43: 10年以上 | F43: 130,540.00 | G43: 130,540.00
A44: 39 | B44: 江苏省仪征市副食品公司 | C44: 货款 | D44: 2011年以前 | E44: 10年以上 | F44: 126,840.15 | G44: 126,840.15
A45: 40 | B45: 南京市大旺食品有限公司 | C45: 货款 | D45: 2011年以前 | E45: 10年以上 | F45: 125,850.00 | G45: 125,850.00
A46: 41 | B46: 江苏省无锡中兴食品批发公司 | C46: 货款 | D46: 2011年以前 | E46: 10年以上 | F46: 113,600.00 | G46: 113,600.00
A47: 42 | B47: 南京市龙洲工贸有限公司 | C47: 货款 | D47: 2011年以前 | E47: 10年以上 | F47: 111,503.19 | G47: 111,503.19
A48: 43 | B48: 江苏省苏果超市 | C48: 货款 | D48: 2011年以前 | E48: 10年以上 | F48: 109,434.39 | G48: 109,434.39
A49: 44 | B49: 南京市金巢装饰材料经营部 | C49: 货款 | D49: 2011年以前 | E49: 10年以上 | F49: 107,100.00 | G49: 107,100.00
A50: 45 | B50: 江苏省灌南商建万宝公司 | C50: 货款 | D50: 2011年以前 | E50: 10年以上 | F50: 104,139.01 | G50: 104,139.01
A51: 46 | B51: 江苏联华长江超市有限公司 | C51: 货款 | D51: 2011年以前 | E51: 10年以上 | F51: 102,118.00 | G51: 102,118.00
A52: 47 | B52: 南京市恩霍商贸有限公司 | C52: 货款 | D52: 2011年以前 | E52: 10年以上 | F52: 96,550.73 | G52: 96,550.73
A53: 48 | B53: 南京市学海批发部 | C53: 货款 | D53: 2011年以前 | E53: 10年以上 | F53: 96,284.21 | G53: 96,284.21
A54: 49 | B54: 南京市建邺区军干所食品经营部 | C54: 货款 | D54: 2011年以前 | E54: 10年以上 | F54: 94,326.08 | G54: 94,326.08
A55: 50 | B55: 江苏省泰兴兴泰物资公司 | C55: 货款 | D55: 2011年以前 | E55: 10年以上 | F55: 93,420.00 | G55: 93,420.00
A56: 51 | B56: 江苏省涟水县糖烟酒公司 | C56: 货款 | D56: 2011年以前 | E56: 10年以上 | F56: 93,357.42 | G56: 93,357.42
A57: 52 | B57: 江苏省无锡华新 | C57: 货款 | D57: 2011年以前 | E57: 10年以上 | F57: 92,000.10 | G57: 92,000.10
A58: 53 | B58: 南京市垦商业公司 | C58: 货款 | D58: 2011年以前 | E58: 10年以上 | F58: 91,577.70 | G58: 91,577.70
A59: 54 | B59: 南京秦淮区协力食品厂 | C59: 货款 | D59: 2011年以前 | E59: 10年以上 | F59: 89,100.00 | G59: 89,100.00
A60: 55 | B60: 南京市曙光厂 | C60: 货款 | D60: 2011年以前 | E60: 10年以上 | F60: 88,905.60 | G60: 88,905.60
A61: 56 | B61: 南京市文义副食品经营部 | C61: 货款 | D61: 2011年以前 | E61: 10年以上 | F61: 85,586.50 | G61: 85,586.50
A62: 57 | B62: 南京市轻工食品公司 | C62: 货款 | D62: 2011年以前 | E62: 10年以上 | F62: 84,011.89 | G62: 84,011.89
A63: 58 | B63: 南京市肆丰食品贸易商行 | C63: 货款 | D63: 2011年以前 | E63: 10年以上 | F63: 83,342.38 | G63: 83,342.38
A64: 59 | B64: 南京市军干所食品经营部 | C64: 货款 | D64: 2011年以前 | E64: 10年以上 | F64: 79,909.92 | G64: 79,909.92
A65: 60 | B65: 江苏省滨海县糖烟酒公司 | C65: 货款 | D65: 2011年以前 | E65: 10年以上 | F65: 75,000.00 | G65: 75,000.00
A66: 61 | B66: 南京市旺旺食品有限公司 | C66: 货款 | D66: 2011年以前 | E66: 10年以上 | F66: 74,820.00 | G66: 74,820.00
A67: 62 | B67: 南京市小丁山饭店 | C67: 货款 | D67: 2011年以前 | E67: 10年以上 | F67: 67,470.00 | G67: 67,470.00
A68: 63 | B68: 南京市侨联食品采供站 | C68: 货款 | D68: 2011年以前 | E68: 10年以上 | F68: 66,809.15 | G68: 66,809.15
A69: 64 | B69: 江苏省徐州糖冷厂 | C69: 货款 | D69: 2011年以前 | E69: 10年以上 | F69: 66,720.00 | G69: 66,720.00
A70: 65 | B70: 南京市建宁日化洗涤厂 | C70: 货款 | D70: 2011年以前 | E70: 10年以上 | F70: 63,150.00 | G70: 63,150.00
A71: 66 | B71: 江苏省江都凡川供销社 | C71: 货款 | D71: 2011年以前 | E71: 10年以上 | F71: 62,364.00 | G71: =F71 -> 62,364.00
A72: 67 | B72: 安徽省芜湖福禄酒业有限公司 | C72: 货款 | D72: 2011年以前 | E72: 10年以上 | F72: 60,480.00 | G72: 60,480.00
A73: 68 | B73: 南京市虹园清真食品厂 | C73: 货款 | D73: 2011年以前 | E73: 10年以上 | F73: 60,000.00 | G73: 60,000.00
A74: 69 | B74: 江苏省锡山市糖烟酒公司 | C74: 货款 | D74: 2011年以前 | E74: 10年以上 | F74: 60,000.00 | G74: 60,000.00
A75: 70 | B75: 个人潘汉宜 | C75: 货款 | D75: 2011年以前 | E75: 10年以上 | F75: 58,911.94 | G75: 58,911.94
A76: 71 | B76: 南京市要要发批发部 | C76: 货款 | D76: 2011年以前 | E76: 10年以上 | F76: 58,398.20 | G76: 58,398.20
A77: 72 | B77: 江苏省沭阳县银河贸易大厦 | C77: 货款 | D77: 2011年以前 | E77: 10年以上 | F77: 57,840.00 | G77: 57,840.00
A78: 73 | B78: 南京市鼓楼奥德糖酒贸易中心 | C78: 货款 | D78: 2011年以前 | E78: 10年以上 | F78: 54,933.70 | G78: 54,933.70
A79: 74 | B79: 南京市蔬菜公司干货总公司 | C79: 货款 | D79: 2011年以前 | E79: 10年以上 | F79: 54,655.66 | G79: 54,655.66
A80: 75 | B80: 江苏省六合县副食品公司 | C80: 货款 | D80: 2011年以前 | E80: 10年以上 | F80: 52,269.00 | G80: 52,269.00
A81: 76 | B81: 江苏省灌云县糖烟酒公司 | C81: 货款 | D81: 2011年以前 | E81: 10年以上 | F81: 52,260.00 | G81: 52,260.00
A82: 77 | B82: 南京市桃园糖烟酒批发部 | C82: 货款 | D82: 2011年以前 | E82: 10年以上 | F82: 50,080.00 | G82: 50,080.00
A83: 78 | B83: 南京市飞达娱乐有限公司 | C83: 货款 | D83: 2011年以前 | E83: 10年以上 | F83: 48,740.00 | G83: 48,740.00
A84: 79 | B84: 无锡诚隆超市有限公司 | C84: 货款 | D84: 2011年以前 | E84: 10年以上 | F84: 48,460.00 | G84: 48,460.00
A85: 80 | B85: 江苏省苏州市成龙食品批发部 | C85: 货款 | D85: 2011年以前 | E85: 10年以上 | F85: 48,396.00 | G85: 48,396.00
A86: 81 | B86: 江苏省邗江县食品厂 | C86: 货款 | D86: 2011年以前 | E86: 10年以上 | F86: 48,000.00 | G86: 48,000.00
A87: 82 | B87: 南京市绿叶环保公司 | C87: 货款 | D87: 2011年以前 | E87: 10年以上 | F87: 47,960.00 | G87: 47,960.00
A88: 83 | B88: 南京市长白山经营部 | C88: 货款 | D88: 2011年以前 | E88: 10年以上 | F88: 47,803.20 | G88: 47,803.20
A89: 84 | B89: 南京市亚港酒店 | C89: 货款 | D89: 2011年以前 | E89: 10年以上 | F89: 47,744.00 | G89: 47,744.00
A90: 85 | B90: 南京市红塔公司 | C90: 货款 | D90: 2011年以前 | E90: 10年以上 | F90: 46,701.08 | G90: 46,701.08
A91: 86 | B91: 南京市农垦 | C91: 货款 | D91: 2011年以前 | E91: 10年以上 | F91: 46,500.00 | G91: 46,500.00
A92: 87 | B92: 南京大磨坊食品有限公司 | C92: 货款 | D92: 2011年以前 | E92: 10年以上 | F92: 45,450.00 | G92: 45,450.00
A93: 88 | B93: 江苏省苏州市糖烟酒公司 | C93: 货款 | D93: 2011年以前 | E93: 10年以上 | F93: 45,150.00 | G93: 45,150.00
A94: 89 | B94: 南京市玄武饭店商场部 | C94: 货款 | D94: 2011年以前 | E94: 10年以上 | F94: 44,445.41 | G94: 44,445.41
A95: 90 | B95: 江苏省镇江儿童食品厂 | C95: 货款 | D95: 2011年以前 | E95: 10年以上 | F95: 43,310.40 | G95: 43,310.40
A96: 91 | B96: 南京市糖烟酒公司城南分公司 | C96: 货款 | D96: 2011年以前 | E96: 10年以上 | F96: 43,166.66 | G96: 43,166.66
A97: 92 | B97: 南京市苏信销售中心 | C97: 货款 | D97: 2011年以前 | E97: 10年以上 | F97: 41,856.00 | G97: 41,856.00
A98: 93 | B98: 南京市金海南美食娱乐有限公司 | C98: 货款 | D98: 2011年以前 | E98: 10年以上 | F98: 41,737.20 | G98: 41,737.20
A99: 94 | B99: 黑龙江省哈尔滨市糖烟酒公司 | C99: 货款 | D99: 2011年以前 | E99: 10年以上 | F99: 41,185.20 | G99: 41,185.20
A100: 95 | B100: 南京迈皋桥浩久糖酒副食批发部 | C100: 货款 | D100: 2011年以前 | E100: 10年以上 | F100: 41,040.00 | G100: 41,040.00
A101: 96 | B101: 南京商厦股份有限公司 | C101: 货款 | D101: 2011年以前 | E101: 10年以上 | F101: 40,977.51 | G101: 40,977.51
A102: 97 | B102: 南京市金龙群商贸有限公司 | C102: 货款 | D102: 2011年以前 | E102: 10年以上 | F102: 40,320.00 | G102: 40,320.00
A103: 98 | B103: 江苏省江浦果品食杂司后宰门经营 | C103: 货款 | D103: 2011年以前 | E103: 10年以上 | F103: 38,906.00 | G103: 38,906.00
A104: 99 | B104: 南京市正大贸易公司 | C104: 货款 | D104: 2011年以前 | E104: 10年以上 | F104: 37,310.90 | G104: 37,310.90
A105: 100 | B105: 南京市岗联(佩宁)糖烟酒批发 | C105: 货款 | D105: 2011年以前 | E105: 10年以上 | F105: 36,599.85 | G105: 36,599.85
A106: 101 | B106: 南京市步步高娱乐有限公司 | C106: 货款 | D106: 2011年以前 | E106: 10年以上 | F106: 36,277.00 | G106: 36,277.00
A107: 102 | B107: 安徽省合肥贝克经营部 | C107: 货款 | D107: 2011年以前 | E107: 10年以上 | F107: 34,963.18 | G107: 34,963.18
A108: 103 | B108: 南京市南湖门市部 | C108: 货款 | D108: 2011年以前 | E108: 10年以上 | F108: 34,695.40 | G108: 34,695.40
A109: 104 | B109: 南京市沐卉花艺商城 | C109: 货款 | D109: 2011年以前 | E109: 10年以上 | F109: 34,250.00 | G109: 34,250.00
A110: 105 | B110: 上海联华超市有限公司 | C110: 货款 | D110: 2011年以前 | E110: 10年以上 | F110: 33,800.00 | G110: 33,800.00
A111: 106 | B111: 江苏省江宁县道路建设材料厂 | C111: 货款 | D111: 2011年以前 | E111: 10年以上 | F111: 33,250.00 | G111: 33,250.00
A112: 107 | B112: 江苏省无锡市糖烟酒公司 | C112: 货款 | D112: 2011年以前 | E112: 10年以上 | F112: 31,875.00 | G112: 31,875.00
A113: 108 | B113: 南京市陈熔技贸 | C113: 货款 | D113: 2011年以前 | E113: 10年以上 | F113: 31,434.00 | G113: 31,434.00
A114: 109 | B114: 南京市联华超市 | C114: 货款 | D114: 2011年以前 | E114: 10年以上 | F114: 30,861.35 | G114: 30,861.35
A115: 110 | B115: 南京市建宁商场 | C115: 货款 | D115: 2011年以前 | E115: 10年以上 | F115: 30,832.40 | G115: 30,832.40
A116: 111 | B116: 南京市航联实业开发公司 | C116: 货款 | D116: 2011年以前 | E116: 10年以上 | F116: 30,600.00 | G116: 30,600.00
A117: 112 | B117: 安徽省合肥市糖业烟酒公司 | C117: 货款 | D117: 2011年以前 | E117: 10年以上 | F117: 30,500.00 | G117: 30,500.00
A118: 113 | B118: 南京市三鸿食品有限公司 | C118: 货款 | D118: 2011年以前 | E118: 10年以上 | F118: 30,300.00 | G118: 30,300.00
A119: 114 | B119: 上海梅山企业发展有限公司 | C119: 货款 | D119: 2011年以前 | E119: 10年以上 | F119: 30,300.00 | G119: 30,300.00
A120: 115 | B120: 江苏省徐淮商场 | C120: 货款 | D120: 2011年以前 | E120: 10年以上 | F120: 30,200.00 | G120: 30,200.00
A121: 116 | B121: 南京市进口食品公司 | C121: 货款 | D121: 2011年以前 | E121: 10年以上 | F121: 29,900.00 | G121: 29,900.00
A122: 117 | B122: 南京市富利进出口食品公司 | C122: 货款 | D122: 2011年以前 | E122: 10年以上 | F122: 28,990.02 | G122: 28,990.02
A123: 118 | B123: 江苏省金湖工业品公司 | C123: 货款 | D123: 2011年以前 | E123: 10年以上 | F123: 27,950.00 | G123: 27,950.00
A124: 119 | B124: 江苏省灌南县糖烟酒公司 | C124: 货款 | D124: 2011年以前 | E124: 10年以上 | F124: 27,554.00 | G124: 27,554.00
A125: 120 | B125: 江苏省宿迁一副 | C125: 货款 | D125: 2011年以前 | E125: 10年以上 | F125: 27,444.49 | G125: 27,444.49
A126: 121 | B126: 南京市乐福来商场 | C126: 货款 | D126: 2011年以前 | E126: 10年以上 | F126: 27,392.64 | G126: 27,392.64
A127: 122 | B127: 南京市航空学校 | C127: 货款 | D127: 2011年以前 | E127: 10年以上 | F127: 27,160.00 | G127: 27,160.00
A128: 123 | B128: 南京市玄武糖酒第二经营部 | C128: 货款 | D128: 2011年以前 | E128: 10年以上 | F128: 26,620.18 | G128: 26,620.18
A129: 124 | B129: 南京市八鲜超市 | C129: 货款 | D129: 2011年以前 | E129: 10年以上 | F129: 26,402.00 | G129: 26,402.00
A130: 125 | B130: 江苏省徐州商办工业公司 | C130: 货款 | D130: 2011年以前 | E130: 10年以上 | F130: 26,337.90 | G130: 26,337.90
A131: 126 | B131: 南京市地中海酒店 | C131: 货款 | D131: 2011年以前 | E131: 10年以上 | F131: 26,008.00 | G131: 26,008.00
A132: 127 | B132: 南京市秦淮五星食品经营部 | C132: 货款 | D132: 2011年以前 | E132: 10年以上 | F132: 25,910.00 | G132: 25,910.00
A133: 128 | B133: 南京市下关中嘉饮品 | C133: 货款 | D133: 2011年以前 | E133: 10年以上 | F133: 25,842.00 | G133: 25,842.00
A134: 129 | B134: 南京市帝都生活 | C134: 货款 | D134: 2011年以前 | E134: 10年以上 | F134: 25,200.00 | G134: 25,200.00
A135: 130 | B135: 南京饭店潮洲城 | C135: 货款 | D135: 2011年以前 | E135: 10年以上 | F135: 24,565.20 | G135: =F135 -> 24,565.20
A136: 131 | B136: 南京市新民酒业 | C136: 货款 | D136: 2011年以前 | E136: 10年以上 | F136: 24,480.00 | G136: 24,480.00
A137: 132 | B137: 江苏省江宁县新星南北货 | C137: 货款 | D137: 2011年以前 | E137: 10年以上 | F137: 24,300.00 | G137: 24,300.00
A138: 133 | B138: 江苏省徐州食品厂 | C138: 货款 | D138: 2011年以前 | E138: 10年以上 | F138: 23,971.20 | G138: 23,971.20
A139: 134 | B139: 南京市建邺区糖烟酒公司采购供应 | C139: 货款 | D139: 2011年以前 | E139: 10年以上 | F139: 23,643.00 | G139: 23,643.00
A140: 135 | B140: 南京市玄武区糖烟酒公司大庆批发 | C140: 货款 | D140: 2011年以前 | E140: 10年以上 | F140: 23,428.30 | G140: 23,428.30
A141: 136 | B141: 南京市雪海配送中心 | C141: 货款 | D141: 2011年以前 | E141: 10年以上 | F141: 23,000.00 | G141: 23,000.00
A142: 137 | B142: 南京市天卫公司 | C142: 货款 | D142: 2011年以前 | E142: 10年以上 | F142: 22,621.27 | G142: 22,621.27
A143: 138 | B143: 江苏省沭阳县糖烟酒公司 | C143: 货款 | D143: 2011年以前 | E143: 10年以上 | F143: 22,078.00 | G143: 22,078.00
A144: 139 | B144: 南京市永昌副食品经营部 | C144: 货款 | D144: 2011年以前 | E144: 10年以上 | F144: 21,690.40 | G144: 21,690.40
A145: 140 | B145: 贵州省遵义市糖烟酒公司 | C145: 货款 | D145: 2011年以前 | E145: 10年以上 | F145: 21,136.26 | G145: 21,136.26
A146: 141 | B146: 南京市建邺区糖烟酒公司经营部 | C146: 货款 | D146: 2011年以前 | E146: 10年以上 | F146: 21,062.06 | G146: 21,062.06
A147: 142 | B147: 江苏省信息技术公司 | C147: 货款 | D147: 2011年以前 | E147: 10年以上 | F147: 21,000.00 | G147: 21,000.00
A148: 143 | B148: 江苏省淮阴县糖烟酒公司 | C148: 货款 | D148: 2011年以前 | E148: 10年以上 | F148: 20,579.54 | G148: 20,579.54
A149: 144 | B149: 安徽省合肥金鹃食品有限公司 | C149: 货款 | D149: 2011年以前 | E149: 10年以上 | F149: 20,540.00 | G149: 20,540.00
A150: 145 | B150: 南京市下关商场 | C150: 货款 | D150: 2011年以前 | E150: 10年以上 | F150: 20,226.80 | G150: 20,226.80
A151: 146 | B151: 江苏省泰兴昌达商贸公司 | C151: 货款 | D151: 2011年以前 | E151: 10年以上 | F151: 20,040.00 | G151: 20,040.00
A152: 147 | B152: 南京市达达商行 | C152: 货款 | D152: 2011年以前 | E152: 10年以上 | F152: 20,001.24 | G152: 20,001.24
A153: 148 | B153: 南京市金龙天商贸有限公司 | C153: 货款 | D153: 2011年以前 | E153: 10年以上 | F153: 20,000.00 | G153: 20,000.00
A154: 149 | B154: 南京市鸽铃酒家 | C154: 货款 | D154: 2011年以前 | E154: 10年以上 | F154: 19,907.00 | G154: 19,907.00
A155: 150 | B155: 南京市中央超市 | C155: 货款 | D155: 2011年以前 | E155: 10年以上 | F155: 19,578.20 | G155: 19,578.20
A156: 151 | B156: 南京市金鹰大酒楼 | C156: 货款 | D156: 2011年以前 | E156: 10年以上 | F156: 18,744.00 | G156: 18,744.00
A157: 152 | B157: 南京市大厂永利 | C157: 货款 | D157: 2011年以前 | E157: 10年以上 | F157: 18,106.20 | G157: 18,106.20
A158: 153 | B158: 江苏省徐州市嘉和贸易商行 | C158: 货款 | D158: 2011年以前 | E158: 10年以上 | F158: 17,960.00 | G158: 17,960.00
A159: 154 | B159: 南京市古都饭店 | C159: 货款 | D159: 2011年以前 | E159: 10年以上 | F159: 17,902.00 | G159: 17,902.00
A160: 155 | B160: 南京市东方农工商公司 | C160: 货款 | D160: 2011年以前 | E160: 10年以上 | F160: 17,888.00 | G160: 17,888.00
A161: 156 | B161: 南京市大世界娱乐城 | C161: 货款 | D161: 2011年以前 | E161: 10年以上 | F161: 17,360.40 | G161: 17,360.40
A162: 157 | B162: 司 杨 | C162: 货款 | D162: 2011年以前 | E162: 10年以上 | F162: 17,130.00 | G162: 17,130.00
A163: 158 | B163: 南京市大桥百货 | C163: 货款 | D163: 2011年以前 | E163: 10年以上 | F163: 16,904.06 | G163: 16,904.06
A164: 159 | B164: 江苏省太仓市鸿翔贸易公司 | C164: 货款 | D164: 2011年以前 | E164: 10年以上 | F164: 16,806.14 | G164: 16,806.14
A165: 160 | B165: 南京市新鼎太金满楼美食超市 | C165: 货款 | D165: 2011年以前 | E165: 10年以上 | F165: 16,536.00 | G165: 16,536.00
A166: 161 | B166: 南京市中央商场折扣超市 | C166: 货款 | D166: 2011年以前 | E166: 10年以上 | F166: 16,372.80 | G166: 16,372.80
A167: 162 | B167: 江苏省华诚实业公司 | C167: 货款 | D167: 2011年以前 | E167: 10年以上 | F167: 16,244.40 | G167: 16,244.40
A168: 163 | B168: 南京市金宝岛贸易中心 | C168: 货款 | D168: 2011年以前 | E168: 10年以上 | F168: 15,835.00 | G168: 15,835.00
A169: 164 | B169: 南京市浦镇车辆厂 | C169: 货款 | D169: 2011年以前 | E169: 10年以上 | F169: 15,600.00 | G169: 15,600.00
A170: 165 | B170: 南京市集源干果食杂 | C170: 货款 | D170: 2011年以前 | E170: 10年以上 | F170: 15,400.01 | G170: 15,400.01
A171: 166 | B171: 南京市森信华侨大酒店 | C171: 货款 | D171: 2011年以前 | E171: 10年以上 | F171: 15,342.07 | G171: 15,342.07
A172: 167 | B172: 南京市西丽食品有限公司 | C172: 货款 | D172: 2011年以前 | E172: 10年以上 | F172: 15,250.00 | G172: 15,250.00
A173: 168 | B173: 南京市华阳大酒店 | C173: 货款 | D173: 2011年以前 | E173: 10年以上 | F173: 15,214.80 | G173: 15,214.80
A174: 169 | B174: 南京市速冻食品有限公司 | C174: 货款 | D174: 2011年以前 | E174: 10年以上 | F174: 15,150.00 | G174: 15,150.00
A175: 170 | B175: 南京市黄大国南北货有限责任公司 | C175: 货款 | D175: 2011年以前 | E175: 10年以上 | F175: 14,580.00 | G175: 14,580.00
A176: 171 | B176: 南京市玄武区第二物资公司 | C176: 货款 | D176: 2011年以前 | E176: 10年以上 | F176: 14,496.00 | G176: 14,496.00
A177: 172 | B177: 南京市口福来食品公司 | C177: 货款 | D177: 2011年以前 | E177: 10年以上 | F177: 14,400.00 | G177: 14,400.00
A178: 173 | B178: 南京市大萝卜冷饮食品厂 | C178: 货款 | D178: 2011年以前 | E178: 10年以上 | F178: 14,345.00 | G178: 14,345.00
A179: 174 | B179: 江苏省镇江市蔬菜公司调味副食品采购供? | C179: 货款 | D179: 2011年以前 | E179: 10年以上 | F179: 14,300.00 | G179: 14,300.00
A180: 175 | B180: 南京市曼哈顿广场 | C180: 货款 | D180: 2011年以前 | E180: 10年以上 | F180: 14,210.00 | G180: 14,210.00
A181: 176 | B181: 南京市大中小贸易有限公司 | C181: 货款 | D181: 2011年以前 | E181: 10年以上 | F181: 13,985.00 | G181: 13,985.00
A182: 177 | B182: 南京饭店潮州城 | C182: 货款 | D182: 2011年以前 | E182: 10年以上 | F182: 13,875.00 | G182: 13,875.00
A183: 178 | B183: 江苏省镇江食品厂 | C183: 货款 | D183: 2011年以前 | E183: 10年以上 | F183: 13,612.00 | G183: 13,612.00
A184: 179 | B184: 南京市古南都饭店 | C184: 货款 | D184: 2011年以前 | E184: 10年以上 | F184: 13,280.00 | G184: 13,280.00
A185: 180 | B185: 南京市吉庆楼 | C185: 货款 | D185: 2011年以前 | E185: 10年以上 | F185: 13,106.50 | G185: 13,106.50
A186: 181 | B186: 南京市金豪江酒店 | C186: 货款 | D186: 2011年以前 | E186: 10年以上 | F186: 13,010.00 | G186: 13,010.00
A187: 182 | B187: 南京市英杰贸易有限公司 | C187: 货款 | D187: 2011年以前 | E187: 10年以上 | F187: 12,821.00 | G187: 12,821.00
A188: 183 | B188: 江苏省扬中市江南批发城 | C188: 货款 | D188: 2011年以前 | E188: 10年以上 | F188: 12,318.00 | G188: 12,318.00
A189: 184 | B189: 南京市新富贵 | C189: 货款 | D189: 2011年以前 | E189: 10年以上 | F189: 12,240.00 | G189: 12,240.00
A190: 185 | B190: 南京市金陵饭店购物中心实业有限 | C190: 货款 | D190: 2011年以前 | E190: 10年以上 | F190: 12,199.80 | G190: 12,199.80
A191: 186 | B191: 陕西省西安市糖烟酒公司 | C191: 货款 | D191: 2011年以前 | E191: 10年以上 | F191: 12,177.43 | G191: 12,177.43
A192: 187 | B192: 江苏省徐州商办贸易总公司 | C192: 货款 | D192: 2011年以前 | E192: 10年以上 | F192: 12,160.00 | G192: 12,160.00
A193: 188 | B193: 安徽省铜陵食品购销公司 | C193: 货款 | D193: 2011年以前 | E193: 10年以上 | F193: 12,130.55 | G193: 12,130.55
A194: 189 | B194: 个人沈兴彪 | C194: 货款 | D194: 2011年以前 | E194: 10年以上 | F194: 12,075.00 | G194: 12,075.00
A195: 190 | B195: 南京市名仕阁海鲜酒楼 | C195: 货款 | D195: 2011年以前 | E195: 10年以上 | F195: 11,505.00 | G195: 11,505.00
A196: 191 | B196: 江苏省无锡南天旅游商贸公司 | C196: 货款 | D196: 2011年以前 | E196: 10年以上 | F196: 11,438.99 | G196: 11,438.99
A197: 192 | B197: 江苏国际旅游商场 | C197: 货款 | D197: 2011年以前 | E197: 10年以上 | F197: 11,280.00 | G197: 11,280.00
A198: 193 | B198: 南京市金伦泰贸易公司 | C198: 货款 | D198: 2011年以前 | E198: 10年以上 | F198: 11,060.80 | G198: 11,060.80
A199: 194 | B199: 南京市江海航运公司 | C199: 货款 | D199: 2011年以前 | E199: 10年以上 | F199: 10,900.00 | G199: =F199 -> 10,900.00
A200: 195 | B200: 南京市青龙山浦口批发部 | C200: 货款 | D200: 2011年以前 | E200: 10年以上 | F200: 10,800.72 | G200: 10,800.72
... 441 more rows

Sheet 应收查询 (hidden)
A3: 71
A18: 78
A31: 90
A44: 97
A58: 168
A68: 173
A76: 201/486
A85: 222
A105: 252
A115: 257
A125: 262
A134: 371
A144: 425
A153: 436
A164: 491
A176: 511
A185: 514
A196: 524
A205: 569

Sheet 3-6预付账款
A1: 预付账款评估明细表
A2: =基础信息!A1 -> 评估基准日：2021年6月30日
J3: 表3-6
A4: =基础信息!A2 -> 被评估单位：江苏省糖烟酒总公司 | J4: 金额单位：人民币元
A5: 序号 | B5: 收款单位名称（结算对象) | C5: 业务内容 | D5: 发生日期 | E5: 账龄 | F5: 账面价值 | G5: 评估价值 | H5: 增减值 | I5: 增值率% | J5: 备注
A6: 1 | B6: 江西省晓村实业有限公司 | C6: 货款 | D6: 2016年以前 | E6: 5年以上 | F6: 2,037,600.00 | G6: 0.00
A7: 2 | B7: 南京振迈贸易有限公司 | C7: 货款 | D7: 2016年以前 | E7: 5年以上 | F7: 1,262,069.62 | G7: 0.00
A8: 3 | B8: 宜宾五粮液酒类销售有限责任公司 | C8: 货款 | D8: 2016年以前 | E8: 5年以上 | F8: 1,111,146.00 | G8: 0.00
A9: 4 | B9: 江苏国窖 | C9: 货款 | D9: 2016年以前 | E9: 5年以上 | F9: 884,706.00 | G9: 0.00
A10: 5 | B10: 茅台专卖店 | C10: 货款 | D10: 2016年以前 | E10: 5年以上 | F10: 545,869.00 | G10: 0.00
A11: 6 | B11: 涟水今世缘 | C11: 货款 | D11: 2016年以前 | E11: 5年以上 | F11: 519,024.00 | G11: 0.00
A12: 7 | B12: 酒鬼公司 | C12: 货款 | D12: 2016年以前 | E12: 5年以上 | F12: 489,840.00 | G12: 0.00
A13: 8 | B13: 上海奥利维尔 | C13: 货款 | D13: 2016年以前 | E13: 5年以上 | F13: 458,508.00 | G13: 0.00
A14: 9 | B14: 泰州特许店（钱晓燕） | C14: 货款 | D14: 2016年以前 | E14: 5年以上 | F14: 436,800.00 | G14: 0.00
A15: 10 | B15: 上饶市国酒茅台 | C15: 货款 | D15: 2016年以前 | E15: 5年以上 | F15: 388,400.00 | G15: 0.00
A16: 11 | B16: 南京中天酒业有限责任公司 | C16: 货款 | D16: 2016年以前 | E16: 5年以上 | F16: 351,660.00 | G16: 0.00
A17: 12 | B17: 南京罡然贸易有限公司 | C17: 货款 | D17: 2016年以前 | E17: 5年以上 | F17: 258,000.00 | G17: 0.00
A18: 13 | B18: 上海品莱得 | C18: 货款 | D18: 2016年以前 | E18: 5年以上 | F18: 251,176.78 | G18: 0.00
A19: 14 | B19: 南京紫葡萄酒业 | C19: 货款 | D19: 2016年以前 | E19: 5年以上 | F19: 241,140.00 | G19: 0.00
A20: 15 | B20: 重庆蜀特酒类销售有限公司 | C20: 货款 | D20: 2016年以前 | E20: 5年以上 | F20: 223,376.00 | G20: 0.00
A21: 16 | B21: 上海欧沃实业有限公司 | C21: 货款 | D21: 2016年以前 | E21: 5年以上 | F21: 215,940.00 | G21: 0.00
A22: 17 | B22: 江苏绵南商贸有限公司 | C22: 货款 | D22: 2016年以前 | E22: 5年以上 | F22: 193,580.00 | G22: 0.00
A23: 18 | B23: 银基贸易 | C23: 货款 | D23: 2016年以前 | E23: 5年以上 | F23: 170,216.20 | G23: 0.00
A24: 19 | B24: 福建酩汇 | C24: 货款 | D24: 2016年以前 | E24: 5年以上 | F24: 130,949.20 | G24: 0.00
A25: 20 | B25: 黄秀美 | C25: 货款 | D25: 2016年以前 | E25: 5年以上 | F25: 120,800.00 | G25: 0.00
A26: 21 | B26: 上海保萌 | C26: 货款 | D26: 2016年以前 | E26: 5年以上 | F26: 94,800.00 | G26: 0.00
A27: 22 | B27: 四川汇金商贸有限公司 | C27: 货款 | D27: 2016年以前 | E27: 5年以上 | F27: 91,951.00 | G27: 0.00
A28: 23 | B28: 江苏苏糖糖酒食品有限公司 | C28: 货款 | D28: 2016年以前 | E28: 5年以上 | F28: 91,616.00 | G28: 0.00
A29: 24 | B29: 盛禾 | C29: 货款 | D29: 2016年以前 | E29: 5年以上 | F29: 88,516.80 | G29: 0.00
A30: 25 | B30: 奥体五粮液专卖店 | C30: 货款 | D30: 2016年以前 | E30: 5年以上 | F30: 64,818.00 | G30: 0.00
A31: 26 | B31: 泰州市财政局 | C31: 货款 | D31: 2016年以前 | E31: 5年以上 | F31: 41,600.00 | G31: 0.00
A32: 27 | B32: 南京华特 | C32: 货款 | D32: 2016年以前 | E32: 5年以上 | F32: 32,880.00 | G32: 0.00
A33: 28 | B33: 山东孔府家酒业有限公司 | C33: 货款 | D33: 2016年以前 | E33: 5年以上 | F33: 31,878.00 | G33: 0.00
A34: 29 | B34: 南京飞菲广告有限公司 | C34: 货款 | D34: 2016年以前 | E34: 5年以上 | F34: 28,800.00 | G34: 0.00
A35: 30 | B35: 徐州小李 | C35: 货款 | D35: 2016年以前 | E35: 5年以上 | F35: 27,600.00 | G35: 0.00
A36: 31 | B36: 江阴市康大酒业有限公司 | C36: 货款 | D36: 2016年以前 | E36: 5年以上 | F36: 27,520.00 | G36: 0.00
A37: 32 | B37: 四川大地酒业 | C37: 货款 | D37: 2016年以前 | E37: 5年以上 | F37: 24,380.00 | G37: 0.00
A38: 33 | B38: 苏州瑞宝 | C38: 货款 | D38: 2016年以前 | E38: 5年以上 | F38: 22,800.00 | G38: 0.00
A39: 34 | B39: 宁波保税区思享贸易有限公司 | C39: 货款 | D39: 2016年以前 | E39: 5年以上 | F39: 19,440.00 | G39: 0.00
A40: 35 | B40: 深圳银浦印刷 | C40: 货款 | D40: 2016年以前 | E40: 5年以上 | F40: 14,772.00 | G40: 0.00
A41: 36 | B41: 绍兴百家宴酒业 | C41: 货款 | D41: 2016年以前 | E41: 5年以上 | F41: 14,400.00 | G41: 0.00
A42: 37 | B42: 山东烟台张裕葡萄酿酒公司 | C42: 货款 | D42: 2016年以前 | E42: 5年以上 | F42: 5,894.10 | G42: 0.00
A43: 38 | B43: 南京龙干喜商贸 | C43: 货款 | D43: 2016年以前 | E43: 5年以上 | F43: 3,870.00 | G43: 0.00
A44: 39 | B44: 广东省湛江糖业副食品公司 | C44: 货款 | D44: 2011年以前 | E44: 10年以上 | F44: 27,616,597.00 | G44: 0.00
A45: 40 | B45: 中轻食糖南宁批发交易市场 | C45: 货款 | D45: 2011年以前 | E45: 10年以上 | F45: 2,076,609.00 | G45: 0.00
A46: 41 | B46: 新疆伊梨四方糖业有限公司 | C46: 货款 | D46: 2011年以前 | E46: 10年以上 | F46: 2,027,309.16 | G46: 0.00
A47: 42 | B47: 广东省饮食服务公司 | C47: 货款 | D47: 2011年以前 | E47: 10年以上 | F47: 1,346,678.73 | G47: 0.00
A48: 43 | B48: 贵州省茅台酒厂 | C48: 货款 | D48: 2011年以前 | E48: 10年以上 | F48: 1,124,958.44 | G48: 0.00
A49: 44 | B49: 广西钦州平吉糖厂 | C49: 货款 | D49: 2011年以前 | E49: 10年以上 | F49: 743,930.00 | G49: 0.00
A50: 45 | B50: 广西东亚糖业集团有限公司 | C50: 货款 | D50: 2011年以前 | E50: 10年以上 | F50: 439,218.82 | G50: 0.00
A51: 46 | B51: 四川省绵竹剑南春酒类经营公司 | C51: 货款 | D51: 2011年以前 | E51: 10年以上 | F51: 417,548.64 | G51: 0.00
A52: 47 | B52: 四川省重庆丝绸进出口公司成都分 | C52: 货款 | D52: 2011年以前 | E52: 10年以上 | F52: 405,000.00 | G52: 0.00
A53: 48 | B53: 西安恒丰酒业有限责任公司 | C53: 货款 | D53: 2011年以前 | E53: 10年以上 | F53: 161,280.00 | G53: 0.00
A54: 49 | B54: 贵州省食品工业公司 | C54: 货款 | D54: 2011年以前 | E54: 10年以上 | F54: 150,000.00 | G54: 0.00
A55: 50 | B55: 广西南宁惠诚源糖业有限公司 | C55: 货款 | D55: 2011年以前 | E55: 10年以上 | F55: 120,079.06 | G55: 0.00
A56: 51 | B56: 贵州省茅台酒销售有限公司 | C56: 货款 | D56: 2011年以前 | E56: 10年以上 | F56: 86,702.24 | G56: 0.00
A57: 52 | B57: 湖南省常德市德山大曲酒厂 | C57: 货款 | D57: 2011年以前 | E57: 10年以上 | F57: 40,000.00 | G57: 0.00
A58: 53 | B58: 山东省曲阜酒厂 | C58: 货款 | D58: 2011年以前 | E58: 10年以上 | F58: 38,071.20 | G58: 0.00
A59: 54 | B59: 江苏省南通烟草公司驻昆明办事处 | C59: 货款 | D59: 2011年以前 | E59: 10年以上 | F59: 30,000.00 | G59: 0.00
A60: 55 | B60: 四川省沱牌曲酒厂 | C60: 货款 | D60: 2011年以前 | E60: 10年以上 | F60: 25,111.28 | G60: 0.00
A61: 56 | B61: 四川省全兴酒厂全兴销售公司 | C61: 货款 | D61: 2011年以前 | E61: 10年以上 | F61: 18,305.30 | G61: 0.00
A62: 57 | B62: 南京天宁糖业有限公司 | C62: 货款 | D62: 2011年以前 | E62: 10年以上 | F62: 3,000.00 | G62: 0.00
A63: 58 | B63: 南京市嘉宏达贸易公司 | C63: 货款 | D63: 2011年以前 | E63: 10年以上 | F63: 2,751.46 | G63: 0.00
A64: 59 | B64: 贵州省遵义市糖烟酒公司 | C64: 货款 | D64: 2011年以前 | E64: 10年以上 | F64: 2,638.40 | G64: 0.00
A65: 60 | B65: 江苏省江浦果品食杂司后宰门经营 | C65: 货款 | D65: 2011年以前 | E65: 10年以上 | F65: 1,200.00 | G65: 0.00
A66: 61 | B66: 四川省皇城老妈红酒业公司成都分 | C66: 货款 | D66: 2011年以前 | E66: 10年以上 | F66: 800.00 | G66: 0.00
A67: 62 | B67: 四川省中国酒城股份有限公司 | C67: 货款 | D67: 2011年以前 | E67: 10年以上 | F67: 101.47 | G67: 0.00
A68: 63 | B68: 江苏省涟水高沟酒厂 | C68: 货款 | D68: 2011年以前 | E68: 10年以上 | F68: 40.84 | G68: 0.00
A69: 64 | B69: 云南省糖业烟酒蔬菜公司 | C69: 货款 | D69: 2011年以前 | E69: 10年以上 | F69: 29.25 | G69: 0.00
A70: 65 | B70: 广西柳州凤山糖业集团有限责任公 | C70: 货款 | D70: 2011年以前 | E70: 10年以上 | F70: 0.31 | G70: 0.00
A71: 66 | B71: 广西扶南东亚糖业有限公司 | C71: 货款 | D71: 2011年以前 | E71: 10年以上 | F71: 3,975,745.00 | G71: 0.00
A72: 67 | B72: 上海好好企业发展有限公司 | C72: 货款 | D72: 2011年以前 | E72: 10年以上 | F72: 105,401.20 | G72: 0.00
A73: 68 | B73: 吉林省四平华光油脂食品有限公司 | C73: 货款 | D73: 2011年以前 | E73: 10年以上 | F73: 104,590.00 | G73: 0.00
A74: 69 | B74: 天津市王朝葡萄酿酒有限公司 | C74: 货款 | D74: 2011年以前 | E74: 10年以上 | F74: 99,856.00 | G74: 0.00
A75: 70 | B75: 南京双沟酒家 | C75: 货款 | D75: 2011年以前 | E75: 10年以上 | F75: 94,165.55 | G75: 0.00
A76: 71 | B76: 天津市华美食品有限公司 | C76: 货款 | D76: 2011年以前 | E76: 10年以上 | F76: 88,001.79 | G76: 0.00
A77: 72 | B77: 黑龙江省龙江乳品厂 | C77: 货款 | D77: 2011年以前 | E77: 10年以上 | F77: 68,646.20 | G77: 0.00
A78: 73 | B78: 南京金陵啤酒有限公司 | C78: 货款 | D78: 2011年以前 | E78: 10年以上 | F78: 56,836.24 | G78: 0.00
A79: 74 | B79: 贵州省遵义市董酒厂 | C79: 货款 | D79: 2011年以前 | E79: 10年以上 | F79: 53,874.50 | G79: 0.00
A80: 75 | B80: 江苏省江宁县糖烟酒公司 | C80: 货款 | D80: 2011年以前 | E80: 10年以上 | F80: 46,003.33 | G80: 0.00
A81: 76 | B81: 江苏省食品公司副食品分公司 | C81: 货款 | D81: 2011年以前 | E81: 10年以上 | F81: 37,798.98 | G81: 0.00
A82: 77 | B82: 江苏省泰州市新立糖酒业有限公司 | C82: 货款 | D82: 2011年以前 | E82: 10年以上 | F82: 31,110.00 | G82: 0.00
A83: 78 | B83: 江苏恒丰商贸有限公司 | C83: 货款 | D83: 2011年以前 | E83: 10年以上 | F83: 25,169.37 | G83: 0.00
A84: 79 | B84: 安徽迎驾酒业销售有限公司 | C84: 货款 | D84: 2011年以前 | E84: 10年以上 | F84: 21,130.00 | G84: 0.00
A85: 80 | B85: 南京市江海糖烟酒有限责任公司 | C85: 货款 | D85: 2011年以前 | E85: 10年以上 | F85: 21,000.00 | G85: 0.00
A86: 81 | B86: 南京市新腾饮料有限公司 | C86: 货款 | D86: 2011年以前 | E86: 10年以上 | F86: 19,316.00 | G86: 0.00
A87: 82 | B87: 河南开封正大有限公司 | C87: 货款 | D87: 2011年以前 | E87: 10年以上 | F87: 13,618.68 | G87: 0.00
A88: 83 | B88: 南京金玉良缘实业有限公司 | C88: 货款 | D88: 2011年以前 | E88: 10年以上 | F88: 12,788.00 | G88: 0.00
A89: 84 | B89: 南京市日杂公司劳保公司 | C89: 货款 | D89: 2011年以前 | E89: 10年以上 | F89: 9,679.31 | G89: 0.00
A90: 85 | B90: 南京市富祥食品有限公司 | C90: 货款 | D90: 2011年以前 | E90: 10年以上 | F90: 9,676.64 | G90: 0.00
A91: 86 | B91: 江苏省常州爱可乐食品有限公司 | C91: 货款 | D91: 2011年以前 | E91: 10年以上 | F91: 5,924.09 | G91: 0.00
A92: 87 | B92: 南京市百货家庭生活用品公司 | C92: 货款 | D92: 2011年以前 | E92: 10年以上 | F92: 5,573.89 | G92: 0.00
A93: 88 | B93: 江苏双沟酒厂 | C93: 货款 | D93: 2011年以前 | E93: 10年以上 | F93: 3,653.24 | G93: 0.00
A94: 89 | B94: 上海冠生园集团有限公司 | C94: 货款 | D94: 2011年以前 | E94: 10年以上 | F94: 2,678.31 | G94: 0.00
A95: 90 | B95: 南京市桥北麻油厂 | C95: 货款 | D95: 2011年以前 | E95: 10年以上 | F95: 2,549.40 | G95: 0.00
A96: 91 | B96: 河南开封隆氏食品有限公司 | C96: 货款 | D96: 2011年以前 | E96: 10年以上 | F96: 2,316.40 | G96: 0.00
A97: 92 | B97: 南京市百货洁莱雅经营部 | C97: 货款 | D97: 2011年以前 | E97: 10年以上 | F97: 1,559.15 | G97: 0.00
A98: 93 | B98: 江苏省镇江市泰兴隆食品有限公司 | C98: 货款 | D98: 2011年以前 | E98: 10年以上 | F98: 824.20 | G98: 0.00
A99: 94 | B99: 南京市百货公司洗化部 | C99: 货款 | D99: 2011年以前 | E99: 10年以上 | F99: 608.15 | G99: 0.00
A100: 95 | B100: 中国糖业酒类销售公司 | C100: 货款 | D100: 2011年以前 | E100: 10年以上 | F100: 568.80 | G100: 0.00
A101: 96 | B101: 广东省深圳南方制药厂 | C101: 货款 | D101: 2011年以前 | E101: 10年以上 | F101: 450.00 | G101: 0.00
A102: 97 | B102: 南京市日杂公司日用杂品公司 | C102: 货款 | D102: 2011年以前 | E102: 10年以上 | F102: 228.80 | G102: 0.00
A103: 98 | B103: 南京希望红酒业有限公司 | C103: 货款 | D103: 2011年以前 | E103: 10年以上 | F103: 153.02 | G103: 0.00
A104: 合 计 | F104: =SUM(F6:F103) -> 52,817,791.54 | G104: =SUM(G6:G103) -> 0.00
A105: 减：预付账款坏账准备 | F105: 52,817,791.54
A106: 减：评估预期信用损失
A107: 合 计 | F107: =F104-F105 -> 0.00 | G107: =G104-G106 -> 0.00
A108: =基础信息!A4 -> 被评估单位填表人：俞蕊 | G108: =基础信息!A3 -> 评估人员：李美花、刘婧
A109: =基础信息!A5 -> 填表日期：2021年8月27日

Sheet 3-7其他应收款
A1: 其他应收款评估明细表
A2: =基础信息!A1 -> 评估基准日：2021年6月30日
J3: 表3-7
A4: =基础信息!A2 -> 被评估单位：江苏省糖烟酒总公司 | J4: 金额单位：人民币元
A5: 序号 | B5: 欠款单位（人）名称（结算对象) | C5: 业务内容 | D5: 发生日期 | E5: 账龄 | F5: 账面价值 | G5: 评估价值 | H5: 增减值 | I5: 增值率% | J5: 备注
A6: 1 | B6: 江苏苏糖物流有限公司 | D6: 2016年以前 | E6: 5年以上 | F6: 31,374,003.42 | G6: =F6 -> 31,374,003.42
A7: 2 | B7: 宜宾五粮液酒类销售有限责任公司 | D7: 2016年以前 | E7: 5年以上 | F7: 100,000.00 | G7: =F7 -> 100,000.00
A8: 3 | B8: 涟水今世缘 | D8: 2016年以前 | E8: 5年以上 | F8: 82,020.00 | G8: 82,020.00
A9: 4 | B9: 南京元合丰商贸有限公司 | D9: 2016年以前 | E9: 5年以上 | F9: 20,000.00 | G9: 20,000.00
A10: 5 | B10: 苏糖饮料 | E10: 4-5年 | F10: 10,000.00 | G10: 10,000.00
A11: 6 | B11: 江苏苏糖糖酒食品有限公司 | D11: 2016年以前 | E11: 5年以上 | F11: 3,600.00 | G11: 3,600.00
A12: 7 | B12: 江苏和诚工贸有限公司 | E12: 2-3年 | F12: 2,100.00 | G12: 2,100.00
A13: 8 | B13: 江苏金陵交运集团物业管理有限公司 | D13: 2016年以前 | E13: 5年以上 | F13: 1,000.00 | G13: 1,000.00
A14: 9 | B14: 南京市中级人民法院 | D14: 2016年以前 | E14: 5年以上 | F14: 1,400,000.00 | G14: 1,400,000.00
A15: 10 | B15: 其他 | C15: 预提费用 | D15: 2011年以前 | E15: 10年以上 | F15: 623,056.74 | G15: 623,056.74
A16: 11 | B16: 党费（李杰报销歌咏排练） | D16: 2017-09-01 | E16: 3-4年 | F16: 468.00 | G16: 468.00
A17: 12 | B17: 代扣个人款项-保险 | D17: 2016年以前 | E17: 5年以上 | F17: 2,794.99 | G17: 2,794.99
A18: 13 | B18: 省康力鸽业公司 | D18: 2011年以前 | E18: 10年以上 | F18: 9,017,245.23 | G18: 9,017,245.23
A19: 14 | B19: 江苏佳惠超市 | D19: 2011年以前 | E19: 10年以上 | F19: 8,242,012.85 | G19: 8,242,012.85
A20: 15 | B20: 江苏商业大厦筹建处 | D20: 2011年以前 | E20: 10年以上 | F20: 8,040,462.00 | G20: 8,040,462.00
A21: 16 | B21: 江苏省盐业集团南京 | D21: 2011年以前 | E21: 10年以上 | F21: 7,719,234.59 | G21: 7,719,234.59
A22: 17 | B22: 江苏省涟水高沟酒厂 | D22: 2011年以前 | E22: 10年以上 | F22: 5,664,907.07 | G22: 5,664,907.07
A23: 18 | B23: 中糖华糖大厦筹建处 | D23: 2011年以前 | E23: 10年以上 | F23: 3,625,000.00 | G23: 3,625,000.00
A24: 19 | B24: 江苏省糖淮海分公司 | D24: 2011年以前 | E24: 10年以上 | F24: 1,539,799.48 | G24: 1,539,799.48
A25: 20 | B25: 江苏省盛百服饰大厦 | D25: 2011年以前 | E25: 10年以上 | F25: 1,410,000.40 | G25: 1,410,000.40
A26: 21 | B26: 天福投资 | D26: 2011年以前 | E26: 10年以上 | F26: 1,172,600.00 | G26: 1,172,600.00
A27: 22 | B27: 华诚财务公司江苏办 | D27: 2011年以前 | E27: 10年以上 | F27: 1,004,800.00 | G27: 1,004,800.00
A28: 23 | B28: 江苏省糖无锡分公司 | D28: 2011年以前 | E28: 10年以上 | F28: 752,220.66 | G28: 752,220.66
A29: 24 | B29: 五粮神投资 | D29: 2011年以前 | E29: 10年以上 | F29: 739,500.00 | G29: 739,500.00
A30: 25 | B30: 电力集资 | D30: 2011年以前 | E30: 10年以上 | F30: 661,175.95 | G30: 661,175.95
A31: 26 | B31: 江苏省糖东海分公司 | D31: 2011年以前 | E31: 10年以上 | F31: 647,046.95 | G31: 647,046.95
A32: 27 | B32: 华商储备商品管理中心 | D32: 2011年以前 | E32: 10年以上 | F32: 414,677.03 | G32: 414,677.03
A33: 28 | B33: 江苏天福酒业公司 | D33: 2011年以前 | E33: 10年以上 | F33: 311,498.00 | G33: 311,498.00
A34: 29 | B34: 其他 | D34: 2011年以前 | E34: 10年以上 | F34: 304,135.19 | G34: 304,135.19
A35: 30 | B35: 江苏省蔬菜副食品总公司 | D35: 2011年以前 | E35: 10年以上 | F35: 300,000.00 | G35: 300,000.00
A36: 31 | B36: 江苏苏糖烟酒有限公司 | D36: 2011年以前 | E36: 10年以上 | F36: 294,044.64 | G36: 294,044.64
A37: 32 | B37: 金匙啤酒有限公司 | D37: 2011年以前 | E37: 10年以上 | F37: 240,710.28 | G37: =F37 -> 240,710.28
A38: 33 | B38: 中丹销售公司 | D38: 2011年以前 | E38: 10年以上 | F38: 183,719.90 | G38: 183,719.90
A39: 34 | B39: 江苏省糖扬州采供站 | D39: 2011年以前 | E39: 10年以上 | F39: 179,774.00 | G39: 179,774.00
A40: 35 | B40: 鸽铃酒家(包先美) | D40: 2011年以前 | E40: 10年以上 | F40: 160,645.88 | G40: 160,645.88
A41: 36 | B41: 江苏省糖南通采供站 | D41: 2011年以前 | E41: 10年以上 | F41: 149,119.45 | G41: 149,119.45
A42: 37 | B42: 江苏省仪征中惠物资公司 | D42: 2011年以前 | E42: 10年以上 | F42: 140,000.00 | G42: 140,000.00
A43: 38 | B43: 江苏省文化艺术发展基金会 | D43: 2011年以前 | E43: 10年以上 | F43: 100,000.00 | G43: 100,000.00
A44: 39 | B44: 江苏省糖汤沟经销部 | D44: 2011年以前 | E44: 10年以上 | F44: 84,669.20 | G44: 84,669.20
A45: 40 | B45: 江苏省扬州啤酒厂 | D45: 2011年以前 | E45: 10年以上 | F45: 82,231.50 | G45: 82,231.50
A46: 41 | B46: 江苏香妮食品有限公司 | D46: 2011年以前 | E46: 10年以上 | F46: 79,804.67 | G46: 79,804.67
A47: 42 | B47: 南京市散装水泥办公室 | D47: 2011年以前 | E47: 10年以上 | F47: 70,632.00 | G47: 70,632.00
A48: 43 | B48: 云南省耿马景戈工贸 | D48: 2011年以前 | E48: 10年以上 | F48: 70,513.99 | G48: 70,513.99
A49: 44 | B49: 南京金城水电安装工程队 | D49: 2011年以前 | E49: 10年以上 | F49: 65,395.00 | G49: 65,395.00
A50: 45 | B50: 南京市瑞元建筑配套装饰工程中心 | D50: 2011年以前 | E50: 10年以上 | F50: 48,000.00 | G50: 48,000.00
A51: 46 | B51: 曹顺明 | D51: 2011年以前 | E51: 10年以上 | F51: 42,206.44 | G51: 42,206.44
A52: 47 | B52: 广东省湛江市食糖批发市场 | D52: 2011年以前 | E52: 10年以上 | F52: 38,000.00 | G52: 38,000.00
A53: 48 | B53: 汤宇苏 | D53: 2011年以前 | E53: 10年以上 | F53: 34,500.00 | G53: 34,500.00
A54: 49 | B54: 储备糖户 | D54: 2011年以前 | E54: 10年以上 | F54: 33,509.12 | G54: 33,509.12
A55: 50 | B55: 江苏苏糖调味品有限公司 | D55: 2011年以前 | E55: 10年以上 | F55: 31,239.36 | G55: 31,239.36
A56: 51 | B56: 中国酒类商业协会 | D56: 2011年以前 | E56: 10年以上 | F56: 30,000.00 | G56: 30,000.00
A57: 52 | B57: 南京康海建筑安装装饰工程公司 | D57: 2011年以前 | E57: 10年以上 | F57: 30,000.00 | G57: 30,000.00
A58: 53 | B58: 南京市农行雨花支行 | D58: 2011年以前 | E58: 10年以上 | F58: 30,000.00 | G58: 30,000.00
A59: 54 | B59: 蔡冬 | D59: 2011年以前 | E59: 10年以上 | F59: 30,000.00 | G59: 30,000.00
A60: 55 | B60: 江苏省糖江阴分公司 | D60: 2011年以前 | E60: 10年以上 | F60: 27,829.28 | G60: 27,829.28
A61: 56 | B61: 朱亚雄 | D61: 2011年以前 | E61: 10年以上 | F61: 24,276.00 | G61: 24,276.00
A62: 57 | B62: 江苏省产品质量监督检验中心所 | D62: 2011年以前 | E62: 10年以上 | F62: 20,000.00 | G62: 20,000.00
A63: 58 | B63: 南京苏台图文制作有限公司 | D63: 2011年以前 | E63: 10年以上 | F63: 16,800.00 | G63: 16,800.00
A64: 59 | B64: 王平 | D64: 2011年以前 | E64: 10年以上 | F64: 16,600.00 | G64: 16,600.00
A65: 60 | B65: 南京瑞元建筑配套装饰工程中心 | D65: 2011年以前 | E65: 10年以上 | F65: 15,000.00 | G65: 15,000.00
A66: 61 | B66: 徐易 | D66: 2011年以前 | E66: 10年以上 | F66: 13,000.00 | G66: 13,000.00
A67: 62 | B67: 王凤香 | D67: 2011年以前 | E67: 10年以上 | F67: 12,759.29 | G67: 12,759.29
A68: 63 | B68: 其他 | D68: 2011年以前 | E68: 10年以上 | F68: 11,731.43 | G68: 11,731.43
A69: 64 | B69: 江苏省人民医院 | D69: 2011年以前 | E69: 10年以上 | F69: 9,900.00 | G69: =F69 -> 9,900.00
A70: 65 | B70: 四川省宜宾市五粮液供销公司 | D70: 2011年以前 | E70: 10年以上 | F70: 9,600.00 | G70: 9,600.00
A71: 66 | B71: 南京市保险公司货运部 | D71: 2011年以前 | E71: 10年以上 | F71: 9,500.00 | G71: 9,500.00
A72: 67 | B72: 大楼管委会 | D72: 2011年以前 | E72: 10年以上 | F72: 9,288.87 | G72: 9,288.87
A73: 68 | B73: 四川省郸县糖烟酒公司 | D73: 2011年以前 | E73: 10年以上 | F73: 8,451.47 | G73: 8,451.47
A74: 69 | B74: 江苏省仪征市人民法院 | D74: 2011年以前 | E74: 10年以上 | F74: 7,000.00 | G74: 7,000.00
A75: 70 | B75: 顾瑞珩 | D75: 2011年以前 | E75: 10年以上 | F75: 7,000.00 | G75: 7,000.00
A76: 71 | B76: 预借奖金 | D76: 2011年以前 | E76: 10年以上 | F76: 5,380.32 | G76: 5,380.32
A77: 72 | B77: 诉讼费 | D77: 2011年以前 | E77: 10年以上 | F77: 5,250.00 | G77: 5,250.00
A78: 73 | B78: 山西省太原市糖烟副食品采供站 | D78: 2011年以前 | E78: 10年以上 | F78: 5,000.00 | G78: 5,000.00
A79: 74 | B79: 史舫莉 | D79: 2011年以前 | E79: 10年以上 | F79: 4,000.00 | G79: 4,000.00
A80: 75 | B80: 司扬 | D80: 2011年以前 | E80: 10年以上 | F80: 4,000.00 | G80: 4,000.00
A81: 76 | B81: 磁卡周转金 | D81: 2011年以前 | E81: 10年以上 | F81: 3,797.50 | G81: 3,797.50
A82: 77 | B82: 张玉海 | D82: 2011年以前 | E82: 10年以上 | F82: 3,779.86 | G82: 3,779.86
A83: 78 | B83: 陈燕清 | D83: 2011年以前 | E83: 10年以上 | F83: 3,642.47 | G83: 3,642.47
A84: 79 | B84: 南京市白下区人民法院 | D84: 2011年以前 | E84: 10年以上 | F84: 2,869.00 | G84: 2,869.00
A85: 80 | B85: 北京金脑信息咨询有限公司 | D85: 2011年以前 | E85: 10年以上 | F85: 2,499.00 | G85: 2,499.00
A86: 81 | B86: 南京市鼓楼区法院 | D86: 2011年以前 | E86: 10年以上 | F86: 2,085.00 | G86: 2,085.00
A87: 82 | B87: 中国副食流通协会 | D87: 2011年以前 | E87: 10年以上 | F87: 2,000.00 | G87: 2,000.00
A88: 83 | B88: 司扬 | D88: 2011年以前 | E88: 10年以上 | F88: 2,000.00 | G88: 2,000.00
A89: 84 | B89: 曹武勇 | D89: 2011年以前 | E89: 10年以上 | F89: 2,000.00 | G89: 2,000.00
A90: 85 | B90: 周斌 | D90: 2011年以前 | E90: 10年以上 | F90: 2,000.00 | G90: 2,000.00
A91: 86 | B91: 南京市下关区宏大汽运 | D91: 2011年以前 | E91: 10年以上 | F91: 1,992.79 | G91: 1,992.79
A92: 87 | B92: 南京市玄武区人民法院 | D92: 2011年以前 | E92: 10年以上 | F92: 1,575.00 | G92: 1,575.00
A93: 88 | B93: 南京日报 | D93: 2011年以前 | E93: 10年以上 | F93: 1,440.00 | G93: 1,440.00
A94: 89 | B94: 山东省烟台市龙大食品 | D94: 2011年以前 | E94: 10年以上 | F94: 1,300.00 | G94: 1,300.00
A95: 90 | B95: 鼓楼区市政工程管理所 | D95: 2011年以前 | E95: 10年以上 | F95: 1,280.00 | G95: 1,280.00
A96: 91 | B96: 江苏省有线电视台 | D96: 2011年以前 | E96: 10年以上 | F96: 1,150.00 | G96: 1,150.00
A97: 92 | B97: 陈浩丰 | D97: 2011年以前 | E97: 10年以上 | F97: 1,000.00 | G97: 1,000.00
A98: 93 | B98: 上海市康仕食品有限公司 | D98: 2011年以前 | E98: 10年以上 | F98: 950.00 | G98: 950.00
A99: 94 | B99: 南京市山西路邮局 | D99: 2011年以前 | E99: 10年以上 | F99: 650.00 | G99: 650.00
A100: 95 | B100: 广西省荔波食品有限公司 | D100: 2011年以前 | E100: 10年以上 | F100: 650.00 | G100: 650.00
A101: 96 | B101: 双龙液化气 | D101: 2011年以前 | E101: 10年以上 | F101: 600.00 | G101: =F101 -> 600.00
A102: 97 | B102: 山东省平邑 | D102: 2011年以前 | E102: 10年以上 | F102: 500.00 | G102: 500.00
A103: 98 | B103: 中国北方食糖批发市场 | D103: 2011年以前 | E103: 10年以上 | F103: 500.00 | G103: 500.00
A104: 99 | B104: 上新河邮局 | D104: 2011年以前 | E104: 10年以上 | F104: 500.00 | G104: 500.00
A105: 100 | B105: 南京市室内装饰成套设备公司 | D105: 2011年以前 | E105: 10年以上 | F105: 500.00 | G105: 500.00
A106: 101 | B106: 泸州老窖定货优惠券 | D106: 2011年以前 | E106: 10年以上 | F106: 450.00 | G106: 450.00
A107: 102 | B107: 茆汉奇 | D107: 2011年以前 | E107: 10年以上 | F107: 440.00 | G107: 440.00
A108: 103 | B108: 张骏 | D108: 2011年以前 | E108: 10年以上 | F108: 370.26 | G108: 370.26
A109: 104 | B109: 中国工商企业咨询服务中心信息部 | D109: 2011年以前 | E109: 10年以上 | F109: 360.00 | G109: 360.00
A110: 105 | B110: 北京天赐园食品公司 | D110: 2011年以前 | E110: 10年以上 | F110: 248.50 | G110: 248.50
A111: 106 | B111: 南京市白宫大酒店 | D111: 2011年以前 | E111: 10年以上 | F111: 100.00 | G111: 100.00
A112: 107 | B112: 南京市糖果冷食厂 | D112: 2011年以前 | E112: 10年以上 | F112: 100.00 | G112: 100.00
A113: 108 | B113: 烟草许可证 | D113: 2011年以前 | E113: 10年以上 | F113: 100.00 | G113: 100.00
A114: 109 | B114: 省建行公积金回单柜 | D114: 2011年以前 | E114: 10年以上 | F114: 20.00 | G114: 20.00
A115: 110 | B115: 统筹退休基金 | D115: 2011年以前 | E115: 10年以上 | F115: 559,103.72 | G115: 559,103.72
A116: 111 | B116: 医疗保险 | D116: 2011年以前 | E116: 10年以上 | F116: 179,416.48 | G116: 179,416.48
A117: 112 | B117: 失业保险基金 | D117: 2011年以前 | E117: 10年以上 | F117: 127,657.79 | G117: 127,657.79
A118: 113 | B118: 大病医疗救助基金 | D118: 2011年以前 | E118: 10年以上 | F118: 14,910.00 | G118: 14,910.00
A119: 114 | B119: 房屋维修 | D119: 2011年以前 | E119: 10年以上 | F119: 6,246.17 | G119: 6,246.17
A120: 115 | B120: 高淳县宏利建筑安装工程公司 | D120: 2011年以前 | E120: 10年以上 | F120: 663.70 | G120: 663.70
A121: 116 | B121: 北京大成（南京）律师事务所 | C121: 诉讼费 | D121: 2021年 | E121: 1年以内 | F121: 20,000.00 | G121: 20,000.00
A122: 117 | B122: 集团内部存款 | C122: 集团内部存款 | D122: 2021年 | E122: 1年以内 | F122: 17,570,798.68 | G122: 17,570,798.68
A123: 118 | B123: 上海江苏大厦 | D123: 2011年以前 | E123: 10年以上 | F123: 2,015,400.00 | G123: 2,015,400.00
A124: 合 计 | F124: =SUM(F6:F123) -> 108,214,086.56 | G124: =SUM(G6:G123) -> 108,214,086.56
A125: 减：其他应收款坏账准备 | F125: =88619670.28+2015400-20000 -> 90,615,070.28
A126: 减：评估预期信用损失 | G126: =F125 -> 90,615,070.28
A127: 合 计 | F127: =F124-F125 -> 17,599,016.28 | G127: =G124-G126 -> 17,599,016.28
A128: =基础信息!A4 -> 被评估单位填表人：俞蕊 | G128: =基础信息!A3 -> 评估人员：李美花、刘婧
A129: =基础信息!A5 -> 填表日期：2021年8月27日

Sheet 3-8存货汇总 (hidden)
A1: 存货评估汇总表
A2: =基础信息!A1 -> 评估基准日：2021年6月30日
F3: 表3-8
A4: =基础信息!A2 -> 被评估单位：江苏省糖烟酒总公司 | F4: 金额单位：人民币元
A5: 编号 | B5: 科目名称 | C5: 账面价值 | D5: 评估价值 | E5: 增减值 | F5: 增值率%
A6: 3-8-1 | B6: 材料采购（在途物资） | C6: ='3-8-1材料采购（在途物资）'!F27 -> 0 | D6: ='3-8-1材料采购（在途物资）'!I27 -> 0 | E6: =D6-C6 -> 0 | F6: =IF(C6=0,0,E6/C6*100) -> 0
A7: 3-8-2 | B7: 原材料 | C7: ='3-8-2原材料'!G22 -> 0 | D7: ='3-8-2原材料'!J22 -> 0 | E7: =D7-C7 -> 0 | F7: =IF(C7=0,0,E7/C7*100) -> 0
A8: 3-8-3 | B8: 在库周转材料 | C8: ='3-8-3在库周转材料'!G28 -> 0 | D8: ='3-8-3在库周转材料'!J28 -> 0 | E8: 0 | F8: 0
A9: 3-8-4 | B9: 委托加工物资 | C9: ='3-8-4委托加工物资'!G28 -> 0 | D9: ='3-8-4委托加工物资'!J28 -> 0 | E9: 0 | F9: 0
A10: 3-8-5 | B10: 产成品（库存商品） | C10: ='3-8-5产成品（库存商品）'!H22 -> 0 | D10: ='3-8-5产成品（库存商品）'!M22 -> 0 | E10: 0 | F10: 0
A11: 3-8-6 | B11: 在产品（自制半成品） | C11: ='3-8-6在产品（自制半成品）'!F28 -> 0 | D11: ='3-8-6在产品（自制半成品）'!I28 -> 0 | E11: 0 | F11: 0
A12: 3-8-7 | B12: 发出商品 | C12: ='3-8-7发出商品'!G28 -> 0 | D12: ='3-8-7发出商品'!J28 -> 0 | E12: 0 | F12: 0
A13: 3-8-8 | B13: 低值易耗品 | C13: ='3-8-8低值易耗品'!F28 -> 0 | D13: ='3-8-8低值易耗品'!J28 -> 0 | E13: 0 | F13: 0
A20: 合 计 | C20: =SUM(C6:C19) -> 0 | D20: =SUM(D6:D19) -> 0 | E20: =D20-C20 -> 0 | F20: 0
A21: 减：存货跌价准备
A22: 合 计 | C22: =C20-C21 -> 0 | D22: =D20-D21 -> 0 | E22: =D22-C22 -> 0 | F22: 0
D23: =基础信息!A3 -> 评估人员：李美花、刘婧

Sheet 3-8-1材料采购（在途物资） (hidden)
A1: 存货—材料采购（在途物资）评估明细表
A2: =基础信息!A1 -> 评估基准日：2021年6月30日
L3: 表3-8-1
A4: =基础信息!A2 -> 被评估单位：江苏省糖烟酒总公司 | L4: 金额单位：人民币元
A5: 序号 | B5: 名称及规格型号 | C5: 计量单位 | D5: 账面价值 | G5: 评估价值 | J5: 增减值 | K5: 增值率% | L5: 备注
D6: 数量 | E6: 单价 | F6: 金额 | G6: 实际数量 | H6: 评估单价 | I6: 金额
A27: 合 计 | F27: =SUM(F7:F26) -> 0 | G27: =SUM(G7:G26) -> 0 | I27: =SUM(I7:I26) -> 0
A28: =基础信息!A4 -> 被评估单位填表人：俞蕊 | H28: =基础信息!A3 -> 评估人员：李美花、刘婧
A29: =基础信息!A5 -> 填表日期：2021年8月27日

Sheet 3-8-2原材料 (hidden)
A1: 存货—原材料评估明细表
A2: =基础信息!A1 -> 评估基准日：2021年6月30日
M3: 表3-8-2
A4: =基础信息!A2 -> 被评估单位：江苏省糖烟酒总公司 | M4: 金额单位：人民币元
A5: 序号 | B5: 名称及规格型号 | C5: 计量单位 | D5: 存放地点 | E5: 账面价值 | H5: 评估价值 | K5: 增减值 | L5: 增值率% | M5: 备注
E6: 数量 | F6: 单价 | G6: 金额 | H6: 实际数量 | I6: 评估单价 | J6: 金额
A22: 合计 | E22: =SUM(E7:E21) -> 0 | G22: =SUM(G7:G21) -> 0 | H22: =SUM(H7:H21) -> 0 | J22: =SUM(J7:J21) -> 0
A23: =基础信息!A4 -> 被评估单位填表人：俞蕊 | I23: =基础信息!A3 -> 评估人员：李美花、刘婧
A24: =基础信息!A5 -> 填表日期：2021年8月27日

Sheet 3-8-3在库周转材料 (hidden)
A1: 存货—在库周转材料评估明细表
A2: =基础信息!A1 -> 评估基准日：2021年6月30日
M3: 表3-8-3
A4: =基础信息!A2 -> 被评估单位：江苏省糖烟酒总公司 | M4: 金额单位：人民币元
A5: 序号 | B5: 名称及规格型号 | C5: 计量单位 | D5: 存放地点 | E5: 账面价值 | H5: 评估价值 | K5: 增减值 | L5: 增值率% | M5: 备注
E6: 数量 | F6: 单价 | G6: 金额 | H6: 实际数量 | I6: 评估单价 | J6: 金额
A28: 合计 | G28: =SUM(G7:G27) -> 0 | H28: =SUM(H7:H27) -> 0 | J28: =SUM(J7:J27) -> 0
A29: =基础信息!A4 -> 被评估单位填表人：俞蕊 | I29: =基础信息!A3 -> 评估人员：李美花、刘婧
A30: =基础信息!A5 -> 填表日期：2021年8月27日

Sheet 3-8-4委托加工物资 (hidden)
A1: 存货—委托加工物资评估明细表
A2: =基础信息!A1 -> 评估基准日：2021年6月30日
L3: 表3-8-4
A4: =基础信息!A2 -> 被评估单位：江苏省糖烟酒总公司 | M4: 金额单位：人民币元
A5: 序号 | B5: 名称及规格型号 | C5: 加工单位名称 | D5: 计量单位 | E5: 账面价值 | H5: 评估价值 | K5: 增减值 | L5: 增值率% | M5: 备注
E6: 数量 | F6: 单价 | G6: 金额 | H6: 实际数量 | I6: 评估单价 | J6: 金额
A28: 合 计 | G28: =SUM(G7:G27) -> 0 | H28: =SUM(H7:H27) -> 0 | J28: =SUM(J7:J27) -> 0
A29: =基础信息!A4 -> 被评估单位填表人：俞蕊 | H29: =基础信息!A3 -> 评估人员：李美花、刘婧
A30: =基础信息!A5 -> 填表日期：2021年8月27日

Sheet 3-8-5产成品（库存商品） (hidden)
A1: 存货—产成品（库存商品、开发产品、农产品）评估明细表
A2: =基础信息!A1 -> 评估基准日：2021年6月30日
P3: 表3-8-5
A4: =基础信息!A2 -> 被评估单位：江苏省糖烟酒总公司 | P4: 金额单位：人民币元
A5: 序号 | B5: 名 称 | C5: 规格型号 | D5: 计量单位 | E5: 账面价值 | I5: 评估价值 | N5: 增减值 | O5: 增值率% | P5: 备注
E6: 数量 | F6: 外币单价 | G6: 人民币单价 | H6: 金额 | I6: 实际数量 | J6: 外币单价 | K6: 人民币单价 | L6: 汇率 | M6: 金额
A22: 合 计 | H22: =SUM(H7:H21) -> 0 | M22: =SUM(M7:M21) -> 0
A23: =基础信息!A4 -> 被评估单位填表人：俞蕊 | J23: =基础信息!A3 -> 评估人员：李美花、刘婧
A24: =基础信息!A5 -> 填表日期：2021年8月27日

Sheet 3-8-6在产品（自制半成品） (hidden)
A1: 存货—在产品（自制半成品）评估明细表
A2: =基础信息!A1 -> 评估基准日：2021年6月30日
L3: 表3-8-6
A4: =基础信息!A2 -> 被评估单位：江苏省糖烟酒总公司 | L4: 金额单位：人民币元
A5: 序号 | B5: 名称及规格型号 | C5: 计量单位 | D5: 账面价值 | G5: 评估价值 | J5: 增减值 | K5: 增值率% | L5: 备注
D6: 数量 | E6: 单价 | F6: 金额 | G6: 实际数量 | H6: 评估单价 | I6: 金额
A28: 合 计 | F28: =SUM(F7:F27) -> 0 | I28: =SUM(I7:I27) -> 0
A29: =基础信息!A4 -> 被评估单位填表人：俞蕊 | H29: =基础信息!A3 -> 评估人员：李美花、刘婧
A30: =基础信息!A5 -> 填表日期：2021年8月27日

Sheet 3-8-7发出商品 (hidden)
A1: 存货—发出商品评估明细表
A2: =基础信息!A1 -> 评估基准日：2021年6月30日
L3: 表3-8-7
A4: =基础信息!A2 -> 被评估单位：江苏省糖烟酒总公司 | M4: 金额单位：人民币元
A5: 序号 | B5: 商品名称 | C5: 对方单位名称 | D5: 计量单位 | E5: 账面价值 | H5: 评估价值 | K5: 增减值 | L5: 增值率% | M5: 备注
E6: 数量 | F6: 单价 | G6: 金额 | H6: 实际数量 | I6: 评估单价 | J6: 金额
A28: 合 计 | G28: =SUM(G7:G27) -> 0 | J28: =SUM(J7:J27) -> 0
A29: =基础信息!A4 -> 被评估单位填表人：俞蕊 | H29: =基础信息!A3 -> 评估人员：李美花、刘婧
A30: =基础信息!A5 -> 填表日期：2021年8月27日

Sheet 3-8-8低值易耗品 (hidden)
A1: 存货—低值易耗品评估明细表
A2: =基础信息!A1 -> 评估基准日：2021年6月30日
M3: 表3-8-8
A4: =基础信息!A2 -> 被评估单位：江苏省糖烟酒总公司 | M4: 金额单位：人民币元
A5: 序号 | B5: 名称及规格型号 | C5: 单位 | D5: 单价 | E5: 账面价值（摊余价值） | G5: 实际数量 | H5: 评估价值 | K5: 增减值 | L5: 增值率% | M5: 备注
E6: 数量 | F6: 金额 | H6: 评估原价 | I6: 成新率% | J6: 金额
J7: =F7 -> 0
J8: =F8 -> 0
J9: 0
J10: 0
J11: 0
J12: 0
J13: 0
J14: 0
J15: 0
A28: 合 计 | F28: =SUM(F7:F27) -> 0 | J28: =SUM(J7:J27) -> 0
A29: =基础信息!A4 -> 被评估单位填表人：俞蕊 | H29: =基础信息!A3 -> 评估人员：李美花、刘婧
A30: =基础信息!A5 -> 填表日期：2021年8月27日

Sheet 3-9持有待售资产 (hidden)

Sheet 3-10一年到期非流动资产 (hidden)
A1: 一年内到期的非流动资产评估明细表
A2: =基础信息!A1 -> 评估基准日：2021年6月30日
I3: 表3-10
A4: =基础信息!A2 -> 被评估单位：江苏省糖烟酒总公司 | I4: 金额单位：人民币元
A5: 序号 | B5: 项目及内容 | C5: 发生日期 | D5: 结算内容 | E5: 账面价值 | F5: 评估价值 | G5: 增减值 | H5: 增值率% | I5: 备注
A28: 合 计 | E28: =SUM(E6:E27) -> 0 | F28: =SUM(F6:F27) -> 0
A29: =基础信息!A4 -> 被评估单位填表人：俞蕊 | F29: =基础信息!A3 -> 评估人员：李美花、刘婧
A30: =基础信息!A5 -> 填表日期：2021年8月27日

Sheet 3-11其他流动资产
A1: 其他流动资产评估明细表
A2: =基础信息!A1 -> 评估基准日：2021年6月30日
J3: 表3-11
A4: =基础信息!A2 -> 被评估单位：江苏省糖烟酒总公司 | J4: 金额单位：人民币元
A5: 序号 | B5: 项目及内容 | C5: 发生日期 | D5: 结算内容 | E5: 成本 | F5: 账面价值 | G5: 评估价值 | H5: 增减值 | I5: 增值率% | J5: 备注
A6: 1 | B6: 已交增值税 | C6: 2018年 | D6: 已交增值税 | G6: 683,654.81 | J6: 应交税费负数重分类
A7: 2 | B7: 已交消费税 | C7: 2015-09-01 | D7: 已交消费税 | G7: 4,267.25 | J7: 应交税费负数重分类
A8: 3 | B8: 已交企业所得税 | C8: 2012年以前 | D8: 已交企业所得税 | G8: 13,217.97 | J8: 应交税费负数重分类
A9: 4 | B9: 已代扣代缴个人所得税 | C9: 2020年 | D9: 已代扣代缴个人所得税 | G9: 188.27 | J9: 应交税费负数重分类
A22: 合 计 | F22: =SUM(F6:F21) -> 0 | G22: =SUM(G6:G21) -> 701,328.30
A23: =基础信息!A4 -> 被评估单位填表人：俞蕊 | F23: =基础信息!A3 -> 评估人员：李美花、刘婧
A24: =基础信息!A5 -> 填表日期：2021年8月27日

Sheet 4-非流动资产汇总
A1: 非流动资产评估汇总表
A2: =基础信息!A1 -> 评估基准日：2021年6月30日
F3: 表4
A4: =基础信息!A2 -> 被评估单位：江苏省糖烟酒总公司 | F4: 金额单位：人民币元
A5: 编号 | B5: 科目名称 | C5: 账面价值 | D5: 评估价值 | E5: 增减值 | F5: 增值率%
A6: 4-1 | B6: 可供出售金融资产 | C6: ='4-1可供出售金融资产汇总'!C25 -> 500,000.00 | D6: ='4-1可供出售金融资产汇总'!D25 -> 496,996.36 | E6: =D6-C6 -> -3,003.64 | F6: =IF(C6=0,0,E6/C6*100) -> -0.60
A7: 4-2 | B7: 持有至到期投资
A8: 4-3 | B8: 长期应收款
A9: 4-4 | B9: 长期股权投资
A10: 4-5 | B10: 投资性房地产
A11: 4-6 | B11: 固定资产 | C11: ='4-6固定资产汇总'!D22 -> 145,990,355.88 | D11: ='4-6固定资产汇总'!F22 -> 173,940,400.00 | E11: =D11-C11 -> 27,950,044.12 | F11: =IF(C11=0,0,E11/C11*100) -> 19.15
A12: 4-7 | B12: 在建工程
A13: 4-8 | B13: 生产性生物资产
A14: 4-9 | B14: 油气资产
A15: 4-10 | B15: 无形资产 | C15: ='4-10无形资产汇总'!C22 -> 0.00 | D15: ='4-10无形资产汇总'!D22 -> 0.00 | E15: =D15-C15 -> 0 | F15: =IF(C15=0,0,E15/C15*100) -> 0
A16: 4-11 | B16: 开发支出
A17: 4-12 | B17: 商誉
A18: 4-13 | B18: 长期待摊费用
A19: 4-14 | B19: 递延所得税资产
A20: 4-15 | B20: 其他非流动资产
A21: 合 计 | C21: =SUM(C6:C20) -> 146,490,355.88 | D21: =SUM(D6:D20) -> 174,437,396.36 | E21: =D21-C21 -> 27,947,040.48 | F21: =IF(C21=0,0,E21/C21*100) -> 19.08
D22: =基础信息!A3 -> 评估人员：李美花、刘婧

Sheet 4-1可供出售金融资产汇总
A1: 可供出售金融资产评估汇总表
A2: =基础信息!A1 -> 评估基准日：2021年6月30日
E3: 表4-1
A4: =基础信息!A2 -> 被评估单位：江苏省糖烟酒总公司 | F4: 金额单位：人民币元
A5: 编号 | B5: 科目名称 | C5: 账面价值 | D5: 评估价值 | E5: 增减值 | F5: 增值率%
A6: 4-1-1 | B6: 可供出售金融资产-股票投资
A7: 4-1-2 | B7: 可供出售金融资产-债券投资
A8: 4-1-3 | B8: 可供出售金融资产-其他投资 | C8: ='4-1-3可出售-其他'!F27 -> 500,000.00 | D8: ='4-1-3可出售-其他'!H27 -> 496,996.36 | E8: =D8-C8 -> -3,003.64 | F8: =IF(C8=0,0,E8/C8*100) -> -0.60
A25: 合 计 | C25: =SUM(C6:C24) -> 500,000.00 | D25: =SUM(D6:D24) -> 496,996.36 | E25: =D25-C25 -> -3,003.64 | F25: =IF(C25=0,0,E25/C25*100) -> -0.60
D26: =基础信息!A3 -> 评估人员：李美花、刘婧

Sheet 4-1-1可出售-股票 (hidden)
A1: 可供出售金融资产—股票投资评估明细表
A2: =基础信息!A1 -> 评估基准日：2021年6月30日
L3: 表4-1-1
A4: =基础信息!A2 -> 被评估单位：江苏省糖烟酒总公司 | L4: 金额单位：人民币元
A5: 序号 | B5: 被投资单位名称 | C5: 股票性质 | D5: 投资日期 | E5: 持股数量 | F5: 基准日市价 | G5: 取得成本 | H5: 账面价值 | I5: 评估价值 | J5: 增减值 | K5: 增值率% | L5: 备注
A25: 合 计 | H25: =SUM(H6:H24) -> 0 | I25: =SUM(I6:I24) -> 0
A26: 减：减值准备
A27: 合 计 | H27: =H25-H26 -> 0 | I27: =I25-I26 -> 0
A28: =基础信息!A4 -> 被评估单位填表人：俞蕊 | G28: =基础信息!A3 -> 评估人员：李美花、刘婧
A29: =基础信息!A5 -> 填表日期：2021年8月27日

Sheet 4-1-2可出售-债券 (hidden)
A1: 可供出售金融资产—债券投资评估明细表
A2: =基础信息!A1 -> 评估基准日：2021年6月30日
L3: 表4-1-2
A4: =基础信息!A2 -> 被评估单位：江苏省糖烟酒总公司 | L4: 金额单位：人民币元
A5: 序号 | B5: 被投资单位名称 | C5: 债券种类 | D5: 发行日期 | E5: 到期日 | F5: 票面利率% | G5: 成本（面值） | H5: 账面价值 | I5: 评估价值 | J5: 增减值 | K5: 增值率% | L5: 备注
A26: 合 计 | H26: =SUM(H6:H25) -> 0 | I26: =SUM(I6:I25) -> 0
A27: 减：减值准备
A28: 合 计 | H28: =H26-H27 -> 0 | I28: =I26-I27 -> 0
A29: =基础信息!A4 -> 被评估单位填表人：俞蕊 | G29: =基础信息!A3 -> 评估人员：李美花、刘婧
A30: =基础信息!A5 -> 填表日期：2021年8月27日

Sheet 4-1-3可出售-其他
A1: 可供出售金融资产—其他投资评估明细表
A2: =基础信息!A1 -> 评估基准日：2021年6月30日
K3: 表4-1-3
A4: =基础信息!A2 -> 被评估单位：江苏省糖烟酒总公司 | K4: 金额单位：人民币元
A5: 序号 | B5: 被投资单位名称 | C5: 投资日期 | D5: 持股比例 | E5: 成本 | F5: 账面价值 | G5: 基准日被投资单位净资产 | H5: 评估价值 | I5: 增减值 | J5: 增值率% | K5: 备注
A6: 1 | B6: 北京中糖酒类有限责任公司 | C6: 2018-09-04 | D6: 5% | E6: =F6 -> 500,000.00 | F6: 500,000.00 | G6: 9,939,927.28 | H6: =G6*D6 -> 496,996.36
A25: 合 计 | F25: =SUM(F6:F24) -> 500,000.00 | H25: =SUM(H6:H24) -> 496,996.36
A26: 减：减值准备
A27: 合 计 | F27: =F25-F26 -> 500,000.00 | H27: =H25-H26 -> 496,996.36
A28: =基础信息!A4 -> 被评估单位填表人：俞蕊 | E28: =基础信息!A3 -> 评估人员：李美花、刘婧
A29: =基础信息!A5 -> 填表日期：2021年8月27日

Sheet 4-2持有到期投资 (hidden)
A1: 持有至到期投资评估明细表
A2: =基础信息!A1 -> 评估基准日：2021年6月30日
K3: 表4-2
A4: =基础信息!A2 -> 被评估单位：江苏省糖烟酒总公司 | J4: 金额单位：人民币元
A5: 序号 | B5: 被投资单位名称 | C5: 投资类别 | D5: 投资日期 | E5: 到期日 | F5: 票面利率% | G5: 投资成本 | H5: 账面价值 | I5: 评估价值 | J5: 增减值 | K5: 增值率% | L5: 备注
A26: 合 计 | H26: =SUM(H6:H25) -> 0 | I26: =SUM(I6:I25) -> 0
A27: 减：持有至到期投资减值准备
A28: 合 计 | H28: =H26-H27 -> 0 | I28: =I26-I27 -> 0
A29: =基础信息!A4 -> 被评估单位填表人：俞蕊 | G29: =基础信息!A3 -> 评估人员：李美花、刘婧
A30: =基础信息!A5 -> 填表日期：2021年8月27日

Sheet 4-3长期应收 (hidden)
A1: 长期应收款评估明细表
A2: =基础信息!A1 -> 评估基准日：2021年6月30日
H3: 表4-3
A4: =基础信息!A2 -> 被评估单位：江苏省糖烟酒总公司 | H4: 金额单位：人民币元
A5: 序号 | B5: 欠款单位名称（结算对象) | C5: 业务内容 | D5: 发生日期 | E5: 账面价值 | F5: 评估价值 | G5: 增减值 | H5: 增值率% | I5: 备注
A26: 合 计 | E26: =SUM(E6:E25) -> 0 | F26: =SUM(F6:F25) -> 0
A27: 减：长期应收款坏账准备
A28: 合 计 | E28: =E26-E27 -> 0 | F28: =F26-F27 -> 0
A29: =基础信息!A4 -> 被评估单位填表人：俞蕊 | E29: =基础信息!A3 -> 评估人员：李美花、刘婧
A30: =基础信息!A5 -> 填表日期：2021年8月27日

Sheet 4-4股权投资
A1: 长期股权投资评估明细表
A2: =基础信息!A1 -> 评估基准日：2021年6月30日
K3: 表4-4
A4: =基础信息!A2 -> 被评估单位：江苏省糖烟酒总公司 | K4: 金额单位：人民币元
A5: 序号 | B5: 被投资单位名称 | C5: 投资日期 | D5: 协议投资期限 | E5: 持股比例（%） | F5: 投资成本 | G5: 账面价值 | H5: 基准日被投资单位净资产 | I5: 评估价值 | J5: 增减值 | K5: 增值率% | L5: 备注
A6: 1 | B6: 南京商厦股份有限公司 | G6: 290,000.00 | I6: 0.00 | L6: 2003年以前已被处置
A7: 2 | B7: 南京天宇新股份有限公司 | G7: 12,800.00 | I7: 0.00 | L7: 已注销
A8: 3 | B8: 江苏苏糖物流有限公司 | C8: 2003-04-09 | E8: 68.00% | G8: 340,000.00 | H8: -18,220,745.58 | I8: 0.00 | L8: 正在办理注销手续
A9: 4 | B9: 宿迁好捷利食品公司 | G9: 262,500.00 | I9: 0.00 | L9: 未查询到信息
A10: 5 | B10: 江苏省糖烟酒总公司中丹销售公司 | G10: 1,144,575.42 | I10: 0.00 | L10: 已注销
A11: 6 | B11: 江苏五粮神酒业发展有限公司 | C11: 1994-12-21 | E11: 67.62% | G11: 2,028,500.00 | I11: 0.00 | L11: 已注销
A12: 7 | B12: 江苏省康力鸽业有限公司 | C12: 1994-12-16 | E12: 90.00% | G12: 3,375,000.00 | I12: 0.00 | L12: 已注销
A13: 8 | B13: 江苏佳惠连锁超市商店 | C13: 1994-11-29 | E13: 100.00% | G13: 8,000,000.00 | I13: 0.00 | L13: 已注销
A14: 9 | B14: 江苏天久计算机软件工程有限责任公司 | C14: 1998-05-26 | E14: 51.00% | G14: 295,800.00 | I14: 0.00 | L14: 已注销
A15: 10 | B15: 江苏省糖烟酒总公司浦东分公司 | C15: 1993-09-09 | E15: 100.00% | G15: 1,200,000.00 | I15: 0.00 | L15: 已注销
A16: 11 | B16: 江苏省糖烟酒总公司上海分公司 | G16: 3,348,044.59 | I16: 0.00 | L16: 已注销
A17: 12 | B17: 江苏苏糖贸易发展有限公司 | C17: 1998-06-26 | E17: 85.45% | G17: 9,400,000.00 | I17: 0.00 | L17: 已注销
A18: 13 | B18: 江苏苏糖烟酒有限公司 | G18: -613,400.00 | I18: 0.00 | L18: 已转让
A19: 14 | B19: 江苏鸽铃酒家 | C19: 1994-10-12 | E19: 100.00% | G19: 0.00 | I19: 0.00 | L19: 存续，不经营，无实际控制权
A20: 15 | B20: 江苏省商业发展有限公司 | C20: 1993-06-23 | E20: 34.88% | G20: 0.00 | I20: 0.00 | L20: 已注销
A21: 16 | B21: 江苏苏糖调味品有限公司 | E21: 30.00% | G21: 0.00 | I21: 0.00 | L21: 已注销
A25: 合 计 | F25: =SUM(F6:F24) -> 0 | G25: =SUM(G6:G24) -> 29,083,820.01 | I25: =SUM(I6:I24) -> 0.00
A26: 减：长期股权投资减值准备 | G26: 29,083,820.01
A27: 合 计 | F27: =F25-F26 -> 0 | G27: =G25-G26 -> 0.00 | I27: =I25-I26 -> 0.00 | J27: =I27-G27 -> 0.00
A28: =基础信息!A4 -> 被评估单位填表人：俞蕊 | G28: =基础信息!A3 -> 评估人员：李美花、刘婧
A29: =基础信息!A5 -> 填表日期：2021年8月27日

Sheet 4-5-1投资性房地产 (hidden)
A1: 投资性房地产——房屋评估明细表
A2: （采用成本模式计量）
A3: =基础信息!A1 -> 评估基准日：2021年6月30日
O4: 表4-5
A5: =基础信息!A2 -> 被评估单位：江苏省糖烟酒总公司 | O5: 金额单位：人民币元
A6: 序号 | B6: 权证编号 | C6: 房屋名称 | D6: 来源（外购、自建、自用转入、存货转入等） | E6: 结构 | F6: 建成 年月 | G6: 计量单位 | H6: 建筑面积 | I6: 成本单价(元/m2) | J6: 账面价值 | L6: 评估价值 | O6: 增值率% | P6: 评估单价(元/m2) | Q6: 备注
J7: 原值 | K7: 净值 | L7: 原值 | M7: 成新率% | N7: 净值
L8: =ROUND(P8*H8,-2) -> 0 | N8: =L8 -> 0
L9: =ROUND(P9*H9,-2) -> 0 | N9: =L9 -> 0
L10: =ROUND(P10*H10,-2) -> 0 | N10: =L10 -> 0
A25: 合 计 | J25: =SUM(J8:J24) -> 0 | K25: =SUM(K8:K24) -> 0 | L25: =SUM(L8:L24) -> 0 | N25: =SUM(N8:N24) -> 0
A26: 减：投资性房地产减值准备
A27: 合 计 | J27: =J25-J26 -> 0 | K27: =K25-K26 -> 0 | L27: =L25-L26 -> 0 | N27: =N25-N26 -> 0 | O27: =(N27-K27)/K27*100 -> 
A28: =基础信息!A4 -> 被评估单位填表人：俞蕊 | J28: =基础信息!A3 -> 评估人员：李美花、刘婧
A29: =基础信息!A5 -> 填表日期：2021年8月27日

Sheet 4-5-2投资性房地产 (hidden)
A1: 投资性房地产——房屋评估明细表
A2: （采用公允价值模式计量）
A3: =基础信息!A1 -> 评估基准日：2021年6月30日
P4: 表4-5
A5: =基础信息!A2 -> 被评估单位：江苏省糖烟酒总公司 | P5: 金额单位：人民币元
A6: 序号 | B6: 权证编号 | C6: 房屋名称 | D6: 来源（外购、自建、自用转入、存货转入等） | E6: 结构 | F6: 建成 年月 | G6: 计量单位 | H6: 建筑 面积 | I6: 成本单价(元/m2) | J6: 原始入帐价值 （转入日公允价值） | L6: 账面价值 | M6: 评估价值 | N6: 增减值 | O6: 增值率% | P6: 备注 | Q6: 现场勘察简单记录 | R6: 证载权利人
A25: 合 计 | L25: =SUM(L8:L24) -> 0 | M25: =SUM(M8:M24) -> 0
A26: =基础信息!A4 -> 被评估单位填表人：俞蕊 | J26: =基础信息!A3 -> 评估人员：李美花、刘婧
A27: =基础信息!A5 -> 填表日期：2021年8月27日

Sheet 4-5-3投资性地产 (hidden)
A1: 投资性房地产——土地使用权评估明细表
A2: （采用成本模式计量）
A3: =基础信息!A1 -> 评估基准日：2021年6月30日
P4: 表4-5
A5: =基础信息!A2 -> 被评估单位：江苏省糖烟酒总公司 | Q5: 金额单位：人民币元
A6: 序号 | B6: 土地权证编号 | C6: 宗地名称 | D6: 来源（外购、自建、自用转入、存货转入等） | E6: 土地位置 | F6: 取得日期 | G6: 用地性质 | H6: 土地用途 | I6: 准用年限 | J6: 开发程度 | K6: 面积(m2) | L6: 原始入账价值 | M6: 账面价值 | N6: 评估价值 | O6: 增减值 | P6: 增值率% | Q6: 备注
A24: 合 计 | M24: =SUM(M7:M23) -> 0 | N24: =SUM(N7:N23) -> 0
A25: 减：投资性房地产减值准备
A26: 合 计 | M26: =M24-M25 -> 0 | N26: =N24-N25 -> 0
A27: =基础信息!A4 -> 被评估单位填表人：俞蕊 | K27: =基础信息!A3 -> 评估人员：李美花、刘婧
A28: =基础信息!A5 -> 填表日期：2021年8月27日

Sheet 4-5-4投资性地产 (hidden)
A1: 投资性房地产——土地使用权评估明细表
A2: （采用公允价值模式计量）
A3: =基础信息!A1 -> 评估基准日：2021年6月30日
Q4: 表4-5
A5: =基础信息!A2 -> 被评估单位：江苏省糖烟酒总公司 | Q5: 金额单位：人民币元
A6: 序号 | B6: 土地权证编号 | C6: 宗地名称 | D6: 来源（外购、自建、自用转入、存货转入等） | E6: 土地位置 | F6: 取得日期 | G6: 用地性质 | H6: 土地用途 | I6: 准用年限 | J6: 开发程度 | K6: 面积(m2) | L6: 原始入账价值（转入日公允价值） | M6: 账面价值 | N6: 评估价值 | O6: 增减值 | P6: 增值率% | Q6: 备注
A27: 合 计 | M27: =SUM(M7:M26) -> 0 | N27: =SUM(N7:N26) -> 0
A28: =基础信息!A4 -> 被评估单位填表人：俞蕊 | K28: =基础信息!A3 -> 评估人员：李美花、刘婧
A29: =基础信息!A5 -> 填表日期：2021年8月27日

Sheet 4-6固定资产汇总
A1: 固定资产评估汇总表
A2: =基础信息!A1 -> 评估基准日：2021年6月30日
H3: 表4-6
A4: =基础信息!A2 -> 被评估单位：江苏省糖烟酒总公司 | G4: 金额单位：人民币元
A5: 编号 | B5: 科目名称 | C5: 账面价值 | E5: 评估价值 | G5: 增值额 | I5: 增值率%
C6: 原值 | D6: 净值 | E6: 原值 | F6: 净值 | G6: 原值 | H6: 净值 | I6: 原值 | J6: 净值
B7: 房屋建筑物类合计 | C7: =C8+C9+C10 -> 166,043,601.88 | D7: 145,990,057.92 | E7: 173,939,400.00 | F7: 173,939,400.00 | G7: 7,895,798.12 | H7: 27,949,342.08 | I7: =IF(C7=0,0,G7/C7*100) -> 4.76 | J7: =IF(D7=0,0,H7/D7*100) -> 19.14
A8: 4-6-1 | B8: 固定资产—房屋建筑物 | C8: ='4-6-1房屋建筑物'!I22 -> 166,043,601.88 | D8: ='4-6-1房屋建筑物'!J22 -> 145,990,057.92 | E8: ='4-6-1房屋建筑物'!K22 -> 173,939,400.00 | F8: ='4-6-1房屋建筑物'!M22 -> 173,939,400.00 | G8: =E8-C8 -> 7,895,798.12 | H8: =F8-D8 -> 27,949,342.08 | I8: =IF(C8=0,0,G8/C8*100) -> 4.76 | J8: =IF(D8=0,0,H8/D8*100) -> 19.14
A9: 4-6-2 | B9: 固定资产—构筑物及其他辅助设施
A10: 4-6-3 | B10: 固定资产—管道及沟槽
B13: 设备类合计 | C13: =C14+C15+C16+C17 -> 7,449.00 | D13: 297.96 | E13: 1,000.00 | F13: 1,000.00 | G13: -6,449.00 | H13: 702.04 | I13: =IF(C13=0,0,G13/C13*100) -> -86.58 | J13: =IF(D13=0,0,H13/D13*100) -> 235.62
A14: 4-6-4 | B14: 固定资产—机器设备
A15: 4-6-5 | B15: 固定资产—运输设备
A16: 4-6-6 | B16: 固定资产—电子设备 | C16: ='4-6-6电子设备'!J23 -> 7,449.00 | D16: ='4-6-6电子设备'!K23 -> 297.96 | E16: ='4-6-6电子设备'!L23 -> 1,000.00 | F16: ='4-6-6电子设备'!N23 -> 1,000.00 | G16: =E16-C16 -> -6,449.00 | H16: =F16-D16 -> 702.04 | I16: =IF(C16=0,0,G16/C16*100) -> -86.58 | J16: =IF(D16=0,0,H16/D16*100) -> 235.62
A17: 4-6-7 | B17: 固定资产—其他设备
A20: 固定资产合计 | C20: =C7+C13 -> 166,051,050.88 | D20: 145,990,355.88 | E20: 173,940,400.00 | F20: 173,940,400.00 | G20: 7,889,349.12 | H20: 27,950,044.12 | I20: =IF(C20=0,0,G20/C20*100) -> 4.75 | J20: =IF(D20=0,0,H20/D20*100) -> 19.15
A21: 减：固定资产减值准备
A22: 固定资产合计 | C22: =C20-C21 -> 166,051,050.88 | D22: 145,990,355.88 | E22: 173,940,400.00 | F22: 173,940,400.00 | G22: 7,889,349.12 | H22: 27,950,044.12 | I22: =IF(C22=0,0,G22/C22*100) -> 4.75 | J22: =IF(D22=0,0,H22/D22*100) -> 19.15
E23: =基础信息!A3 -> 评估人员：李美花、刘婧

Sheet 4-6-1房屋建筑物
A1: 固定资产—房屋建筑物评估明细表
A2: =基础信息!A1 -> 评估基准日：2021年6月30日
O3: 表4-6-1
A4: =基础信息!A2 -> 被评估单位：江苏省糖烟酒总公司 | P4: 金额单位：人民币元
A5: 序号 | B5: 权证编号 | C5: 建筑物名称 | D5: 用途 | E5: 结构 | F5: 建成 年月 | G5: 建筑面积（㎡） | H5: 成本单价(元/m2) | I5: 账面价值 | K5: 评估价值 | N5: 增值率% | O5: 评估单价(元/m2) | P5: 备注
I6: 原值 | J6: 净值 | K6: 原值 | L6: 成新率 | M6: 净值
A7: 1 | B7: 海口市房权证海房字第HK247651号 | C7: 海口市椰林路9号新安大厦A座202房 | D7: 住宅 | E7: 钢混 | F7: 1999年 | G7: 68.42 | I7: 903,601.88 | J7: 666,857.92 | K7: =M7 -> 858,900.00 | L7: - | M7: 858,900.00
A8: 2 | B8: 海口市房权证海房字第HK247654号 | C8: 海口市椰林路9号新安大厦A座206房 | D8: 住宅 | E8: 钢混 | F8: 1999年 | G8: 119.81 | K8: =M8 -> 1,413,900.00 | L8: - | M8: 1,413,900.00
A9: 3 | B9: - | C9: 南京新城科技园4B栋第3层 | D9: 办公 | E9: 钢混 | F9: 2016年 | G9: 1,900.00 | I9: 165,140,000.00 | J9: 145,323,200.00 | K9: 24,793,100.00 | L9: - | M9: 24,793,100.00
A10: 4 | B10: - | C10: 南京新城科技园4B栋第4层 | D10: 办公 | E10: 钢混 | F10: 2016年 | G10: 1,900.00 | K10: 25,784,900.00 | L10: - | M10: 25,784,900.00
A11: 5 | B11: - | C11: 南京新城科技园4B栋第5层 | D11: 办公 | E11: 钢混 | F11: 2016年 | G11: 1,900.00 | K11: 25,784,900.00 | L11: - | M11: 25,784,900.00
A12: 6 | B12: - | C12: 南京新城科技园4B栋第6层 | D12: 办公 | E12: 钢混 | F12: 2016年 | G12: 2,080.00 | K12: 28,227,700.00 | L12: - | M12: 28,227,700.00
A13: 7 | B13: - | C13: 南京新城科技园4B栋第7层 | D13: 办公 | E13: 钢混 | F13: 2016年 | G13: 2,000.00 | K13: 27,142,000.00 | L13: - | M13: 27,142,000.00
A14: 8 | B14: - | C14: 南京新城科技园4B栋第8层 | D14: 办公 | E14: 钢混 | F14: 2016年 | G14: 2,000.00 | K14: 27,142,000.00 | L14: - | M14: 27,142,000.00
A15: 9 | B15: - | C15: 地下负二层车位80个 | D15: 车位 | E15: 钢混 | F15: 2016年 | K15: 12,792,000.00 | L15: - | M15: 12,792,000.00
A20: 合 计 | I20: =SUM(I7:I19) -> 166,043,601.88 | J20: =SUM(J7:J19) -> 145,990,057.92 | K20: =SUM(K7:K19) -> 173,939,400.00 | M20: =SUM(M7:M19) -> 173,939,400.00
A21: 减：房屋建筑物减值准备
A22: 合 计 | I22: =I20-I21 -> 166,043,601.88 | J22: =J20-J21 -> 145,990,057.92 | K22: =K20-K21 -> 173,939,400.00 | M22: =M20-M21 -> 173,939,400.00 | N22: =(M22-J22)/J22*100 -> 19.14
A23: =基础信息!A4 -> 被评估单位填表人：俞蕊 | I23: =基础信息!A3 -> 评估人员：李美花、刘婧
A24: =基础信息!A5 -> 填表日期：2021年8月27日
G26: =SUM(G9:G14) -> 11780

Sheet 4-6-2构筑物 (hidden)
A1: 固定资产—构筑物及其他辅助设施评估明细表
A2: =基础信息!A1 -> 评估基准日：2021年6月30日
N3: 表4-6-2
A4: =基础信息!A2 -> 被评估单位：江苏省糖烟酒总公司 | M4: 金额单位：人民币元
A5: 序号 | B5: 名称 | C5: 结构 | D5: 建成 年月 | E5: 长度 (m) | F5: 宽度 (m) | G5: 计量单位 | H5: 数量 | I5: 账面价值 | K5: 评估价值 | N5: 增值率% | O5: 评估单价(元/m2) | P5: 备注
I6: 原值 | J6: 净值 | K6: 原值 | L6: 成新率% | M6: 净值
A20: 合 计 | I20: =SUM(I7:I19) -> 0 | J20: =SUM(J7:J19) -> 0 | K20: =SUM(K7:K19) -> 0 | M20: =SUM(M7:M19) -> 0
A21: 减：构筑物及其他辅助设施减值准备
A22: 合 计 | I22: =I20-I21 -> 0 | J22: =J20-J21 -> 0 | K22: =K20-K21 -> 0 | M22: =M20-M21 -> 0
A23: =基础信息!A4 -> 被评估单位填表人：俞蕊 | J23: =基础信息!A3 -> 评估人员：李美花、刘婧
A24: =基础信息!A5 -> 填表日期：2021年8月27日

Sheet 4-6-3管道沟槽 (hidden)
A1: 固定资产—管道和沟槽评估明细表
A2: =基础信息!A1 -> 评估基准日：2021年6月30日
O3: 表4-6-3
A4: =基础信息!A2 -> 被评估单位：江苏省糖烟酒总公司 | O4: 金额单位：人民币元
A5: 序号 | B5: 名称 | C5: 长度 (m) | D5: 漕深 (m) | E5: 沟宽*沟厚(mm*mm) 管径*壁厚(mm*mm) | F5: 材质 | G5: 绝缘方式 | H5: 建成年月 | I5: 账面价值 | K5: 评估价值 | N5: 增值率% | O5: 备注
I6: 原值 | J6: 净值 | K6: 原值 | L6: 成新率% | M6: 净值
A25: 合 计 | I25: =SUM(I7:I24) -> 0 | J25: =SUM(J7:J24) -> 0 | K25: =SUM(K7:K24) -> 0 | M25: =SUM(M7:M24) -> 0
A26: 减：管道和沟槽减值准备
A27: 合 计 | I27: =I25-I26 -> 0 | J27: =J25-J26 -> 0 | K27: =K25-K26 -> 0 | M27: =M25-M26 -> 0
A28: =基础信息!A4 -> 被评估单位填表人：俞蕊 | I28: =基础信息!A3 -> 评估人员：李美花、刘婧
A29: =基础信息!A5 -> 填表日期：2021年8月27日

Sheet 4-6-4机器设备 (hidden)
A1: 固定资产—机器设备评估明细表
A2: =基础信息!A1 -> 评估基准日：2021年6月30日
N3: 表4-6-4
A4: =基础信息!A2 -> 被评估单位：江苏省糖烟酒总公司 | M4: 金额单位：人民币元
A5: 序号 | B5: 设备编号 | C5: 设备名称 | D5: 规格型号 | E5: 生产厂家 | F5: 计量单位 | G5: 数量 | H5: 购置日期 | I5: 启用日期 | J5: 账面价值 | L5: 评估价值 | O5: 增值率% | P5: 备注
J6: 原值 | K6: 净值 | L6: 原值 | M6: 成新率% | N6: 净值
A20: 合 计 | J20: =SUM(J7:J19) -> 0 | K20: =SUM(K7:K19) -> 0 | L20: =SUM(L7:L19) -> 0 | N20: =SUM(N7:N19) -> 0
A21: 减：机器设备减值准备
A22: 合 计 | J22: =J20-J21 -> 0 | K22: =K20-K21 -> 0 | L22: =L20-L21 -> 0 | N22: =N20-N21 -> 0
A23: =基础信息!A4 -> 被评估单位填表人：俞蕊 | J23: =基础信息!A3 -> 评估人员：李美花、刘婧
A24: =基础信息!A5 -> 填表日期：2021年8月27日

Sheet 4-6-5运输设备 (hidden)
A1: 固定资产—运输设备评估明细表
A2: =基础信息!A1 -> 评估基准日：2021年6月30日
P3: 表4-6-5
A4: =基础信息!A2 -> 被评估单位：江苏省糖烟酒总公司 | P4: 金额单位：人民币元
A5: 序号 | B5: 车辆牌号 | C5: 车辆名称 及规格型号 | D5: 生产厂家 | E5: 计量单位 | F5: 数量 | G5: 购置日期 | H5: 启用日期 | I5: 已行驶里程(公里) | J5: 账面价值 | L5: 评估价值 | O5: 增值率% | P5: 备注
J6: 原值 | K6: 净值 | L6: 原值 | M6: 成新率% | N6: 净值
A20: 合 计 | J20: =SUM(J7:J19) -> 0 | K20: =SUM(K7:K19) -> 0 | L20: =SUM(L7:L19) -> 0 | N20: =SUM(N7:N19) -> 0
A21: 减：车辆减值准备
A22: 合 计 | J22: =J20-J21 -> 0 | K22: =K20-K21 -> 0 | L22: =L20-L21 -> 0 | N22: =N20-N21 -> 0 | O22: =(N22-K22)/K22*100 -> 
A23: =基础信息!A4 -> 被评估单位填表人：俞蕊 | J23: =基础信息!A3 -> 评估人员：李美花、刘婧
A24: =基础信息!A5 -> 填表日期：2021年8月27日

Sheet 4-6-6电子设备
A1: 固定资产—电子设备评估明细表
A2: =基础信息!A1 -> 评估基准日：2021年6月30日
P3: 表4-6-6
A4: =基础信息!A2 -> 被评估单位：江苏省糖烟酒总公司 | P4: 金额单位：人民币元
A5: 序号 | B5: 设备 编号 | C5: 设备名称 | D5: 规格型号 | E5: 生产厂家/销货单位 | F5: 计量单位 | G5: 数量 | H5: 购置日期 | I5: 启用日期 | J5: 账面价值 | L5: 评估价值 | O5: 增值率% | P5: 备注
J6: 原值 | K6: 净值 | L6: 原值 | M6: 成新率 | N6: 净值
A7: 1 | C7: 东芝笔记本电脑 | D7: L750D | F7: 台 | G7: 1 | H7: 2012/5/8 | I7: 2012/5/8 | J7: 3,549.00 | K7: 141.96 | L7: 500.00 | M7: - | N7: =L7 -> 500.00 | P7: 二手市场价 | Q7: =(2008-YEAR(H7))*12+6-MONTH(H7) -> -47 | R7: =ROUND((60-Q7)/60*100,0) -> 178
A8: 2 | C8: 联想电脑 | D8: il455/l9LCD | F8: 台 | G8: 1 | H8: 2012/5/6 | I8: 2012/5/6 | J8: 3,900.00 | K8: 156.00 | L8: =N8 -> 500.00 | M8: - | N8: 500.00 | P8: 二手市场价 | Q8: =(2008-YEAR(H8))*12+6-MONTH(H8) -> -47 | R8: =ROUND((60-Q8)/60*100,0) -> 178
Q9: 1301 | R9: -2068
Q10: 1301 | R10: -2068
Q11: 1301 | R11: -2068
Q12: 1301 | R12: -2068
Q13: 1301 | R13: -2068
Q14: 1301 | R14: -2068
Q15: 1301 | R15: -2068
Q16: 1301 | R16: -2068
Q17: 1301 | R17: -2068
Q18: 1301 | R18: -2068
Q20: =(2008-YEAR(H20))*12+6-MONTH(H20) -> 1301 | R20: =ROUND((60-Q20)/60*100,0) -> -2068
A21: 合 计 | J21: =SUM(J7:J20) -> 7,449.00 | K21: =SUM(K7:K20) -> 297.96 | L21: =SUM(L7:L20) -> 1,000.00 | N21: =SUM(N7:N20) -> 1,000.00
A22: 减：电子设备减值准备
A23: 合 计 | J23: =J21-J22 -> 7,449.00 | K23: =K21-K22 -> 297.96 | L23: =L21-L22 -> 1,000.00 | N23: =N21-N22 -> 1,000.00 | O23: =(N23-K23)/K23*100 -> 235.62
A24: =基础信息!A4 -> 被评估单位填表人：俞蕊 | J24: =基础信息!A3 -> 评估人员：李美花、刘婧
A25: =基础信息!A5 -> 填表日期：2021年8月27日

Sheet 4-6-7其他设备 (hidden)
A1: 固定资产—其他设备评估明细表
A2: =基础信息!A1 -> 评估基准日：2021年6月30日
P3: 表4-6-7
A4: =基础信息!A2 -> 被评估单位：江苏省糖烟酒总公司 | P4: 金额单位：人民币元
A5: 序号 | B5: 设备 编号 | C5: 设备名称 | D5: 规格型号 | E5: 生产厂家 | F5: 计量单位 | G5: 数量 | H5: 购置日期 | I5: 启用日期 | J5: 账面价值 | L5: 评估价值 | O5: 增值率% | P5: 备注
J6: 原值 | K6: 净值 | L6: 原值 | M6: 成新率% | N6: 净值
A20: 合 计 | J20: =SUM(J1:J19) -> 0 | K20: =SUM(K1:K19) -> 0 | L20: =SUM(L1:L19) -> 0 | N20: =SUM(N1:N19) -> 0
A21: 减：其他设备减值准备
A22: 合 计 | J22: =J20-J21 -> 0.00 | K22: =K20-K21 -> 0.00 | L22: =L20-L21 -> 0.00 | N22: =N20-N21 -> 0.00 | O22: =(N22-K22)/K22*100 -> 
A23: =基础信息!A4 -> 被评估单位填表人：俞蕊 | K23: =基础信息!A3 -> 评估人员：李美花、刘婧
A24: =基础信息!A5 -> 填表日期：2021年8月27日

Sheet 4-6-8固定资产清理 (hidden)
A1: 固定资产清理评估明细表
A2: =基础信息!A1 -> 评估基准日：2021年6月30日
H3: 表4-6-8
A4: =基础信息!A2 -> 被评估单位：江苏省糖烟酒总公司 | H4: 金额单位：人民币元
A5: 序号 | B5: 待处理资产名称 | C5: 发生日期 | D5: 账面价值 | E5: 评估价值 | F5: 增减值 | G5: 增值率% | H5: 备注
A27: 合 计 | D27: =SUM(D6:D26) -> 0 | E27: =SUM(E6:E26) -> 0
A28: =基础信息!A4 -> 被评估单位填表人：俞蕊 | E28: =基础信息!A3 -> 评估人员：李美花、刘婧
A29: =基础信息!A5 -> 填表日期：2021年8月27日

Sheet 4-7在建工程汇总 (hidden)
A1: 在建工程评估汇总表
A2: =基础信息!A1 -> 评估基准日：2021年6月30日
F3: 表4-7
A4: =基础信息!A2 -> 被评估单位：江苏省糖烟酒总公司 | F4: 金额单位：人民币元
A5: 编号 | B5: 科目名称 | C5: 账面价值 | D5: 评估价值 | E5: 增减值 | F5: 增值率%
A6: 4-7-1 | B6: 在建工程—土建工程 | C6: ='4-7-1在建（土建）'!I22 -> 0 | D6: ='4-7-1在建（土建）'!J22 -> 0 | E6: =D6-C6 -> 0 | F6: =IF(C6=0,0,E6/C6*100) -> 0
A7: 4-7-2 | B7: 在建工程—设备安装工程 | C7: ='4-7-2在建（设备）'!K27 -> 0 | D7: ='4-7-2在建（设备）'!O27 -> 0 | E7: =D7-C7 -> 0 | F7: =IF(C7=0,0,E7/C7*100) -> 0
A8: 4-7-3 | B8: 工程物资
A20: 在建工程合计 | C20: =SUM(C6:C19) -> 0 | D20: =SUM(D6:D19) -> 0 | E20: =D20-C20 -> 0 | F20: =IF(C20=0,0,E20/C20*100) -> 0
A21: 减：在建工程减值准备
A22: 在建工程合计 | C22: =C20-C21 -> 0 | D22: =D20-D21 -> 0 | E22: =D22-C22 -> 0 | F22: =IF(C22=0,0,E22/C22*100) -> 0
D23: =基础信息!A3 -> 评估人员：李美花、刘婧

Sheet 4-7-1在建（土建） (hidden)
A1: 在建工程—土建工程评估明细表
A2: =基础信息!A1 -> 评估基准日：2021年6月30日
M3: 表4-7-1
A4: =基础信息!A2 -> 被评估单位：江苏省糖烟酒总公司 | M4: 金额单位：人民币元
A5: 序号 | B5: 项目名称 | C5: 结构 | D5: 建筑面积/容积 | E5: 开工日期 | F5: 预计完工日期 | G5: 形象进度 | H5: 付款比例 | I5: 账面价值 | J5: 评估价值 | K5: 增减值 | L5: 增值率% | M5: 备注
A20: 合 计 | I20: =SUM(I6:I19) -> 0 | J20: =SUM(J6:J19) -> 0
A21: 减：在建土建工程减值准备
A22: 合 计 | I22: =I20-I21 -> 0 | J22: =J20-J21 -> 0
A23: =基础信息!A4 -> 被评估单位填表人：俞蕊 | H23: =基础信息!A3 -> 评估人员：李美花、刘婧
A24: =基础信息!A5 -> 填表日期：2021年8月27日

Sheet 4-7-2在建（设备） (hidden)
A1: 在建工程—设备安装工程评估明细表
A2: =基础信息!A1 -> 评估基准日：2021年6月30日
R3: 表4-7-2
A4: =基础信息!A2 -> 被评估单位：江苏省糖烟酒总公司 | R4: 金额单位：人民币元
A5: 序号 | B5: 项目名称 | C5: 规格型号 | D5: 数量 | E5: 计量单位 | F5: 开工 日期 | G5: 预计完 工日期 | H5: 账面价值 | L5: 评估价值 | P5: 增减值 | Q5: 增值率% | R5: 备注
H6: 设备费 | I6: 资金成本 | J6: 安装费及其他 | K6: 合计 | L6: 设备费 | M6: 资金成本 | N6: 安装费及其他 | O6: 合计
A25: 合 计 | K25: =SUM(K7:K24) -> 0 | O25: =SUM(O7:O24) -> 0
A26: 减：在建设备安装工程减值准备
A27: 合 计 | K27: =K25-K26 -> 0 | O27: =O25-O26 -> 0
A28: =基础信息!A4 -> 被评估单位填表人：俞蕊 | K28: =基础信息!A3 -> 评估人员：李美花、刘婧
A29: =基础信息!A5 -> 填表日期：2021年8月27日

Sheet 4-7-2工程物资 (hidden)
A1: 工程物资评估明细表
A2: =基础信息!A1 -> 评估基准日：2021年6月30日
L3: 表4-7-2
A4: =基础信息!A2 -> 被评估单位：江苏省糖烟酒总公司 | M4: 金额单位：人民币元
A5: 序号 | B5: 名称 | C5: 工程项目 | D5: 计量 单位 | E5: 账面价值 | H5: 评估价值 | K5: 增减值 | L5: 增值率 % | M5: 备注
E6: 数量 | F6: 单价 | G6: 金额 | H6: 实际数量 | I6: 单价 | J6: 金额
A26: 合 计 | G26: =SUM(G7:G25) -> 0 | J26: =SUM(J7:J25) -> 0
A27: 减：工程物资减值准备
A28: 合 计 | G28: =G26-G27 -> 0 | J28: =J26-J27 -> 0
A29: =基础信息!A4 -> 被评估单位填表人：俞蕊 | H29: =基础信息!A3 -> 评估人员：李美花、刘婧
A30: =基础信息!A5 -> 填表日期：2021年8月27日

Sheet 4-8生产性生物资产 (hidden)
A1: 生产性生物资产评估明细表
A2: =基础信息!A1 -> 评估基准日：2021年6月30日
K3: 表4-8
A4: =基础信息!A2 -> 被评估单位：江苏省糖烟酒总公司 | K4: 金额单位：人民币元
A5: 序号 | B5: 种类 | C5: 群别 | D5: 计量单位 | E5: 数量 | F5: 购置日期 | G5: 账面价值 | I5: 评估价值 | L5: 增值率% | M5: 备注
G6: 原值 | H6: 净值 | I6: 原值 | J6: 成新率% | K6: 净值
A26: 合 计 | G26: =SUM(G7:G25) -> 0 | H26: =SUM(H7:H25) -> 0 | I26: =SUM(I7:I25) -> 0 | K26: =SUM(K7:K25) -> 0
A27: 减：生产性生物资产减值准备
A28: 净 额 | G28: =G26-G27 -> 0 | H28: =H26-H27 -> 0 | I28: =I26-I27 -> 0 | K28: =K26-K27 -> 0
A29: =基础信息!A4 -> 被评估单位填表人：俞蕊 | H29: =基础信息!A3 -> 评估人员：李美花、刘婧
A30: =基础信息!A5 -> 填表日期：2021年8月27日

Sheet 4-9油气资产 (hidden)
A1: 油气资产评估明细表
A2: =基础信息!A1 -> 评估基准日：2021年6月30日
N3: 表4-9
A4: =基础信息!A2 -> 被评估单位：江苏省糖烟酒总公司 | N4: 金额单位：人民币元
A5: 序号 | B5: 类别 | C5: 矿区（或油田） | D5: 计量单位 | E5: 数量 | F5: 形成日期 | G5: 来源（购入、自行建造） | H5: 账面价值 | J5: 评估价值 | M5: 增值率% | N5: 备注
H6: 原值 | I6: 净值 | J6: 原值 | K6: 成新率% | L6: 净值
A25: 合 计 | H25: =SUM(H7:H24) -> 0 | I25: =SUM(I7:I24) -> 0 | J25: =SUM(J7:J24) -> 0 | L25: =SUM(L7:L24) -> 0
A26: 减：油气资产减值准备
A27: 合 计 | H27: =H25-H26 -> 0 | I27: =I25-I26 -> 0 | J27: =J25-J26 -> 0 | L27: =L25-L26 -> 0
A28: =基础信息!A4 -> 被评估单位填表人：俞蕊 | H28: =基础信息!A3 -> 评估人员：李美花、刘婧
A29: =基础信息!A5 -> 填表日期：2021年8月27日

Sheet 4-10无形资产汇总
A1: 无形资产评估汇总表
A2: =基础信息!A1 -> 评估基准日：2021年6月30日
F3: 表4-10
A4: =基础信息!A2 -> 被评估单位：江苏省糖烟酒总公司 | F4: 金额单位：人民币元
A5: 编号 | B5: 科目名称 | C5: 账面价值 | D5: 评估价值 | E5: 增减值 | F5: 增值率%
A6: 4-10-1 | B6: 无形资产-土地使用权 | C6: ='4-10-1无形-土地'!L22 -> 0 | D6: ='4-10-1无形-土地'!M22 -> 0 | E6: =D6-C6 -> 0 | F6: =IF(C6=0,0,E6/C6*100) -> 0
A7: 4-10-2 | B7: 无形资产-矿业权 | C7: ='4-10-2无形-矿业权'!J27 -> 0 | D7: ='4-10-2无形-矿业权'!K27 -> 0 | E7: =D7-C7 -> 0 | F7: =IF(C7=0,0,E7/C7*100) -> 0
A8: 4-10-3 | B8: 无形资产-其他无形资产 | C8: ='4-10-3无形-其他'!J18 -> 0.00 | D8: ='4-10-3无形-其他'!L18 -> 0.00 | E8: =D8-C8 -> 0 | F8: =IF(C8=0,0,E8/C8*100) -> 0
A20: 合 计 | C20: =SUM(C6:C19) -> 0 | D20: =SUM(D6:D19) -> 0 | E20: =D20-C20 -> 0 | F20: =IF(C20=0,0,E20/C20*100) -> 0
A21: 减：无形资产减值准备
A22: 合 计 | C22: =C20-C21 -> 0 | D22: =D20-D21 -> 0 | E22: =D22-C22 -> 0 | F22: =IF(C22=0,0,E22/C22*100) -> 0
D23: =基础信息!A3 -> 评估人员：李美花、刘婧

Sheet 4-10-1无形-土地 (hidden)
A1: 无形资产—土地使用权评估明细表
A2: =基础信息!A1 -> 评估基准日：2021年6月30日
O3: 表4-10-1
A4: =基础信息!A2 -> 被评估单位：江苏省糖烟酒总公司 | N4: 金额单位：人民币元
A5: 序号 | B5: 土地权证编号 | C5: 宗地名称 | D5: 土地位置 | E5: 取得日期 | F5: 用地性质 | G5: 土地用途 | H5: 准用年限 | I5: 开发程度 | J5: 面积(m2) | K5: 原始入账价值 | L5: 账面价值 | M5: 评估价值 | N5: 增减值 | O5: 增值率% | P5: 备注
A22: 合 计 | L22: =SUM(L6:L21) -> 0 | M22: =SUM(M6:M21) -> 0
A23: =基础信息!A4 -> 被评估单位填表人：俞蕊 | J23: =基础信息!A3 -> 评估人员：李美花、刘婧
A24: =基础信息!A5 -> 填表日期：2021年8月27日

Sheet 4-10-2无形-矿业权 (hidden)
A1: 无形资产—矿业权评估明细表
A2: =基础信息!A1 -> 评估基准日：2021年6月30日
M3: 表4-10-2
A4: =基础信息!A2 -> 被评估单位：江苏省糖烟酒总公司 | N4: 金额单位：人民币元
A5: 序号 | B5: 名称、种类（探矿权/采矿权） | C5: 勘查（采矿）许可证编号 | D5: 取得方式 | E5: 取得日期 | F5: 剩余有效年限 | G5: 勘查开发阶段 | H5: 核定（批准）生产规模 | I5: 原始入账价值 | J5: 账面价值 | K5: 评估价值 | L5: 增减值 | M5: 增值率% | N5: 备注
A27: 合 计 | J27: =SUM(J6:J26) -> 0 | K27: =SUM(K6:K26) -> 0
A28: =基础信息!A4 -> 被评估单位填表人：俞蕊 | H28: =基础信息!A3 -> 评估人员：李美花、刘婧
A29: =基础信息!A5 -> 填表日期：2021年8月27日

Sheet 4-10-3无形-其他
A1: 无形资产—其他无形资产评估明细表
A2: =基础信息!A1 -> 评估基准日：2021年6月30日
O3: 表4-10-3
A4: =基础信息!A2 -> 被评估单位：江苏省糖烟酒总公司 | O4: 金额单位：人民币元
A5: 序号 | B5: 无形资产类型 | C5: 商标图案 | D5: 商标名称 | E5: 申请/注册号 | F5: 申请日期 | G5: 国际分类 | H5: 法定/预计使用年限 | I5: 原始入账价值 | J5: 账面价值 | K5: 尚可使用年限 | L5: 评估价值 | M5: 增减值 | N5: 增值率% | O5: 备注
A6: 1 | B6: 商标 | D6: 图形 | E6: 9585270 | F6: 2011-06-13 | G6: 33类 酒 | J6: 0.00 | L6: 0.00
A7: 2 | B7: 商标 | D7: 博斯特 | E7: 9585298 | F7: 2011-06-13 | G7: 33类 酒 | J7: 0.00 | L7: 0.00
A8: 3 | B8: 商标 | D8: SU TANG | E8: 3828962 | F8: 2003-12-04 | G8: 35类 广告销售 | J8: 0.00 | L8: 0.00
A9: 4 | B9: 商标 | D9: 苏糖 | E9: 1951836 | F9: 2001-07-11 | G9: 35类 广告销售 | J9: 0.00 | L9: 0.00
A18: 合 计 | I18: =SUM(I6:I17) -> 0 | J18: =SUM(J6:J17) -> 0.00 | L18: 0.00
A19: =基础信息!A4 -> 被评估单位填表人：俞蕊 | J19: =基础信息!A3 -> 评估人员：李美花、刘婧
A20: =基础信息!A5 -> 填表日期：2021年8月27日

Sheet 4-11开发支出 (hidden)
A1: 开发支出评估明细表
A2: =基础信息!A1 -> 评估基准日：2021年6月30日
H3: 表4-11
A4: =基础信息!A2 -> 被评估单位：江苏省糖烟酒总公司 | H4: 金额单位：人民币元
A5: 序号 | B5: 内容或名称 | C5: 发生日期 | D5: 账面价值 | E5: 评估价值 | F5: 增减值 | G5: 增值率% | H5: 备注
A27: 合 计 | D27: =SUM(D6:D26) -> 0 | E27: =SUM(E6:E26) -> 0
A28: =基础信息!A4 -> 被评估单位填表人：俞蕊 | E28: =基础信息!A3 -> 评估人员：李美花、刘婧
A29: =基础信息!A5 -> 填表日期：2021年8月27日

Sheet 4-12商誉 (hidden)
A1: 商誉评估明细表
A2: =基础信息!A1 -> 评估基准日：2021年6月30日
H3: 表4-12
A4: =基础信息!A2 -> 被评估单位：江苏省糖烟酒总公司 | H4: 金额单位：人民币元
A5: 序号 | B5: 内容或名称 | C5: 取得日期 | D5: 账面价值 | E5: 评估价值 | F5: 增减值 | G5: 增值率% | H5: 备注
A25: 合 计 | D25: =SUM(D6:D24) -> 0 | E25: =SUM(E6:E24) -> 0
A26: 减：商誉减值准备
A27: 合 计 | D27: =D25-D26 -> 0 | E27: =E25-E26 -> 0
A28: =基础信息!A4 -> 被评估单位填表人：俞蕊 | E28: =基础信息!A3 -> 评估人员：李美花、刘婧
A29: =基础信息!A5 -> 填表日期：2021年8月27日

Sheet 4-13长期待摊费用 (hidden)
A1: 长期待摊费用评估明细表
A2: =基础信息!A1 -> 评估基准日：2021年6月30日
K3: 表4-13
A4: =基础信息!A2 -> 被评估单位：江苏省糖烟酒总公司 | K4: 金额单位：人民币元
A5: 序号 | B5: 费用名称或内容 | C5: 形成日期 | D5: 原始发生额 | E5: 预计摊 销月数 | F5: 账面价值 | G5: 尚存受 益月数 | H5: 评估价值 | I5: 增减值 | J5: 增值率% | K5: 备注
A27: 合 计 | D27: =SUM(D6:D26) -> 0 | F27: =SUM(F6:F26) -> 0 | H27: =SUM(H6:H26) -> 0 | I27: =(H27-F27)/F27*100 -> 
A28: =基础信息!A4 -> 被评估单位填表人：俞蕊 | G28: =基础信息!A3 -> 评估人员：李美花、刘婧
A29: =基础信息!A5 -> 填表日期：2021年8月27日

Sheet 4-14递延所得税资产 (hidden)
A1: 递延所得税资产评估明细表
A2: =基础信息!A1 -> 评估基准日：2021年6月30日
F3: 表4-14
A4: =基础信息!A2 -> 被评估单位：江苏省糖烟酒总公司 | F4: 金额单位：人民币元
A5: 序号 | B5: 内容或名称 | C5: 发生日期 | D5: 账面价值 | E5: 评估价值 | F5: 备注
A27: 合 计 | D27: =SUM(D6:D26) -> 0 | E27: =SUM(E6:E26) -> 0
A28: =基础信息!A4 -> 被评估单位填表人：俞蕊 | E28: =基础信息!A3 -> 评估人员：李美花、刘婧
A29: =基础信息!A5 -> 填表日期：2021年8月27日

Sheet 4-15其他非流动资产 (hidden)
A1: 其他非流动资产评估明细表
A2: =基础信息!A1 -> 评估基准日：2021年6月30日
H3: 表4-15
A4: =基础信息!A2 -> 被评估单位：江苏省糖烟酒总公司 | H4: 金额单位：人民币元
A5: 序号 | B5: 内容或名称 | C5: 取得日期 | D5: 账面价值 | E5: 评估价值 | F5: 增减值 | G5: 增值率% | H5: 备注
A27: 合 计 | D27: =SUM(D6:D26) -> 0 | E27: =SUM(E6:E26) -> 0
A28: =基础信息!A4 -> 被评估单位填表人：俞蕊 | E28: =基础信息!A3 -> 评估人员：李美花、刘婧
A29: =基础信息!A5 -> 填表日期：2021年8月27日

Sheet 5-流动负债汇总
A1: 流动负债评估汇总表
A2: =基础信息!A1 -> 评估基准日：2021年6月30日
F3: 表5
A4: =基础信息!A2 -> 被评估单位：江苏省糖烟酒总公司 | F4: 金额单位：人民币元
A5: 编号 | B5: 科目名称 | C5: 账面价值 | D5: 评估价值 | E5: 增值额 | F5: 增值率%
A6: 5-1 | B6: 短期借款 | C6: ='5-1短期借款'!H22 -> 0 | D6: ='5-1短期借款'!J22 -> 0 | E6: =D6-C6 -> 0 | F6: =IF(C6=0,0,E6/C6*100) -> 0
A7: 5-2 | B7: 以公允价值计量且其变动计入 当期损益的金融负债 | C7: ='5-2以公允价值计量且其变动计入 当期损益的金融负债'!E27 -> 0 | D7: ='5-2以公允价值计量且其变动计入 当期损益的金融负债'!F27 -> 0 | E7: =D7-C7 -> 0 | F7: =IF(C7=0,0,E7/C7*100) -> 0
A8: 5-3 | B8: 衍生金融负债
A9: 5-4 | B9: 应付票据 | C9: ='5-4应付票据'!F27 -> 0 | D9: ='5-4应付票据'!G27 -> 0 | E9: =D9-C9 -> 0 | F9: =IF(C9=0,0,E9/C9*100) -> 0
A10: 5-5 | B10: 应付账款 | C10: ='5-5应付账款'!E205 -> 0 | D10: ='5-5应付账款'!F205 -> 0 | E10: 0 | F10: 0
A11: 5-6 | B11: 预收款项 | C11: ='5-6预收账款'!E160 -> 0 | D11: ='5-6预收账款'!F160 -> 0 | E11: 0 | F11: 0
A12: 5-7 | B12: 应付职工薪酬 | C12: ='5-7职工薪酬'!D22 -> 15,000,000.00 | D12: ='5-7职工薪酬'!E22 -> 15,000,000.00 | E12: 0 | F12: 0
A13: 5-8 | B13: 应交税费 | C13: ='5-8应交税费'!E22 -> 48,473,376.44 | D13: ='5-8应交税费'!F22 -> 49,174,704.74 | E13: 701,328.30 | F13: 1.45
A14: 5-9 | B14: 其他应付款 | C14: ='5-9其他应付款'!E23 -> 94,347,573.35 | D14: ='5-9其他应付款'!F23 -> 94,347,573.35 | E14: 0 | F14: 0
A15: 5-10 | B15: 持有待售负债
A16: 5-11 | B16: 一年内到期的非流动负债 | C16: ='5-11一年到期非流动负债'!F28 -> 0 | D16: ='5-11一年到期非流动负债'!G28 -> 0 | E16: =D16-C16 -> 0 | F16: =IF(C16=0,0,E16/C16*100) -> 0
A17: 5-12 | B17: 其他流动负债 | C17: ='5-12其他流动负债'!E28 -> 0 | D17: ='5-12其他流动负债'!F28 -> 0 | E17: =D17-C17 -> 0 | F17: 0
A22: 流动负债合计 | C22: =SUM(C6:C21) -> 157,820,949.79 | D22: =SUM(D6:D21) -> 158,522,278.09 | E22: =D22-C22 -> 701,328.30 | F22: 0.44
D23: =基础信息!A3 -> 评估人员：李美花、刘婧

Sheet 5-1短期借款 (hidden)
A1: 短期借款评估明细表
A2: =基础信息!A1 -> 评估基准日：2021年6月30日
K3: 表5-1
A4: =基础信息!A2 -> 被评估单位：江苏省糖烟酒总公司 | K4: 金额单位：人民币元
A5: 序号 | B5: 放款银行（或机构）名称 | C5: 发生日期 | D5: 到期日 | E5: 月利率% | F5: 币种 | G5: 外币金额 | H5: 账面价值 | I5: 外币基准日汇率 | J5: 评估价值 | K5: 备注
J6: =H6 -> 0
J7: =H7 -> 0
A22: 合 计 | H22: =SUM(H6:H21) -> 0 | J22: =SUM(J6:J21) -> 0
A23: =基础信息!A4 -> 被评估单位填表人：俞蕊 | H23: =基础信息!A3 -> 评估人员：李美花、刘婧
A24: =基础信息!A5 -> 填表日期：2021年8月27日

Sheet 5-2以公允价值计量且其变动计入 当期损益的金融负债 (hidden)
A1: 交易性金融负债评估明细表
A2: =基础信息!A1 -> 评估基准日：2021年6月30日
G3: 表5-2
A4: =基础信息!A2 -> 被评估单位：江苏省糖烟酒总公司 | G4: 金额单位：人民币元
A5: 序号 | B5: 户名（结算对象) | C5: 发生日期 | D5: 业务内容 | E5: 账面价值 | F5: 评估价值 | G5: 备注
A27: 合 计 | E27: =SUM(E6:E26) -> 0 | F27: =SUM(F6:F26) -> 0
A28: =基础信息!A4 -> 被评估单位填表人：俞蕊 | E28: =基础信息!A3 -> 评估人员：李美花、刘婧
A29: =基础信息!A5 -> 填表日期：2021年8月27日

Sheet 5-3衍生金融负债 (hidden)

Sheet 5-4应付票据 (hidden)
A1: 应付票据评估明细表
A2: =基础信息!A1 -> 评估基准日：2021年6月30日
H3: 表5-4
A4: =基础信息!A2 -> 被评估单位：江苏省糖烟酒总公司 | H4: 金额单位：人民币元
A5: 序号 | B5: 户名（结算对象) | C5: 发生日期 | D5: 到期日 | E5: 票面利率% | F5: 账面价值 | G5: 评估价值 | H5: 备注
A27: 合 计 | F27: =SUM(F6:F26) -> 0 | G27: =SUM(G6:G26) -> 0
A28: =基础信息!A4 -> 被评估单位填表人：俞蕊 | F28: =基础信息!A3 -> 评估人员：李美花、刘婧
A29: =基础信息!A5 -> 填表日期：2021年8月27日

Sheet 5-5应付账款 (hidden)
A1: 应付账款评估明细表
A2: =基础信息!A1 -> 评估基准日：2021年6月30日
G3: 表5-5
A4: =基础信息!A2 -> 被评估单位：江苏省糖烟酒总公司 | G4: 金额单位：人民币元
A5: 序号 | B5: 户名（结算对象) | C5: 发生日期 | D5: 业务内容 | E5: 账面价值 | F5: 评估价值 | G5: 备注 | H5: 关联方 | I5: 是否注销/吊销 | J5: 全称
A6: 1 | B6: 杭州德寰礼品有限公司 | C6: 2016年以前 | E6: 289.50 | I6: 注销 | J6: 杭州德寰礼品有限公司
A7: 2 | B7: 江苏苏酒实业股份有限公司 | C7: 2016年以前 | E7: 97,719.80 | I7: 注销 | J7: 江苏苏酒实业股份有限公司
A8: 3 | B8: 烟台张裕商贸 | C8: 2016年以前 | E8: 32,998.01 | I8: 名称不规范，查询无果
A9: 4 | B9: 安徽省界首市沙河酿酒营销公司 | C9: 2016年以前 | E9: 378,391.80 | I9: 注销 | J9: 安徽沙河酿酒营销总公司
A10: 5 | B10: 中国糖业酒类集团公司 | C10: 2016年以前 | E10: 266,775.10 | I10: 存续 | J10: 中国糖业酒类集团有限公司
A11: 6 | B11: 南京林宁食品有限公司 | C11: 2016年以前 | E11: 199,671.39 | I11: 存续
A12: 7 | B12: 广东省珠海鲜乐宝食品有限公司 | C12: 2016年以前 | E12: 152,750.00 | I12: 吊销 | J12: 珠海鲜乐宝食品有限公司
A13: 8 | B13: 江苏省连云港海州实业总公司 | C13: 2016年以前 | E13: 94,560.00 | I13: 名称不规范，查询无果
A14: 9 | B14: 南京索特包装制品有限公司 | C14: 2016年以前 | E14: 88,396.00 | I14: 存续
A15: 10 | B15: 陕西省西凤酒厂 | C15: 2016年以前 | E15: 80,008.61 | I15: 存续 | J15: 陕西西凤酒厂集团有限公司
A16: 11 | B16: 广东省南沙安华发展有限司珠海分 | C16: 2016年以前 | E16: 72,000.00 | I16: 注销 | J16: 广东南沙安华发展有限公司珠海分公司
A17: 12 | B17: 上海市爱之味食品有限公司 | C17: 2016年以前 | E17: 71,225.54 | I17: 存续
A18: 13 | B18: 狮王啤酒饮料(苏州)有限公司南京 | C18: 2016年以前 | E18: 71,223.91 | I18: 注销 | J18: 华润雪花啤酒（江苏）有限公司南京销售分公司
A19: 14 | B19: 上海民乐啤酒饮料有限公司 | C19: 2016年以前 | E19: 57,339.12 | I19: 存续 | J19: 上海民乐啤酒饮料有限公司北京办事处
A20: 15 | B20: 江苏省扬州环球迎客隆商业城 | C20: 2016年以前 | E20: 47,510.00 | I20: 吊销
A21: 16 | B21: 安徽省太和县仁济贸易责任公司 | C21: 2016年以前 | E21: 43,968.00 | I21: 吊销 | J21: 太和县仁济贸易有限责任公司
A22: 17 | B22: 南京瑞达食品厂 | C22: 2016年以前 | E22: 41,984.00 | I22: 吊销
A23: 18 | B23: 南京市中天酒业有限责任公司 | C23: 2016年以前 | E23: 40,579.00 | I23: 存续
A24: 19 | B24: 祺昌洋行 | C24: 2016年以前 | E24: 39,876.00 | I24: 名称不规范，查询无果
A25: 20 | B25: 浙江古越龙山绍兴酒股份有限公司 | C25: 2016年以前 | E25: 39,270.00 | I25: 存续
A26: 21 | B26: 江苏省常州市新区欢乐食品有限公 | C26: 2016年以前 | E26: 37,800.00 | I26: 存续 | J26: 常州新欢乐食品机械有限公司
A27: 22 | B27: 南京市金陵新闻开发公司 | C27: 2016年以前 | E27: 35,000.00 | I27: 存续 | J27: 南京天勋经贸有限责任公司
A28: 23 | B28: 南京市广惠糖酒食品有限公司 | C28: 2016年以前 | E28: 31,266.00 | I28: 存续
A29: 24 | B29: 天津市雅臣酒业销售中心 | C29: 2016年以前 | E29: 30,000.00 | I29: 吊销
A30: 25 | B30: 江苏省镇江市健力宝公司 | C30: 2016年以前 | E30: 29,560.00 | I30: 名称不规范，查询无果
A31: 26 | B31: 江苏省镇江市恒顺酱醋厂 | C31: 2016年以前 | E31: 28,742.60 | I31: 注销 | J31: 镇江恒顺酱醋厂经销部
A32: 27 | B32: 浙江省杭州市平山乳品厂 | C32: 2016年以前 | E32: 27,107.10 | I32: 注销 | J32: 杭州平山乳品厂
A33: 28 | B33: 江苏艾森油脂公司 | C33: 2016年以前 | E33: 25,392.40 | I33: 吊销 | J33: 江苏艾森油脂有限公司
A34: 29 | B34: 江苏力富营养品有限公司 | C34: 2016年以前 | E34: 25,122.50 | I34: 注销
A35: 30 | B35: 江苏远大贸易有限公司 | C35: 2016年以前 | E35: 23,880.00 | I35: 名称不规范，查询无果
A36: 31 | B36: 南京市尊煌实业公司 | C36: 2016年以前 | E36: 23,823.03 | I36: 吊销 | J36: 南京尊煌实业有限公司
A37: 32 | B37: 上海市百事可乐饮料有限公司 | C37: 2016年以前 | E37: 22,824.22 | I37: 存续
A38: 33 | B38: 山东省济宁心声精新产品经销中心 | C38: 2016年以前 | E38: 21,772.00 | I38: 注销 | J38: 山东济宁心声集团精新产品经销中心
A39: 34 | B39: 江苏省泰兴市中华柔娜集团 | C39: 2016年以前 | E39: 21,660.00 | I39: 存续 | J39: 中华柔娜集团公司
A40: 35 | B40: 南京中南江实业有限公司 | C40: 2016年以前 | E40: 21,309.60 | I40: 吊销
A41: 36 | B41: 江苏省常州武进糖果厂 | C41: 2016年以前 | E41: 20,570.24 | I41: 存续 | J41: 常州市武进糖果有限公司
A42: 37 | B42: 江苏省武进市万家香水有限公司 | C42: 2016年以前 | E42: 19,000.00 | I42: 吊销 | J42: 武进市万家香水有限公司
A43: 38 | B43: 南京市惠隆食品有限公司 | C43: 2016年以前 | E43: 18,980.00 | I43: 吊销 | J43: 南京惠隆食品有限责任公司经营部
A44: 39 | B44: 江苏省辛利丰酒业有限公司 | C44: 2016年以前 | E44: 17,100.00 | I44: 吊销 | J44: 江苏辛利丰酒业有限公司
A45: 40 | B45: 上海申马酿酒有限公司 | C45: 2016年以前 | E45: 15,960.00 | I45: 存续
A46: 41 | B46: 福建省龙岩市天马名茶有限公司 | C46: 2016年以前 | E46: 14,432.68 | I46: 存续
A47: 42 | B47: 河南省民权葡萄酒厂 | C47: 2016年以前 | E47: 14,118.40 | I47: 名称不规范，查询无果
A48: 43 | B48: 江苏省禹辰贸易有限公司 | C48: 2016年以前 | E48: 14,000.00 | I48: 注销
A49: 44 | B49: 福建省晋江安海三源食品实业有限 | C49: 2016年以前 | E49: 14,000.00 | I49: 存续
A50: 45 | B50: 南京大观园酒业有限公司 | C50: 2016年以前 | E50: 13,909.00 | I50: 吊销
A51: 46 | B51: 上海惠源综合经营部 | C51: 2016年以前 | E51: 13,800.00 | I51: 注销
A52: 47 | B52: 南京市华鹏贸易公司 | C52: 2016年以前 | E52: 13,215.01 | I52: 吊销
A53: 48 | B53: 南京鼎新酒业有限公司 | C53: 2016年以前 | E53: 12,788.00 | I53: 注销
A54: 49 | B54: 南京市百货花王经营部 | C54: 2016年以前 | E54: 12,765.95 | I54: 名称不规范，查询无果
A55: 50 | B55: 南京市福文商贸有限公司 | C55: 2016年以前 | E55: 12,740.00 | I55: 存续
A56: 51 | B56: 浙江省如意 | C56: 2016年以前 | E56: 12,600.00 | I56: 名称不规范，查询无果
A57: 52 | B57: 南京市众鼎保健有限公司 | C57: 2016年以前 | E57: 11,975.70 | I57: 吊销 | J57: 南京众鼎保健品有限公司
A58: 53 | B58: 中国医药对外贸易总公司华东分公 | C58: 2016年以前 | E58: 11,530.98 | I58: 吊销
A59: 54 | B59: 南京市邦德酒业公司 | C59: 2016年以前 | E59: 11,400.00 | I59: 存续
A60: 55 | B60: 河北省石家庄市盛达经贸公司 | C60: 2016年以前 | E60: 10,800.00 | I60: 吊销 | J60: 河北盛达世纪经贸有限公司
A61: 56 | B61: 南京市思索物资公司 | C61: 2016年以前 | E61: 10,731.85 | I61: 名称不规范，查询无果
A62: 57 | B62: 四川省青州县农副产品加工厂 | C62: 2016年以前 | E62: 10,675.80 | I62: 名称不规范，查询无果
A63: 58 | B63: 山东省烟台市飞轮企业集团有限公 | C63: 2016年以前 | E63: 9,997.80 | I63: 存续 | J63: 烟台山村果园绿色食品集团有限公司
A64: 59 | B64: 南京市四方农贸干果食杂有限公司 | C64: 2016年以前 | E64: 9,970.31 | I64: 存续 | J64: 南京四方林门商贸有限公司
A65: 60 | B65: 江苏省轻工食品洋河酒楼 | C65: 2016年以前 | E65: 9,180.36 | I65: 吊销
A66: 61 | B66: 上海市糖烟酒公司 | C66: 2016年以前 | E66: 9,058.51 | I66: 名称不规范，查询无果
A67: 62 | B67: 南京市金鹏杰贸易公司 | C67: 2016年以前 | E67: 9,026.15 | I67: 吊销
A68: 63 | B68: 南京市真人化妆品有限公司 | C68: 2016年以前 | E68: 8,839.56 | I68: 注销
A69: 64 | B69: 江苏省盱眙县桂五机米厂 | C69: 2016年以前 | E69: 8,697.80 | I69: 吊销
A70: 65 | B70: 南京市冠生园食品厂 | C70: 2016年以前 | E70: 8,198.47 | I70: 存续
A71: 66 | B71: 南京市梦重园南北货有限公司 | C71: 2016年以前 | E71: 8,000.00 | I71: 名称不规范，查询无果
A72: 67 | B72: 南京市和利公司 | C72: 2016年以前 | E72: 8,000.00 | I72: 名称不规范，查询无果
A73: 68 | B73: 南京市土产总公司纸类分公司 | C73: 2016年以前 | E73: 8,000.00 | I73: 吊销 | J73: 南京市土产总公司纸类经营分公司
A74: 69 | B74: 河南省金丝猴集团有限公司 | C74: 2016年以前 | E74: 7,960.00 | I74: 名称不规范，查询无果
A75: 70 | B75: 南京市日杂公司纸业公司 | C75: 2016年以前 | E75: 7,796.16 | I75: 名称不规范，查询无果
A76: 71 | B76: 南京市隆福源实业有限公司 | C76: 2016年以前 | E76: 7,742.44 | I76: 吊销
A77: 72 | B77: 南京市乐健食品销售中心 | C77: 2016年以前 | E77: 6,752.83 | I77: 吊销
A78: 73 | B78: 江苏省大都经济发展总公司 | C78: 2016年以前 | E78: 6,500.00 | I78: 吊销
A79: 74 | B79: 南京市思康商贸有限公司 | C79: 2016年以前 | E79: 6,500.00 | I79: 存续
A80: 75 | B80: 南京市玄武区糖烟酒公司大庆批发 | C80: 2016年以前 | E80: 6,208.00 | I80: 名称不规范，查询无果
A81: 76 | B81: 南京市玄武国粮连锁店 | C81: 2016年以前 | E81: 6,120.00 | I81: 名称不规范，查询无果
A82: 77 | B82: 江苏省果品食杂总公司 | C82: 2016年以前 | E82: 6,060.00 | I82: 存续 | J82: 江苏省果品控股公司
A83: 78 | B83: 南京市众驰公司 | C83: 2016年以前 | E83: 6,000.00 | I83: 名称不规范，查询无果
A84: 79 | B84: 安徽天都调味品 | C84: 2016年以前 | E84: 6,000.00 | I84: 名称不规范，查询无果
A85: 80 | B85: 乐基工程贸易发展有限公司 | C85: 2016年以前 | E85: 5,900.00 | I85: 名称不规范，查询无果
A86: 81 | B86: 广东省广州市白云区东亚贸易公司 | C86: 2016年以前 | E86: 5,843.59 | I86: 名称不规范，查询无果
A87: 82 | B87: 江苏省苏州市万成阊副食品经营部 | C87: 2016年以前 | E87: 5,800.00 | I87: 吊销
A88: 83 | B88: 江苏省无锡黄仓营养食品厂 | C88: 2016年以前 | E88: 5,742.00 | I88: 名称不规范，查询无果
A89: 84 | B89: 南京市国波贸易有限公司 | C89: 2016年以前 | E89: 5,716.50 | I89: 吊销
A90: 85 | B90: 四川省宜宾市五粮液酒厂服务公司 | C90: 2016年以前 | E90: 5,280.00 | I90: 名称不规范，查询无果
A91: 86 | B91: 常州良品工用品公司 | C91: 2016年以前 | E91: 5,000.00 | I91: 名称不规范，查询无果
A92: 87 | B92: 河北省赞皂县太行红果品厂 | C92: 2016年以前 | E92: 5,000.00 | I92: 名称不规范，查询无果
A93: 88 | B93: 南京盛唐企划广告有限公司 | C93: 2016年以前 | E93: 5,000.00 | I93: 吊销
A94: 89 | B94: 南京骏马酒业有限公司 | C94: 2016年以前 | E94: 4,955.99 | I94: 吊销
A95: 90 | B95: 南京市果品食杂总公司 | C95: 2016年以前 | E95: 4,592.00 | I95: 存续
A96: 91 | B96: 江苏赐百年营养食品有限公司 | C96: 2016年以前 | E96: 4,590.10 | I96: 注销
A97: 92 | B97: 南京市建宁商场 | C97: 2016年以前 | E97: 4,570.00 | I97: 名称不规范，查询无果
A98: 93 | B98: 湖南省振中实业有限公司 | C98: 2016年以前 | E98: 4,000.00 | I98: 吊销
A99: 94 | B99: 江苏省常州大标食品公司 | C99: 2016年以前 | E99: 3,953.70 | I99: 吊销
A100: 95 | B100: 江苏省高邮市麒麟阁食品厂 | C100: 2016年以前 | E100: 3,756.00 | I100: 存续
A101: 96 | B101: 上海市靖康食品有限公司 | C101: 2016年以前 | E101: 3,684.40 | I101: 吊销
A102: 97 | B102: 南京市鼓楼区糖烟酒食品批发部 | C102: 2016年以前 | E102: 3,645.01 | I102: 存续
A103: 98 | B103: 上海好好商贸有限公司 | C103: 2016年以前 | E103: 3,599.60 | I103: 注销
A104: 99 | B104: 南京市万杰贸易商行 | C104: 2016年以前 | E104: 3,500.00 | I104: 存续
A105: 100 | B105: 南京市日杂清风产品 | C105: 2016年以前 | E105: 3,457.28 | I105: 名称不规范，查询无果
A106: 101 | B106: 江苏省江阴市康宝食品有限公司 | C106: 2016年以前 | E106: 3,200.00 | I106: 吊销
A107: 102 | B107: 南京市日杂丝宝经营部 | C107: 2016年以前 | E107: 3,100.00 | I107: 名称不规范，查询无果
A108: 103 | B108: 江苏康成广告传播有限公司 | C108: 2016年以前 | E108: 3,011.94 | I108: 吊销
A109: 104 | B109: 南京市天琪物资信息交流中心 | C109: 2016年以前 | E109: 3,000.00 | I109: 存续
A110: 105 | B110: 南京市贝司商务公司(比奥德食品) | C110: 2016年以前 | E110: 3,000.00 | I110: 名称不规范，查询无果
A111: 106 | B111: 南京市珈侬化妆品公司 | C111: 2016年以前 | E111: 2,875.08 | I111: 注销 | J111: 南京珈侬化妆品销售有限公司
A112: 107 | B112: 南京市浦江食品公司 | C112: 2016年以前 | E112: 2,800.00 | I112: 吊销 | J112: 南京浦江食品贸易有限公司
A113: 108 | B113: 南京市万汇贸易公司 | C113: 2016年以前 | E113: 2,800.00 | I113: 名称不规范，查询无果
A114: 109 | B114: 河北省武强县利民食品有限公司 | C114: 2016年以前 | E114: 2,688.74 | I114: 存续
A115: 110 | B115: 南京市烷基苯厂劳动服务公司 | C115: 2016年以前 | E115: 2,620.50 | I115: 吊销 | J115: 南京烷基苯厂劳动服务公司冷热饮店
A116: 111 | B116: 上海市努力食品厂 | C116: 2016年以前 | E116: 2,533.30 | I116: 吊销
A117: 112 | B117: 南京市港香食品厂 | C117: 2016年以前 | E117: 2,500.00 | I117: 吊销
A118: 113 | B118: 南京市瑞康蜂业有限公司 | C118: 2016年以前 | E118: 2,500.00 | I118: 存续
A119: 114 | B119: 贵州省贵宝饮品有限公司 | C119: 2016年以前 | E119: 2,466.10 | I119: 注销
A120: 115 | B120: 广东省汕头特区企业发展对外办 | C120: 2016年以前 | E120: 2,400.00 | I120: 名称不规范，查询无果
A121: 116 | B121: 江苏省苏州工业园艾兰得商贸公司 | C121: 2016年以前 | E121: 2,398.57 | I121: 名称不规范，查询无果
A122: 117 | B122: 南京市医药实业总公司 | C122: 2016年以前 | E122: 2,338.33 | I122: 注销
A123: 118 | B123: 南京市腾达经营部 | C123: 2016年以前 | E123: 2,000.00 | I123: 名称不规范，查询无果
A124: 119 | B124: 南京市百货丹芭碧经营部 | C124: 2016年以前 | E124: 1,922.68 | I124: 名称不规范，查询无果
A125: 120 | B125: 南京市平山龙津矿泉水公司 | C125: 2016年以前 | E125: 1,913.32 | I125: 吊销
A126: 121 | B126: 南京市华侨商店 | C126: 2016年以前 | E126: 1,885.00 | I126: 吊销
A127: 122 | B127: 南京市中山大厦 | C127: 2016年以前 | E127: 1,821.60 | I127: 名称不规范，查询无果
A128: 123 | B128: 宁夏夏进乳品饮料有限公司 | C128: 2016年以前 | E128: 1,700.00 | I128: 存续 | J128: 宁夏夏进乳业集团股份有限公司
A129: 124 | B129: 北京龙徽葡萄酒厂 | C129: 2016年以前 | E129: 1,677.68 | I129: 名称不规范，查询无果
A130: 125 | B130: 广东省深圳可可巧克力公司 | C130: 2016年以前 | E130: 1,651.85 | I130: 名称不规范，查询无果
A131: 126 | B131: 陕西省超群 | C131: 2016年以前 | E131: 1,593.01 | I131: 名称不规范，查询无果
A132: 127 | B132: 南京市光华针织厂 | C132: 2016年以前 | E132: 1,487.00 | I132: 名称不规范，查询无果
A133: 128 | B133: 南京市阿勇贸易有限公司 | C133: 2016年以前 | E133: 1,460.42 | I133: 存续
A134: 129 | B134: 南京市飞雅信贸易有限公司 | C134: 2016年以前 | E134: 1,431.24 | I134: 吊销
A135: 130 | B135: 南京市奶业科技开发有限公司 | C135: 2016年以前 | E135: 1,413.00 | I135: 注销
A136: 131 | B136: 南京市嘉隆达工贸有限责任公司 | C136: 2016年以前 | E136: 1,386.27 | I136: 吊销
A137: 132 | B137: 上海北极宝生物工程有限公司 | C137: 2016年以前 | E137: 1,384.32 | I137: 吊销
A138: 133 | B138: 广东省江门华声饼业有限公司 | C138: 2016年以前 | E138: 1,379.90 | I138: 名称不规范，查询无果
A139: 134 | B139: 湖北省大沙诸江罐头厂 | C139: 2016年以前 | E139: 1,358.40 | I139: 名称不规范，查询无果
A140: 135 | B140: 广东省汕头市金叶发展公司 | C140: 2016年以前 | E140: 1,210.00 | I140: 名称不规范，查询无果
A141: 136 | B141: 江苏省扬州第一食品集团公司 | C141: 2016年以前 | E141: 1,115.31 | I141: 名称不规范，查询无果
A142: 137 | B142: 南京市大时代食品有限公司 | C142: 2016年以前 | E142: 1,092.96 | I142: 存续
A143: 138 | B143: 南京口子酒业有限公司 | C143: 2016年以前 | E143: 1,072.00 | I143: 吊销
A144: 139 | B144: 上海市场莱福公司 | C144: 2016年以前 | E144: 1,044.00 | I144: 名称不规范，查询无果
A145: 140 | B145: 南京市有恒面粉实业有限公司 | C145: 2016年以前 | E145: 1,000.00 | I145: 吊销
A146: 141 | B146: 江苏省滨海县海滨首乌制品厂 | C146: 2016年以前 | E146: 1,000.00 | I146: 存续
A147: 142 | B147: 江苏省苏州市大山蜂蜜有限公司 | C147: 2016年以前 | E147: 1,000.00 | I147: 存续
A148: 143 | B148: 南京天环食品集团有限公司 | C148: 2016年以前 | E148: 1,000.00 | I148: 存续
A149: 144 | B149: 安徽省末安县糖烟酒公司 | C149: 2016年以前 | E149: 917.35 | I149: 名称不规范，查询无果
A150: 145 | B150: 江苏省苏州市圣泰珍珠制品有限公 | C150: 2016年以前 | E150: 864.00 | I150: 存续
A151: 146 | B151: 江苏省锡山市华宏金属材料销售部 | C151: 2016年以前 | E151: 700.00 | I151: 吊销
A152: 147 | B152: 南京市梅林南北货商店 | C152: 2016年以前 | E152: 619.89 | I152: 存续
A153: 148 | B153: 江苏省泰州酒厂 | C153: 2016年以前 | E153: 600.00 | I153: 名称不规范，查询无果
A154: 149 | B154: 广东省汕头市供销社汕樟经营部 | C154: 2016年以前 | E154: 600.00 | I154: 名称不规范，查询无果
A155: 150 | B155: 广东省汕头市糖烟酒公司建华名酒 | C155: 2016年以前 | E155: 600.00 | I155: 吊销
A156: 151 | B156: 南京市北郊糖酒食杂经营部 | C156: 2016年以前 | E156: 599.46 | I156: 名称不规范，查询无果
A157: 152 | B157: 江苏利欣商贸有限责任公司 | C157: 2016年以前 | E157: 530.99 | I157: 吊销
A158: 153 | B158: 南京市喜创 | C158: 2016年以前 | E158: 515.00 | I158: 名称不规范，查询无果
A159: 154 | B159: 广东省中山市康健食品烟酒有限公 | C159: 2016年以前 | E159: 513.00 | I159: 注销
A160: 155 | B160: 南京市双城儿童 | C160: 2016年以前 | E160: 500.43 | I160: 名称不规范，查询无果
A161: 156 | B161: 南京市肿瘤研究所 | C161: 2016年以前 | E161: 500.00 | I161: 名称不规范，查询无果
A162: 157 | B162: 山东省蓬莱酿酒厂 | C162: 2016年以前 | E162: 500.00 | I162: 存续
A163: 158 | B163: 江苏大兴集团龙嫂绿色食品有限公 | C163: 2016年以前 | E163: 500.00 | I163: 名称不规范，查询无果
A164: 159 | B164: 江苏省南通颐生酿酒总厂 | C164: 2016年以前 | E164: 476.00 | I164: 名称不规范，查询无果
A165: 160 | B165: 福建省龙马酿酒有限公司 | C165: 2016年以前 | E165: 474.20 | I165: 存续
A166: 161 | B166: 江苏省如东达康 | C166: 2016年以前 | E166: 403.20 | I166: 名称不规范，查询无果
A167: 162 | B167: 南京市金中夏商贸有限公司 | C167: 2016年以前 | E167: 363.74 | I167: 注销
A168: 163 | B168: 江苏省无锡幸福厂 | C168: 2016年以前 | E168: 357.00 | I168: 名称不规范，查询无果
A169: 164 | B169: 安徽省来安县康佳粮油食品厂 | C169: 2016年以前 | E169: 255.00 | I169: 吊销
A170: 165 | B170: 南京威蓝贸易有限公司 | C170: 2016年以前 | E170: 212.58 | I170: 存续
A171: 166 | B171: 南京张裕酒业配售有限责任公司 | C171: 2016年以前 | E171: 163.20 | I171: 注销
A172: 167 | B172: 江苏省海悦实业有限责任公司 | C172: 2016年以前 | E172: 144.00 | I172: 存续
A173: 168 | B173: 上海浦星贸易有限公司 | C173: 2016年以前 | E173: 140.39 | I173: 存续
A174: 169 | B174: 安徽省马鞍山百货采购公司 | C174: 2016年以前 | E174: 124.00 | I174: 名称不规范，查询无果
A175: 170 | B175: 南京市三信玻璃器皿有限公司 | C175: 2016年以前 | E175: 72.98 | I175: 存续
A176: 171 | B176: 南京市味之先调味品 | C176: 2016年以前 | E176: 52.30 | I176: 存续 | J176: 南京味之先调味食品有限公司
A177: 172 | B177: 湖南省爱普露食品有限公司 | C177: 2016年以前 | E177: 42.80 | I177: 名称不规范，查询无果
A178: 173 | B178: 浙江省杭州市梅园蜜饯厂 | C178: 2016年以前 | E178: 39.13 | I178: 存续 | J178: 杭州梅园食品有限公司
A179: 174 | B179: 南京酿酒总厂 | C179: 2016年以前 | E179: 32.00 | I179: 吊销
A180: 175 | B180: 江苏省泰兴市食品厂 | C180: 2016年以前 | E180: 24.28 | I180: 吊销
A181: 176 | B181: 广东省汕头金荣保健品有限公司 | C181: 2016年以前 | E181: 22.41 | I181: 存续
A182: 177 | B182: 南京市兄弟酒业有限公司 | C182: 2016年以前 | E182: 4.00 | I182: 注销
A183: 178 | B183: 南京市好年华商贸有限公司 | C183: 2016年以前 | E183: 3.00 | I183: 存续
A184: 179 | B184: 南京市三人行贸易公司 | C184: 2016年以前 | E184: 0.10 | I184: 名称不规范，查询无果
A185: 180 | B185: 广东省湛江金岭糖业公司 | C185: 2016年以前 | E185: 7.34 | I185: 存续 | J185: 广东金岭糖业集团有限公司
A186: 181 | B186: 盐城市舒而美贸易有限公司 | C186: 2016年以前 | E186: 160.30 | I186: 名称不规范，查询无果
A187: 182 | B187: 山东省莱州市中策啤酒有限公司 | C187: 2016年以前 | E187: 661.29 | I187: 注销 | J187: 莱州中策啤酒有限公司饮料分公司
A188: 183 | B188: 南京市海军指挥学院 | C188: 2016年以前 | E188: 960.00 | I188: 吊销 | J188: 南京海军指挥学院汽车修理厂物资供应站
A189: 184 | B189: 陕西省西安市糖业烟酒副食集团公 | C189: 2016年以前 | E189: 1,008.00 | I189: 吊销 | J189: 西安市糖业烟酒副食集团公司烟草经营部
A190: 185 | B190: 吉林省长春万事通经贸有限公司 | C190: 2016年以前 | E190: 1,160.00 | I190: 吊销 | J190: 长春市万事通经贸有限公司
A191: 186 | B191: 南京市珠江云峰酒业有限公司 | C191: 2016年以前 | E191: 2,400.00 | I191: 注销 | J191: 南京珠江云峰酒业有限公司
A192: 187 | B192: 陕西省西凤酒厂 | C192: 2016年以前 | E192: 2,564.23 | I192: 注销 | J192: 陕西省西凤酒厂销售公司
A193: 188 | B193: 江苏省徐州市维维公司 | C193: 2016年以前 | E193: 3,200.00 | I193: 存续 | J193: 徐州维维食品商城有限公司
A194: 189 | B194: 南京市四方农贸干果食杂有限公司 | C194: 2016年以前 | E194: 11,580.93 | I194: 名称不规范，查询无果
A195: 190 | B195: 四川省糖烟酒公司 | C195: 2016年以前 | E195: 36,441.85 | I195: 名称不规范，查询无果
A196: 191 | B196: 广西南宁宏威糖酒有限公司 | C196: 2016年以前 | E196: 45,271.76 | I196: 注销 | J196: 广西南宁宏威糖酒有限公司
A197: 192 | B197: 贵州省仁怀县糖烟酒公司 | C197: 2016年以前 | E197: 75,720.65 | I197: 存续 | J197: 贵州省仁怀市糖业烟酒有限责任公司
A198: 193 | B198: 上海好好商贸有限公司 | C198: 2016年以前 | E198: 97,409.40 | I198: 注销 | J198: 上海好好商贸有限公司
A199: 194 | B199: 四川省泸州市泸州老窖股份有限公 | C199: 2016年以前 | E199: 204,000.00 | I199: 存续 | J199: 泸州老窖股份有限公司
A200: 195 | B200: 北京市昌平县华都贸易公司 | C200: 2016年以前 | E200: 213,445.12 | I200: 注销 | J200: 北京市昌平县华都贸易公司
... 11 more rows

Sheet 应付期末重分类后明细表 (hidden)
A1: 应付账款明细表
A2: 客商名称 | B2: 关联方 | C2: 2021期初 审定数 | D2: 本期借方 | E2: 本期贷方 | F2: 2021年6月末 审定数 | G2: 账龄 （五年以上） | H2: 备注 | I2: 是否吊销/注销 | J2: 启信宝名称
A3: 杭州德寰礼品有限公司 | C3: 289.50 | F3: 289.50 | G3: =F3 -> 289.50 | H3: 预付账款负数重分类 | I3: 注销 | J3: 杭州德寰礼品有限公司
A4: 江苏苏酒实业股份有限公司 | C4: 97,719.80 | F4: 97,719.80 | G4: 97,719.80 | H4: 预付账款负数重分类 | I4: 注销 | J4: 江苏苏酒实业股份有限公司 | K4: 2015年购酒产生40026元，另57693元为2018年调整与苏糖副食其他应收款产生，原因不详？？
A5: 烟台张裕商贸 | C5: 32,998.01 | F5: 32,998.01 | G5: 32,998.01 | H5: 预付账款负数重分类 | I5: 名称不规范，查询无果 | K5: 2015年购货挂账
A6: 安徽省界首市沙河酿酒营销公司 | C6: 378,391.80 | F6: 378,391.80 | G6: 378,391.80 | H6: 2011年起长期不动户 | I6: 注销 | J6: 安徽沙河酿酒营销总公司
A7: 中国糖业酒类集团公司 | C7: 266,775.10 | F7: 266,775.10 | G7: 266,775.10 | H7: 2011年起长期不动户 | I7: 存续 | J7: 中国糖业酒类集团有限公司
A8: 南京林宁食品有限公司 | C8: 199,671.39 | F8: 199,671.39 | G8: 199,671.39 | H8: 2011年起长期不动户 | I8: 存续
A9: 广东省珠海鲜乐宝食品有限公司 | C9: 152,750.00 | F9: 152,750.00 | G9: 152,750.00 | H9: 2011年起长期不动户 | I9: 吊销 | J9: 珠海鲜乐宝食品有限公司
A10: 江苏省连云港海州实业总公司 | C10: 94,560.00 | F10: 94,560.00 | G10: 94,560.00 | H10: 2011年起长期不动户 | I10: 名称不规范，查询无果
A11: 南京索特包装制品有限公司 | C11: 88,396.00 | F11: 88,396.00 | G11: 88,396.00 | H11: 2011年起长期不动户 | I11: 存续
A12: 陕西省西凤酒厂 | C12: 80,008.61 | F12: 80,008.61 | G12: 80,008.61 | H12: 2011年起长期不动户 | I12: 存续 | J12: 陕西西凤酒厂集团有限公司
A13: 广东省南沙安华发展有限司珠海分 | C13: 72,000.00 | F13: 72,000.00 | G13: 72,000.00 | H13: 2011年起长期不动户 | I13: 注销 | J13: 广东南沙安华发展有限公司珠海分公司
A14: 上海市爱之味食品有限公司 | C14: 71,225.54 | F14: 71,225.54 | G14: 71,225.54 | H14: 2011年起长期不动户 | I14: 存续
A15: 狮王啤酒饮料(苏州)有限公司南京 | C15: 71,223.91 | F15: 71,223.91 | G15: 71,223.91 | H15: 2011年起长期不动户 | I15: 注销 | J15: 华润雪花啤酒（江苏）有限公司南京销售分公司
A16: 上海民乐啤酒饮料有限公司 | C16: 57,339.12 | F16: 57,339.12 | G16: 57,339.12 | H16: 2011年起长期不动户 | I16: 存续 | J16: 上海民乐啤酒饮料有限公司北京办事处
A17: 江苏省扬州环球迎客隆商业城 | C17: 47,510.00 | F17: 47,510.00 | G17: 47,510.00 | H17: 2011年起长期不动户 | I17: 吊销
A18: 安徽省太和县仁济贸易责任公司 | C18: 43,968.00 | F18: 43,968.00 | G18: 43,968.00 | H18: 2011年起长期不动户 | I18: 吊销 | J18: 太和县仁济贸易有限责任公司
A19: 南京瑞达食品厂 | C19: 41,984.00 | F19: 41,984.00 | G19: 41,984.00 | H19: 2011年起长期不动户 | I19: 吊销
A20: 南京市中天酒业有限责任公司 | C20: 40,579.00 | F20: 40,579.00 | G20: 40,579.00 | H20: 2011年起长期不动户 | I20: 存续
A21: 祺昌洋行 | C21: 39,876.00 | F21: 39,876.00 | G21: 39,876.00 | H21: 2011年起长期不动户 | I21: 名称不规范，查询无果
A22: 浙江古越龙山绍兴酒股份有限公司 | C22: 39,270.00 | F22: 39,270.00 | G22: 39,270.00 | H22: 2011年起长期不动户 | I22: 存续
A23: 江苏省常州市新区欢乐食品有限公 | C23: 37,800.00 | F23: 37,800.00 | G23: 37,800.00 | H23: 2011年起长期不动户 | I23: 存续 | J23: 常州新欢乐食品机械有限公司
A24: 南京市金陵新闻开发公司 | C24: 35,000.00 | F24: 35,000.00 | G24: 35,000.00 | H24: 2011年起长期不动户 | I24: 存续 | J24: 南京天勋经贸有限责任公司
A25: 南京市广惠糖酒食品有限公司 | C25: 31,266.00 | F25: 31,266.00 | G25: 31,266.00 | H25: 2011年起长期不动户 | I25: 存续
A26: 天津市雅臣酒业销售中心 | C26: 30,000.00 | F26: 30,000.00 | G26: 30,000.00 | H26: 2011年起长期不动户 | I26: 吊销
A27: 江苏省镇江市健力宝公司 | C27: 29,560.00 | F27: 29,560.00 | G27: 29,560.00 | H27: 2011年起长期不动户 | I27: 名称不规范，查询无果
A28: 江苏省镇江市恒顺酱醋厂 | C28: 28,742.60 | F28: 28,742.60 | G28: 28,742.60 | H28: 2011年起长期不动户 | I28: 注销 | J28: 镇江恒顺酱醋厂经销部
A29: 浙江省杭州市平山乳品厂 | C29: 27,107.10 | F29: 27,107.10 | G29: 27,107.10 | H29: 2011年起长期不动户 | I29: 注销 | J29: 杭州平山乳品厂
A30: 江苏艾森油脂公司 | C30: 25,392.40 | F30: 25,392.40 | G30: 25,392.40 | H30: 2011年起长期不动户 | I30: 吊销 | J30: 江苏艾森油脂有限公司
A31: 江苏力富营养品有限公司 | C31: 25,122.50 | F31: 25,122.50 | G31: 25,122.50 | H31: 2011年起长期不动户 | I31: 注销
A32: 江苏远大贸易有限公司 | C32: 23,880.00 | F32: 23,880.00 | G32: 23,880.00 | H32: 2011年起长期不动户 | I32: 名称不规范，查询无果
A33: 南京市尊煌实业公司 | C33: 23,823.03 | F33: 23,823.03 | G33: 23,823.03 | H33: 2011年起长期不动户 | I33: 吊销 | J33: 南京尊煌实业有限公司
A34: 上海市百事可乐饮料有限公司 | C34: 22,824.22 | F34: 22,824.22 | G34: 22,824.22 | H34: 2011年起长期不动户 | I34: 存续
A35: 山东省济宁心声精新产品经销中心 | C35: 21,772.00 | F35: 21,772.00 | G35: 21,772.00 | H35: 2011年起长期不动户 | I35: 注销 | J35: 山东济宁心声集团精新产品经销中心
A36: 江苏省泰兴市中华柔娜集团 | C36: 21,660.00 | F36: 21,660.00 | G36: 21,660.00 | H36: 2011年起长期不动户 | I36: 存续 | J36: 中华柔娜集团公司
A37: 南京中南江实业有限公司 | C37: 21,309.60 | F37: 21,309.60 | G37: 21,309.60 | H37: 2011年起长期不动户 | I37: 吊销
A38: 江苏省常州武进糖果厂 | C38: 20,570.24 | F38: 20,570.24 | G38: 20,570.24 | H38: 2011年起长期不动户 | I38: 存续 | J38: 常州市武进糖果有限公司
A39: 江苏省武进市万家香水有限公司 | C39: 19,000.00 | F39: 19,000.00 | G39: 19,000.00 | H39: 2011年起长期不动户 | I39: 吊销 | J39: 武进市万家香水有限公司
A40: 南京市惠隆食品有限公司 | C40: 18,980.00 | F40: 18,980.00 | G40: 18,980.00 | H40: 2011年起长期不动户 | I40: 吊销 | J40: 南京惠隆食品有限责任公司经营部
A41: 江苏省辛利丰酒业有限公司 | C41: 17,100.00 | F41: 17,100.00 | G41: 17,100.00 | H41: 2011年起长期不动户 | I41: 吊销 | J41: 江苏辛利丰酒业有限公司
A42: 上海申马酿酒有限公司 | C42: 15,960.00 | F42: 15,960.00 | G42: 15,960.00 | H42: 2011年起长期不动户 | I42: 存续
A43: 福建省龙岩市天马名茶有限公司 | C43: 14,432.68 | F43: 14,432.68 | G43: 14,432.68 | H43: 2011年起长期不动户 | I43: 存续
A44: 河南省民权葡萄酒厂 | C44: 14,118.40 | F44: 14,118.40 | G44: 14,118.40 | H44: 2011年起长期不动户 | I44: 名称不规范，查询无果
A45: 江苏省禹辰贸易有限公司 | C45: 14,000.00 | F45: 14,000.00 | G45: 14,000.00 | H45: 2011年起长期不动户 | I45: 注销
A46: 福建省晋江安海三源食品实业有限 | C46: 14,000.00 | F46: 14,000.00 | G46: 14,000.00 | H46: 2011年起长期不动户 | I46: 存续
A47: 南京大观园酒业有限公司 | C47: 13,909.00 | F47: 13,909.00 | G47: 13,909.00 | H47: 2011年起长期不动户 | I47: 吊销
A48: 上海惠源综合经营部 | C48: 13,800.00 | F48: 13,800.00 | G48: 13,800.00 | H48: 2011年起长期不动户 | I48: 注销
A49: 南京市华鹏贸易公司 | C49: 13,215.01 | F49: 13,215.01 | G49: 13,215.01 | H49: 2011年起长期不动户 | I49: 吊销
A50: 南京鼎新酒业有限公司 | C50: 12,788.00 | F50: 12,788.00 | G50: 12,788.00 | H50: 2011年起长期不动户 | I50: 注销
A51: 南京市百货花王经营部 | C51: 12,765.95 | F51: 12,765.95 | G51: 12,765.95 | H51: 2011年起长期不动户 | I51: 名称不规范，查询无果
A52: 南京市福文商贸有限公司 | C52: 12,740.00 | F52: 12,740.00 | G52: 12,740.00 | H52: 2011年起长期不动户 | I52: 存续
A53: 浙江省如意 | C53: 12,600.00 | F53: 12,600.00 | G53: 12,600.00 | H53: 2011年起长期不动户 | I53: 名称不规范，查询无果
A54: 南京市众鼎保健有限公司 | C54: 11,975.70 | F54: 11,975.70 | G54: 11,975.70 | H54: 2011年起长期不动户 | I54: 吊销 | J54: 南京众鼎保健品有限公司
A55: 中国医药对外贸易总公司华东分公 | C55: 11,530.98 | F55: 11,530.98 | G55: 11,530.98 | H55: 2011年起长期不动户 | I55: 吊销
A56: 南京市邦德酒业公司 | C56: 11,400.00 | F56: 11,400.00 | G56: 11,400.00 | H56: 2011年起长期不动户 | I56: 存续
A57: 河北省石家庄市盛达经贸公司 | C57: 10,800.00 | F57: 10,800.00 | G57: 10,800.00 | H57: 2011年起长期不动户 | I57: 吊销 | J57: 河北盛达世纪经贸有限公司
A58: 南京市思索物资公司 | C58: 10,731.85 | F58: 10,731.85 | G58: 10,731.85 | H58: 2011年起长期不动户 | I58: 名称不规范，查询无果
A59: 四川省青州县农副产品加工厂 | C59: 10,675.80 | F59: 10,675.80 | G59: 10,675.80 | H59: 2011年起长期不动户 | I59: 名称不规范，查询无果
A60: 山东省烟台市飞轮企业集团有限公 | C60: 9,997.80 | F60: 9,997.80 | G60: 9,997.80 | H60: 2011年起长期不动户 | I60: 存续 | J60: 烟台山村果园绿色食品集团有限公司
A61: 南京市四方农贸干果食杂有限公司 | C61: 9,970.31 | F61: 9,970.31 | G61: 9,970.31 | H61: 2011年起长期不动户 | I61: 存续 | J61: 南京四方林门商贸有限公司
A62: 江苏省轻工食品洋河酒楼 | C62: 9,180.36 | F62: 9,180.36 | G62: 9,180.36 | H62: 2011年起长期不动户 | I62: 吊销
A63: 上海市糖烟酒公司 | C63: 9,058.51 | F63: 9,058.51 | G63: 9,058.51 | H63: 2011年起长期不动户 | I63: 名称不规范，查询无果
A64: 南京市金鹏杰贸易公司 | C64: 9,026.15 | F64: 9,026.15 | G64: 9,026.15 | H64: 2011年起长期不动户 | I64: 吊销
A65: 南京市真人化妆品有限公司 | C65: 8,839.56 | F65: 8,839.56 | G65: 8,839.56 | H65: 2011年起长期不动户 | I65: 注销
A66: 江苏省盱眙县桂五机米厂 | C66: 8,697.80 | F66: 8,697.80 | G66: 8,697.80 | H66: 2011年起长期不动户 | I66: 吊销
A67: 南京市冠生园食品厂 | C67: 8,198.47 | F67: 8,198.47 | G67: =F67 -> 8,198.47 | H67: 2011年起长期不动户 | I67: 存续
A68: 南京市梦重园南北货有限公司 | C68: 8,000.00 | F68: 8,000.00 | G68: 8,000.00 | H68: 2011年起长期不动户 | I68: 名称不规范，查询无果
A69: 南京市和利公司 | C69: 8,000.00 | F69: 8,000.00 | G69: 8,000.00 | H69: 2011年起长期不动户 | I69: 名称不规范，查询无果
A70: 南京市土产总公司纸类分公司 | C70: 8,000.00 | F70: 8,000.00 | G70: 8,000.00 | H70: 2011年起长期不动户 | I70: 吊销 | J70: 南京市土产总公司纸类经营分公司
A71: 河南省金丝猴集团有限公司 | C71: 7,960.00 | F71: 7,960.00 | G71: 7,960.00 | H71: 2011年起长期不动户 | I71: 名称不规范，查询无果
A72: 南京市日杂公司纸业公司 | C72: 7,796.16 | F72: 7,796.16 | G72: 7,796.16 | H72: 2011年起长期不动户 | I72: 名称不规范，查询无果
A73: 南京市隆福源实业有限公司 | C73: 7,742.44 | F73: 7,742.44 | G73: 7,742.44 | H73: 2011年起长期不动户 | I73: 吊销
A74: 南京市乐健食品销售中心 | C74: 6,752.83 | F74: 6,752.83 | G74: 6,752.83 | H74: 2011年起长期不动户 | I74: 吊销
A75: 江苏省大都经济发展总公司 | C75: 6,500.00 | F75: 6,500.00 | G75: 6,500.00 | H75: 2011年起长期不动户 | I75: 吊销
A76: 南京市思康商贸有限公司 | C76: 6,500.00 | F76: 6,500.00 | G76: 6,500.00 | H76: 2011年起长期不动户 | I76: 存续
A77: 南京市玄武区糖烟酒公司大庆批发 | C77: 6,208.00 | F77: 6,208.00 | G77: 6,208.00 | H77: 2011年起长期不动户 | I77: 名称不规范，查询无果
A78: 南京市玄武国粮连锁店 | C78: 6,120.00 | F78: 6,120.00 | G78: 6,120.00 | H78: 2011年起长期不动户 | I78: 名称不规范，查询无果
A79: 江苏省果品食杂总公司 | C79: 6,060.00 | F79: 6,060.00 | G79: 6,060.00 | H79: 2011年起长期不动户 | I79: 存续 | J79: 江苏省果品控股公司
A80: 南京市众驰公司 | C80: 6,000.00 | F80: 6,000.00 | G80: 6,000.00 | H80: 2011年起长期不动户 | I80: 名称不规范，查询无果
A81: 安徽天都调味品 | C81: 6,000.00 | F81: 6,000.00 | G81: 6,000.00 | H81: 2011年起长期不动户 | I81: 名称不规范，查询无果
A82: 乐基工程贸易发展有限公司 | C82: 5,900.00 | F82: 5,900.00 | G82: 5,900.00 | H82: 2011年起长期不动户 | I82: 名称不规范，查询无果
A83: 广东省广州市白云区东亚贸易公司 | C83: 5,843.59 | F83: 5,843.59 | G83: 5,843.59 | H83: 2011年起长期不动户 | I83: 名称不规范，查询无果
A84: 江苏省苏州市万成阊副食品经营部 | C84: 5,800.00 | F84: 5,800.00 | G84: 5,800.00 | H84: 2011年起长期不动户 | I84: 吊销
A85: 江苏省无锡黄仓营养食品厂 | C85: 5,742.00 | F85: 5,742.00 | G85: 5,742.00 | H85: 2011年起长期不动户 | I85: 名称不规范，查询无果
A86: 南京市国波贸易有限公司 | C86: 5,716.50 | F86: 5,716.50 | G86: 5,716.50 | H86: 2011年起长期不动户 | I86: 吊销
A87: 四川省宜宾市五粮液酒厂服务公司 | C87: 5,280.00 | F87: 5,280.00 | G87: 5,280.00 | H87: 2011年起长期不动户 | I87: 名称不规范，查询无果
A88: 常州良品工用品公司 | C88: 5,000.00 | F88: 5,000.00 | G88: 5,000.00 | H88: 2011年起长期不动户 | I88: 名称不规范，查询无果
A89: 河北省赞皂县太行红果品厂 | C89: 5,000.00 | F89: 5,000.00 | G89: 5,000.00 | H89: 2011年起长期不动户 | I89: 名称不规范，查询无果
A90: 南京盛唐企划广告有限公司 | C90: 5,000.00 | F90: 5,000.00 | G90: 5,000.00 | H90: 2011年起长期不动户 | I90: 吊销
A91: 南京骏马酒业有限公司 | C91: 4,955.99 | F91: 4,955.99 | G91: 4,955.99 | H91: 2011年起长期不动户 | I91: 吊销
A92: 南京市果品食杂总公司 | C92: 4,592.00 | F92: 4,592.00 | G92: 4,592.00 | H92: 2011年起长期不动户 | I92: 存续
A93: 江苏赐百年营养食品有限公司 | C93: 4,590.10 | F93: 4,590.10 | G93: 4,590.10 | H93: 2011年起长期不动户 | I93: 注销
A94: 南京市建宁商场 | C94: 4,570.00 | F94: 4,570.00 | G94: 4,570.00 | H94: 2011年起长期不动户 | I94: 名称不规范，查询无果
A95: 湖南省振中实业有限公司 | C95: 4,000.00 | F95: 4,000.00 | G95: 4,000.00 | H95: 2011年起长期不动户 | I95: 吊销
A96: 江苏省常州大标食品公司 | C96: 3,953.70 | F96: 3,953.70 | G96: 3,953.70 | H96: 2011年起长期不动户 | I96: 吊销
A97: 江苏省高邮市麒麟阁食品厂 | C97: 3,756.00 | F97: 3,756.00 | G97: 3,756.00 | H97: 2011年起长期不动户 | I97: 存续
A98: 上海市靖康食品有限公司 | C98: 3,684.40 | F98: 3,684.40 | G98: 3,684.40 | H98: 2011年起长期不动户 | I98: 吊销
A99: 南京市鼓楼区糖烟酒食品批发部 | C99: 3,645.01 | F99: 3,645.01 | G99: 3,645.01 | H99: 2011年起长期不动户 | I99: 存续
A100: 上海好好商贸有限公司 | C100: 3,599.60 | F100: 3,599.60 | G100: 3,599.60 | H100: 2011年起长期不动户 | I100: 注销
A101: 南京市万杰贸易商行 | C101: 3,500.00 | F101: 3,500.00 | G101: 3,500.00 | H101: 2011年起长期不动户 | I101: 存续
A102: 南京市日杂清风产品 | C102: 3,457.28 | F102: 3,457.28 | G102: 3,457.28 | H102: 2011年起长期不动户 | I102: 名称不规范，查询无果
A103: 江苏省江阴市康宝食品有限公司 | C103: 3,200.00 | F103: 3,200.00 | G103: 3,200.00 | H103: 2011年起长期不动户 | I103: 吊销
A104: 南京市日杂丝宝经营部 | C104: 3,100.00 | F104: 3,100.00 | G104: 3,100.00 | H104: 2011年起长期不动户 | I104: 名称不规范，查询无果
A105: 江苏康成广告传播有限公司 | C105: 3,011.94 | F105: 3,011.94 | G105: 3,011.94 | H105: 2011年起长期不动户 | I105: 吊销
A106: 南京市天琪物资信息交流中心 | C106: 3,000.00 | F106: 3,000.00 | G106: 3,000.00 | H106: 2011年起长期不动户 | I106: 存续
A107: 南京市贝司商务公司(比奥德食品) | C107: 3,000.00 | F107: 3,000.00 | G107: 3,000.00 | H107: 2011年起长期不动户 | I107: 名称不规范，查询无果
A108: 南京市珈侬化妆品公司 | C108: 2,875.08 | F108: 2,875.08 | G108: 2,875.08 | H108: 2011年起长期不动户 | I108: 注销 | J108: 南京珈侬化妆品销售有限公司
A109: 南京市浦江食品公司 | C109: 2,800.00 | F109: 2,800.00 | G109: 2,800.00 | H109: 2011年起长期不动户 | I109: 吊销 | J109: 南京浦江食品贸易有限公司
A110: 南京市万汇贸易公司 | C110: 2,800.00 | F110: 2,800.00 | G110: 2,800.00 | H110: 2011年起长期不动户 | I110: 名称不规范，查询无果
A111: 河北省武强县利民食品有限公司 | C111: 2,688.74 | F111: 2,688.74 | G111: 2,688.74 | H111: 2011年起长期不动户 | I111: 存续
A112: 南京市烷基苯厂劳动服务公司 | C112: 2,620.50 | F112: 2,620.50 | G112: 2,620.50 | H112: 2011年起长期不动户 | I112: 吊销 | J112: 南京烷基苯厂劳动服务公司冷热饮店
A113: 上海市努力食品厂 | C113: 2,533.30 | F113: 2,533.30 | G113: 2,533.30 | H113: 2011年起长期不动户 | I113: 吊销
A114: 南京市港香食品厂 | C114: 2,500.00 | F114: 2,500.00 | G114: 2,500.00 | H114: 2011年起长期不动户 | I114: 吊销
A115: 南京市瑞康蜂业有限公司 | C115: 2,500.00 | F115: 2,500.00 | G115: 2,500.00 | H115: 2011年起长期不动户 | I115: 存续
A116: 贵州省贵宝饮品有限公司 | C116: 2,466.10 | F116: 2,466.10 | G116: 2,466.10 | H116: 2011年起长期不动户 | I116: 注销
A117: 广东省汕头特区企业发展对外办 | C117: 2,400.00 | F117: 2,400.00 | G117: 2,400.00 | H117: 2011年起长期不动户 | I117: 名称不规范，查询无果
A118: 江苏省苏州工业园艾兰得商贸公司 | C118: 2,398.57 | F118: 2,398.57 | G118: 2,398.57 | H118: 2011年起长期不动户 | I118: 名称不规范，查询无果
A119: 南京市医药实业总公司 | C119: 2,338.33 | F119: 2,338.33 | G119: 2,338.33 | H119: 2011年起长期不动户 | I119: 注销
A120: 南京市腾达经营部 | C120: 2,000.00 | F120: 2,000.00 | G120: 2,000.00 | H120: 2011年起长期不动户 | I120: 名称不规范，查询无果
A121: 南京市百货丹芭碧经营部 | C121: 1,922.68 | F121: 1,922.68 | G121: 1,922.68 | H121: 2011年起长期不动户 | I121: 名称不规范，查询无果
A122: 南京市平山龙津矿泉水公司 | C122: 1,913.32 | F122: 1,913.32 | G122: 1,913.32 | H122: 2011年起长期不动户 | I122: 吊销
A123: 南京市华侨商店 | C123: 1,885.00 | F123: 1,885.00 | G123: 1,885.00 | H123: 2011年起长期不动户 | I123: 吊销
A124: 南京市中山大厦 | C124: 1,821.60 | F124: 1,821.60 | G124: 1,821.60 | H124: 2011年起长期不动户 | I124: 名称不规范，查询无果
A125: 宁夏夏进乳品饮料有限公司 | C125: 1,700.00 | F125: 1,700.00 | G125: 1,700.00 | H125: 2011年起长期不动户 | I125: 存续 | J125: 宁夏夏进乳业集团股份有限公司
A126: 北京龙徽葡萄酒厂 | C126: 1,677.68 | F126: 1,677.68 | G126: 1,677.68 | H126: 2011年起长期不动户 | I126: 名称不规范，查询无果
A127: 广东省深圳可可巧克力公司 | C127: 1,651.85 | F127: 1,651.85 | G127: 1,651.85 | H127: 2011年起长期不动户 | I127: 名称不规范，查询无果
A128: 陕西省超群 | C128: 1,593.01 | F128: 1,593.01 | G128: 1,593.01 | H128: 2011年起长期不动户 | I128: 名称不规范，查询无果
A129: 南京市光华针织厂 | C129: 1,487.00 | F129: 1,487.00 | G129: 1,487.00 | H129: 2011年起长期不动户 | I129: 名称不规范，查询无果
A130: 南京市阿勇贸易有限公司 | C130: 1,460.42 | F130: 1,460.42 | G130: 1,460.42 | H130: 2011年起长期不动户 | I130: 存续
A131: 南京市飞雅信贸易有限公司 | C131: 1,431.24 | F131: 1,431.24 | G131: =F131 -> 1,431.24 | H131: 2011年起长期不动户 | I131: 吊销
A132: 南京市奶业科技开发有限公司 | C132: 1,413.00 | F132: 1,413.00 | G132: 1,413.00 | H132: 2011年起长期不动户 | I132: 注销
A133: 南京市嘉隆达工贸有限责任公司 | C133: 1,386.27 | F133: 1,386.27 | G133: 1,386.27 | H133: 2011年起长期不动户 | I133: 吊销
A134: 上海北极宝生物工程有限公司 | C134: 1,384.32 | F134: 1,384.32 | G134: 1,384.32 | H134: 2011年起长期不动户 | I134: 吊销
A135: 广东省江门华声饼业有限公司 | C135: 1,379.90 | F135: 1,379.90 | G135: 1,379.90 | H135: 2011年起长期不动户 | I135: 名称不规范，查询无果
A136: 湖北省大沙诸江罐头厂 | C136: 1,358.40 | F136: 1,358.40 | G136: 1,358.40 | H136: 2011年起长期不动户 | I136: 名称不规范，查询无果
A137: 广东省汕头市金叶发展公司 | C137: 1,210.00 | F137: 1,210.00 | G137: 1,210.00 | H137: 2011年起长期不动户 | I137: 名称不规范，查询无果
A138: 江苏省扬州第一食品集团公司 | C138: 1,115.31 | F138: 1,115.31 | G138: 1,115.31 | H138: 2011年起长期不动户 | I138: 名称不规范，查询无果
A139: 南京市大时代食品有限公司 | C139: 1,092.96 | F139: 1,092.96 | G139: 1,092.96 | H139: 2011年起长期不动户 | I139: 存续
A140: 南京口子酒业有限公司 | C140: 1,072.00 | F140: 1,072.00 | G140: 1,072.00 | H140: 2011年起长期不动户 | I140: 吊销
A141: 上海市场莱福公司 | C141: 1,044.00 | F141: 1,044.00 | G141: 1,044.00 | H141: 2011年起长期不动户 | I141: 名称不规范，查询无果
A142: 南京市有恒面粉实业有限公司 | C142: 1,000.00 | F142: 1,000.00 | G142: 1,000.00 | H142: 2011年起长期不动户 | I142: 吊销
A143: 江苏省滨海县海滨首乌制品厂 | C143: 1,000.00 | F143: 1,000.00 | G143: 1,000.00 | H143: 2011年起长期不动户 | I143: 存续
A144: 江苏省苏州市大山蜂蜜有限公司 | C144: 1,000.00 | F144: 1,000.00 | G144: 1,000.00 | H144: 2011年起长期不动户 | I144: 存续
A145: 南京天环食品集团有限公司 | C145: 1,000.00 | F145: 1,000.00 | G145: 1,000.00 | H145: 2011年起长期不动户 | I145: 存续
A146: 安徽省末安县糖烟酒公司 | C146: 917.35 | F146: 917.35 | G146: 917.35 | H146: 2011年起长期不动户 | I146: 名称不规范，查询无果
A147: 江苏省苏州市圣泰珍珠制品有限公 | C147: 864.00 | F147: 864.00 | G147: 864.00 | H147: 2011年起长期不动户 | I147: 存续
A148: 江苏省锡山市华宏金属材料销售部 | C148: 700.00 | F148: 700.00 | G148: 700.00 | H148: 2011年起长期不动户 | I148: 吊销
A149: 南京市梅林南北货商店 | C149: 619.89 | F149: 619.89 | G149: 619.89 | H149: 2011年起长期不动户 | I149: 存续
A150: 江苏省泰州酒厂 | C150: 600.00 | F150: 600.00 | G150: 600.00 | H150: 2011年起长期不动户 | I150: 名称不规范，查询无果
A151: 广东省汕头市供销社汕樟经营部 | C151: 600.00 | F151: 600.00 | G151: 600.00 | H151: 2011年起长期不动户 | I151: 名称不规范，查询无果
A152: 广东省汕头市糖烟酒公司建华名酒 | C152: 600.00 | F152: 600.00 | G152: 600.00 | H152: 2011年起长期不动户 | I152: 吊销
A153: 南京市北郊糖酒食杂经营部 | C153: 599.46 | F153: 599.46 | G153: 599.46 | H153: 2011年起长期不动户 | I153: 名称不规范，查询无果
A154: 江苏利欣商贸有限责任公司 | C154: 530.99 | F154: 530.99 | G154: 530.99 | H154: 2011年起长期不动户 | I154: 吊销
A155: 南京市喜创 | C155: 515.00 | F155: 515.00 | G155: 515.00 | H155: 2011年起长期不动户 | I155: 名称不规范，查询无果
A156: 广东省中山市康健食品烟酒有限公 | C156: 513.00 | F156: 513.00 | G156: 513.00 | H156: 2011年起长期不动户 | I156: 注销
A157: 南京市双城儿童 | C157: 500.43 | F157: 500.43 | G157: 500.43 | H157: 2011年起长期不动户 | I157: 名称不规范，查询无果
A158: 南京市肿瘤研究所 | C158: 500.00 | F158: 500.00 | G158: 500.00 | H158: 2011年起长期不动户 | I158: 名称不规范，查询无果
A159: 山东省蓬莱酿酒厂 | C159: 500.00 | F159: 500.00 | G159: 500.00 | H159: 2011年起长期不动户 | I159: 存续
A160: 江苏大兴集团龙嫂绿色食品有限公 | C160: 500.00 | F160: 500.00 | G160: 500.00 | H160: 2011年起长期不动户 | I160: 名称不规范，查询无果
A161: 江苏省南通颐生酿酒总厂 | C161: 476.00 | F161: 476.00 | G161: 476.00 | H161: 2011年起长期不动户 | I161: 名称不规范，查询无果
A162: 福建省龙马酿酒有限公司 | C162: 474.20 | F162: 474.20 | G162: 474.20 | H162: 2011年起长期不动户 | I162: 存续
A163: 江苏省如东达康 | C163: 403.20 | F163: 403.20 | G163: 403.20 | H163: 2011年起长期不动户 | I163: 名称不规范，查询无果
A164: 南京市金中夏商贸有限公司 | C164: 363.74 | F164: 363.74 | G164: 363.74 | H164: 2011年起长期不动户 | I164: 注销
A165: 江苏省无锡幸福厂 | C165: 357.00 | F165: 357.00 | G165: 357.00 | H165: 2011年起长期不动户 | I165: 名称不规范，查询无果
A166: 安徽省来安县康佳粮油食品厂 | C166: 255.00 | F166: 255.00 | G166: 255.00 | H166: 2011年起长期不动户 | I166: 吊销
A167: 南京威蓝贸易有限公司 | C167: 212.58 | F167: 212.58 | G167: 212.58 | H167: 2011年起长期不动户 | I167: 存续
A168: 南京张裕酒业配售有限责任公司 | C168: 163.20 | F168: 163.20 | G168: 163.20 | H168: 2011年起长期不动户 | I168: 注销
A169: 江苏省海悦实业有限责任公司 | C169: 144.00 | F169: 144.00 | G169: 144.00 | H169: 2011年起长期不动户 | I169: 存续
A170: 上海浦星贸易有限公司 | C170: 140.39 | F170: 140.39 | G170: 140.39 | H170: 2011年起长期不动户 | I170: 存续
A171: 安徽省马鞍山百货采购公司 | C171: 124.00 | F171: 124.00 | G171: 124.00 | H171: 2011年起长期不动户 | I171: 名称不规范，查询无果
A172: 南京市三信玻璃器皿有限公司 | C172: 72.98 | F172: 72.98 | G172: 72.98 | H172: 2011年起长期不动户 | I172: 存续
A173: 南京市味之先调味品 | C173: 52.30 | F173: 52.30 | G173: 52.30 | H173: 2011年起长期不动户 | I173: 存续 | J173: 南京味之先调味食品有限公司
A174: 湖南省爱普露食品有限公司 | C174: 42.80 | F174: 42.80 | G174: 42.80 | H174: 2011年起长期不动户 | I174: 名称不规范，查询无果
A175: 浙江省杭州市梅园蜜饯厂 | C175: 39.13 | F175: 39.13 | G175: 39.13 | H175: 2011年起长期不动户 | I175: 存续 | J175: 杭州梅园食品有限公司
A176: 南京酿酒总厂 | C176: 32.00 | F176: 32.00 | G176: 32.00 | H176: 2011年起长期不动户 | I176: 吊销
A177: 江苏省泰兴市食品厂 | C177: 24.28 | F177: 24.28 | G177: 24.28 | H177: 2011年起长期不动户 | I177: 吊销
A178: 广东省汕头金荣保健品有限公司 | C178: 22.41 | F178: 22.41 | G178: 22.41 | H178: 2011年起长期不动户 | I178: 存续
A179: 南京市兄弟酒业有限公司 | C179: 4.00 | F179: 4.00 | G179: 4.00 | H179: 2011年起长期不动户 | I179: 注销
A180: 南京市好年华商贸有限公司 | C180: 3.00 | F180: 3.00 | G180: 3.00 | H180: 2011年起长期不动户 | I180: 存续
A181: 南京市三人行贸易公司 | C181: 0.10 | F181: 0.10 | G181: 0.10 | H181: 2011年起长期不动户 | I181: 名称不规范，查询无果
A182: 广东省湛江金岭糖业公司 | C182: 7.34 | F182: 7.34 | G182: 7.34 | H182: 预付账款负数重分类，2011年起长期不动户 | I182: 存续 | J182: 广东金岭糖业集团有限公司
A183: 盐城市舒而美贸易有限公司 | C183: 160.30 | F183: 160.30 | G183: 160.30 | H183: 预付账款负数重分类，2011年起长期不动户 | I183: 名称不规范，查询无果
A184: 山东省莱州市中策啤酒有限公司 | C184: 661.29 | F184: 661.29 | G184: 661.29 | H184: 预付账款负数重分类，2011年起长期不动户 | I184: 注销 | J184: 莱州中策啤酒有限公司饮料分公司
A185: 南京市海军指挥学院 | C185: 960.00 | F185: 960.00 | G185: 960.00 | H185: 预付账款负数重分类，2011年起长期不动户 | I185: 吊销 | J185: 南京海军指挥学院汽车修理厂物资供应站
A186: 陕西省西安市糖业烟酒副食集团公 | C186: 1,008.00 | F186: 1,008.00 | G186: 1,008.00 | H186: 预付账款负数重分类，2011年起长期不动户 | I186: 吊销 | J186: 西安市糖业烟酒副食集团公司烟草经营部
A187: 吉林省长春万事通经贸有限公司 | C187: 1,160.00 | F187: 1,160.00 | G187: 1,160.00 | H187: 预付账款负数重分类，2011年起长期不动户 | I187: 吊销 | J187: 长春市万事通经贸有限公司
A188: 南京市珠江云峰酒业有限公司 | C188: 2,400.00 | F188: 2,400.00 | G188: 2,400.00 | H188: 预付账款负数重分类，2011年起长期不动户 | I188: 注销 | J188: 南京珠江云峰酒业有限公司
A189: 陕西省西凤酒厂 | C189: 2,564.23 | F189: 2,564.23 | G189: 2,564.23 | H189: 预付账款负数重分类，2011年起长期不动户 | I189: 注销 | J189: 陕西省西凤酒厂销售公司
A190: 江苏省徐州市维维公司 | C190: 3,200.00 | F190: 3,200.00 | G190: 3,200.00 | H190: 预付账款负数重分类，2011年起长期不动户 | I190: 存续 | J190: 徐州维维食品商城有限公司
A191: 南京市四方农贸干果食杂有限公司 | C191: 11,580.93 | F191: 11,580.93 | G191: 11,580.93 | H191: 预付账款负数重分类，2011年起长期不动户 | I191: 名称不规范，查询无果
A192: 四川省糖烟酒公司 | C192: 36,441.85 | F192: 36,441.85 | G192: 36,441.85 | H192: 预付账款负数重分类，2011年起长期不动户 | I192: 名称不规范，查询无果
A193: 广西南宁宏威糖酒有限公司 | C193: 45,271.76 | F193: 45,271.76 | G193: 45,271.76 | H193: 预付账款负数重分类，2011年起长期不动户 | I193: 注销 | J193: 广西南宁宏威糖酒有限公司
A194: 贵州省仁怀县糖烟酒公司 | C194: 75,720.65 | F194: 75,720.65 | G194: 75,720.65 | H194: 预付账款负数重分类，2011年起长期不动户 | I194: 存续 | J194: 贵州省仁怀市糖业烟酒有限责任公司
A195: 上海好好商贸有限公司 | C195: 97,409.40 | F195: 97,409.40 | G195: =F195 -> 97,409.40 | H195: 预付账款负数重分类，2011年起长期不动户 | I195: 注销 | J195: 上海好好商贸有限公司
A196: 四川省泸州市泸州老窖股份有限公 | C196: 204,000.00 | F196: 204,000.00 | G196: 204,000.00 | H196: 预付账款负数重分类，2011年起长期不动户 | I196: 存续 | J196: 泸州老窖股份有限公司
A197: 北京市昌平县华都贸易公司 | C197: 213,445.12 | F197: 213,445.12 | G197: 213,445.12 | H197: 预付账款负数重分类，2011年起长期不动户 | I197: 注销 | J197: 北京市昌平县华都贸易公司
A198: 山西省杏花村汾酒厂 | C198: 316,524.32 | F198: 316,524.32 | G198: 316,524.32 | H198: 预付账款负数重分类，2011年起长期不动户 | I198: 名称不规范，查询无果
A199: 四川省古蔺县郎酒厂 | C199: 321,009.56 | F199: 321,009.56 | G199: 321,009.56 | H199: 预付账款负数重分类，2011年起长期不动户 | I199: 存续 | J199: 四川省古蔺郎酒厂有限公司
A200: 四川省宜宾市五粮液供销公司 | C200: 2,721,679.66 | F200: 2,721,679.66 | G200: 2,721,679.66 | H200: 预付账款负数重分类，2011年起长期不动户 | I200: 存续 | J200: 四川省宜宾五粮液供销有限公司
... 2 more rows

Sheet 5-6预收账款 (hidden)
A1: 预收账款评估明细表
A2: =基础信息!A1 -> 评估基准日：2021年6月30日
G3: 表5-6
A4: =基础信息!A2 -> 被评估单位：江苏省糖烟酒总公司 | G4: 金额单位：人民币元
A5: 序号 | B5: 户名（结算对象) | C5: 发生日期 | D5: 业务内容 | E5: 账面价值 | F5: 评估价值 | G5: 备注 | H5: 关联方 | I5: 是否注销/吊销 | J5: 全称
A6: 1 | B6: 南京市镇江路批 | C6: 2016年以前 | I6: 名称不规范，查询无果
A7: 2 | B7: 华庆安 | C7: 2016年以前 | I7: 名称不规范，查询无果
A8: 3 | B8: 南京市摩托车制造厂 | C8: 2016年以前 | I8: 存续
A9: 4 | B9: 南京市一批 | C9: 2016年以前 | I9: 名称不规范，查询无果
A10: 5 | B10: 安徽省芜湖市丰和酒业公司 | C10: 2016年以前 | I10: 存续 | J10: 安徽沣河酒业有限公司
A11: 6 | B11: 江苏省海门供销大厦 | C11: 2016年以前 | I11: 存续 | J11: 海门市供销大厦
A12: 7 | B12: 南京市福旺食品有限公司 | C12: 2016年以前 | I12: 存续 | J12: 南京福旺食品有限公司
A13: 8 | B13: 安徽省淮北金兰批发部 | C13: 2016年以前 | I13: 名称不规范，查询无果
A14: 9 | B14: 江苏省如皋市皋城酒业有限公司 | C14: 2016年以前 | I14: 注销 | J14: 如皋市皋城酒业有限公司
A15: 10 | B15: 江苏省江都市嘉福酒业有限公司 | C15: 2016年以前 | I15: 注销 | J15: 江都市嘉福酒业有限公司
A16: 11 | B16: 南京市兰特 | C16: 2016年以前 | I16: 名称不规范，查询无果
A17: 12 | B17: 南京市浦口工业总公司 | C17: 2016年以前 | I17: 吊销 | J17: 南京市浦口区工业总公司
A18: 13 | B18: 江苏省淮阴商厦 | C18: 2016年以前 | I18: 注销 | J18: 淮阴商厦
A19: 14 | B19: 南京市金鹰国际购物中心 | C19: 2016年以前 | I19: 存续 | J19: 南京金鹰国际集团有限公司
A20: 15 | B20: 江苏省泰州市副食品公司 | C20: 2016年以前 | I20: 存续 | J20: 泰州副食品总公司
A21: 16 | B21: 南京诚隆商娱购物中心有限公司 | C21: 2016年以前 | I21: 存续 | J21: 南京诚隆商娱购物中心有限公司
A22: 17 | B22: 南京市诚信贸易 | C22: 2016年以前 | I22: 名称不规范，查询无果
A23: 18 | B23: 南京市镇江路批 | C23: 2016年以前 | I23: 名称不规范，查询无果
A24: 19 | B24: 南京市宏丰洋酒公司 | C24: 2016年以前 | I24: 名称不规范，查询无果
A25: 20 | B25: 上海锦江麦德龙-南京雨花商场 | C25: 2016年以前 | I25: 存续 | J25: 麦德龙商业集团有限公司南京雨花商场
A26: 21 | B26: 个人蒋寿昌 | C26: 2016年以前 | I26: 名称不规范，查询无果
A27: 22 | B27: 江苏省响水县糖烟酒公司 | C27: 2016年以前 | I27: 注销 | J27: 江苏省响水县糖烟酒总店
A28: 23 | B28: 南京市健力宝科技开发公司 | C28: 2016年以前 | I28: 名称不规范，查询无果
A29: 24 | B29: 南京通信工程学院 | C29: 2016年以前 | I29: 注销 | J29: 南京通信工程学院军人服务社
A30: 25 | B30: 安徽省阜阳市糖酒副食批发部 | C30: 2016年以前 | I30: 吊销 | J30: 阜阳市糖酒副食品公司批发部
A31: 26 | B31: 南京市大自然生物工程公司 | C31: 2016年以前 | I31: 注销 | J31: 江苏大自然生物工程公司
A32: 27 | B32: 江苏省淮阴市新亚商城 | C32: 2016年以前 | I32: 名称不规范，查询无果
A33: 28 | B33: 江苏省兴化市糖烟酒公司 | C33: 2016年以前 | I33: 名称不规范，查询无果
A34: 29 | B34: 南京市宁联食品店 | C34: 2016年以前 | I34: 名称不规范，查询无果
A35: 30 | B35: 江苏省苏州百汇连锁店总公司 | C35: 2016年以前 | I35: 吊销 | J35: 苏州百汇连锁店总公司南环店
A36: 31 | B36: 江苏省沛县大屯矿区 | C36: 2016年以前 | I36: 名称不规范，查询无果
A37: 32 | B37: 南京市太平商场 | C37: 2016年以前 | I37: 存续 | J37: 南京市太平商场有限公司
A38: 33 | B38: 南京市惠萌远贸易公司 | C38: 2016年以前 | I38: 存续 | J38: 南京惠萌远国际贸易发展有限公司
A39: 34 | B39: 南京市狮子楼酒店 | C39: 2016年以前 | I39: 注销 | J39: 南京市鼓楼区狮子楼大酒店
A40: 35 | B40: 南京市山西路百货大楼 | C40: 2016年以前 | I40: 存续 | J40: 南京山西路百货大楼有限责任公司
A41: 36 | B41: 南京市水上世界 | C41: 2016年以前 | I41: 名称不规范，查询无果
A42: 37 | B42: 南京市兰天经营公司 | C42: 2016年以前 | I42: 名称不规范，查询无果
A43: 38 | B43: 广东省饮食服务公司 | C43: 2016年以前 | I43: 存续 | J43: 广东省饮食服务有限公司
A44: 39 | B44: 南京市金旺县副食品公司 | C44: 2016年以前 | I44: 名称不规范，查询无果
A45: 40 | B45: 江苏省海达轴承缎造公司 | C45: 2016年以前 | I45: 名称不规范，查询无果
A46: 41 | B46: 南京市华美批发部 | C46: 2016年以前 | I46: 名称不规范，查询无果
A47: 42 | B47: 南京市梅铁百货店 | C47: 2016年以前 | I47: 名称不规范，查询无果
A48: 43 | B48: 江苏晨林梅山 | C48: 2016年以前 | I48: 注销 | J48: 江苏晨林商贸有限公司爱购梅山店
A49: 44 | B49: 南京市北郊糖酒食杂经营部 | C49: 2016年以前 | I49: 名称不规范，查询无果
A50: 45 | B50: 江苏京侨食品有限公司 | C50: 2016年以前 | I50: 存续 | J50: 江苏京侨食品有限公司
A51: 46 | B51: 南京市皇润实业有限公司 | C51: 2016年以前 | I51: 吊销 | J51: 南京皇润实业有限公司
A52: 47 | B52: 南京市银港酒楼 | C52: 2016年以前 | I52: 注销 | J52: 南京银港海鲜酒楼
A53: 48 | B53: 南京市华安调味品批发部 | C53: 2016年以前 | I53: 名称不规范，查询无果
A54: 49 | B54: 江苏省建湖县粮贸大厦 | C54: 2016年以前 | I54: 名称不规范，查询无果
A55: 50 | B55: 南京双狮楼大酒店 | C55: 2016年以前 | I55: 名称不规范，查询无果
A56: 51 | B56: 国际酿酒集团中国有限公司上海办 | C56: 2016年以前 | I56: 注销 | J56: 香港国际酿酒集团中国有限公司上海代表处
A57: 52 | B57: 南京市农机安全报社 | C57: 2016年以前 | I57: 名称不规范，查询无果
A58: 53 | B58: 南京市有限广播电视台 | C58: 2016年以前 | I58: 名称不规范，查询无果
A59: 54 | B59: 江苏省高邮食品厂 | C59: 2016年以前 | I59: 存续 | J59: 高邮市食品厂
A60: 55 | B60: 南京市科巷菜场糖专柜 | C60: 2016年以前 | I60: 名称不规范，查询无果
A61: 56 | B61: 南京市秦淮区拆迁办 | C61: 2016年以前 | I61: 其他状态；社会组织。 | J61: 南京市秦淮区房屋拆迁安置办公室
A62: 57 | B62: 南京市晓华车队 | C62: 2016年以前 | I62: 名称不规范，查询无果
A63: 58 | B63: 南京市白鹭食品厂 | C63: 2016年以前 | I63: 注销 | J63: 南京市雨花台区白鹭食品厂经营部
A64: 59 | B64: 其他 | C64: 2016年以前 | I64: 名称不规范，查询无果
A65: 60 | B65: 江苏省高淳县糖烟酒公司 | C65: 2016年以前 | I65: 名称不规范，查询无果
A66: 61 | B66: 南京市惠丰商行 | C66: 2016年以前 | I66: 名称不规范，查询无果
A67: 62 | B67: 江苏省泰州凤凰商业公司 | C67: 2016年以前 | I67: 名称不规范，查询无果
A68: 63 | B68: 代垫运费等 | C68: 2016年以前 | I68: 名称不规范，查询无果
A69: 64 | B69: 南京市橄榄树 | C69: 2016年以前 | I69: 名称不规范，查询无果
A70: 65 | B70: 江苏省淮安市锦程贸易公司 | C70: 2016年以前 | I70: 名称不规范，查询无果
A71: 66 | B71: 江苏省东海县糖烟酒公司 | C71: 2016年以前 | I71: 注销 | J71: 江苏省糖烟酒总公司东海分公司
A72: 67 | B72: 南京市苏龙酒楼 | C72: 2016年以前 | I72: 名称不规范，查询无果
A73: 68 | B73: 江苏省冶金厅 | C73: 2016年以前 | I73: 名称不规范，查询无果
A74: 69 | B74: 南京市龙祥大酒店 | C74: 2016年以前 | I74: 名称不规范，查询无果
A75: 70 | B75: 南京市梦重园南北货有限公司 | C75: 2016年以前 | I75: 注销 | J75: 南京梦重园南北货有限责任公司溧水超市
A76: 71 | B76: 江苏商厦经济发展有限公司 | C76: 2016年以前 | I76: 名称不规范，查询无果
A77: 72 | B77: 南京市中华酒家 | C77: 2016年以前 | I77: 注销 | J77: 南京中华楼酒家
A78: 73 | B78: 南京市方达批发部 | C78: 2016年以前 | I78: 名称不规范，查询无果
A79: 74 | B79: 江苏省淮阴华联商厦购物中心 | C79: 2016年以前 | I79: 注销 | J79: 淮阴华联商厦购物中心
A80: 75 | B80: 南京市华联鞋帽公司 | C80: 2016年以前 | I80: 吊销 | J80: 南京友谊华联（集团）有限责任公司鞋帽批发分公司
A81: 76 | B81: 南京市湖南路商场 | C81: 2016年以前 | I81: 存续 | J81: 南京湖南路商场有限公司
A82: 77 | B82: 安徽省马鞍山市雨山烟酒食品批发 | C82: 2016年以前 | I82: 注销 | J82: 马鞍山市雨山烟酒食品批发部
A83: 78 | B83: 江苏省吴江市糖烟酒公司 | C83: 2016年以前 | I83: 注销 | J83: 江苏省吴江市糖烟酒公司
A84: 79 | B84: 南京市外贸进出口商品经销公司 | C84: 2016年以前 | I84: 吊销 | J84: 南京市外贸进出口商品经销公司批发分公司
A85: 80 | B85: 南京市御厨轩粤菜城 | C85: 2016年以前 | I85: 存续 | J85: 南京御厨轩大酒楼
A86: 81 | B86: 南京市宝兰批发部 | C86: 2016年以前 | I86: 名称不规范，查询无果
A87: 82 | B87: 南京市金帝 | C87: 2016年以前 | I87: 名称不规范，查询无果
A88: 83 | B88: 南京市学士园酒店 | C88: 2016年以前 | I88: 存续 | J88: 江苏学士园酒店有限公司
A89: 84 | B89: 江苏省兴化大兴商厦 | C89: 2016年以前 | I89: 注销 | J89: 兴化市大兴商厦
A90: 85 | B90: 江苏中际科技实业公司 | C90: 2016年以前 | I90: 存续 | J90: 江苏中际科技实业公司
A91: 86 | B91: 新龙和洋酒公司 | C91: 2016年以前 | I91: 注销 | J91: 新龙和洋酒（香港及中国）有限公司
A92: 87 | B92: 南京市大桥商场 | C92: 2016年以前 | I92: 存续 | J92: 南京大桥商场
A93: 88 | B93: 南京市泽华糖酒有限公司 | C93: 2016年以前 | I93: 名称不规范，查询无果
A94: 89 | B94: 南京市鼓楼食品商场 | C94: 2016年以前 | I94: 存续 | J94: 南京市鼓楼食品商场有限公司
A95: 90 | B95: 南京市闽宁干货经营部 | C95: 2016年以前 | I95: 注销 | J95: 南京市下关区闽宁干货经营部
A96: 91 | B96: 江苏省泗阳亚细亚 | C96: 2016年以前 | I96: 名称不规范，查询无果
A97: 92 | B97: 南京市豪门夜总会 | C97: 2016年以前 | I97: 注销 | J97: 南京市豪门夜总会
A98: 93 | B98: 南京市金硕源大酒店石鼓路 | C98: 2016年以前 | I98: 吊销 | J98: 金硕源大酒楼石鼓路分店
A99: 94 | B99: 南京市司达食品有限公司 | C99: 2016年以前 | I99: 存续 | J99: 南京司达食品有限公司
A100: 95 | B100: 南京市千百叶超市 | C100: 2016年以前 | I100: 名称不规范，查询无果
A101: 96 | B101: 江苏省苏州中亚公司 | C101: 2016年以前 | I101: 名称不规范，查询无果
A102: 97 | B102: 江苏省泰兴市长江糖烟酒 | C102: 2016年以前 | I102: 吊销 | J102: 泰兴市长江糖烟酒有限公司
A103: 98 | B103: 南京市宇开土石方工程公司 | C103: 2016年以前 | I103: 吊销 | J103: 南京宇开土石方工程公司
A104: 99 | B104: 南京市南钢一烧分厂 | C104: 2016年以前 | I104: 名称不规范，查询无果
A105: 100 | B105: 南京市唐宫大酒楼 | C105: 2016年以前 | I105: 吊销 | J105: 珠海市唐人饮食服务有限公司南京唐宫大酒楼
A106: 101 | B106: 江苏省宝应亚细亚商城 | C106: 2016年以前 | I106: 名称不规范，查询无果
A107: 102 | B107: 南京市南大南苑餐厅 | C107: 2016年以前 | I107: 名称不规范，查询无果
A108: 103 | B108: 南京市玄武饭店餐饮部 | C108: 2016年以前 | I108: 存续 | J108: 南京玄武饭店商场部
A109: 104 | B109: 江苏省总工会招待所 | C109: 2016年以前 | I109: 注销 | J109: 江苏省总工会机关招待所
A110: 105 | B110: 南京市唐宫酒楼 | C110: 2016年以前 | I110: 吊销 | J110: 珠海市唐人饮食服务有限公司南京唐宫大酒楼
A111: 106 | B111: 江苏省扬中华厦商业公司 | C111: 2016年以前 | I111: 名称不规范，查询无果
A112: 107 | B112: 江苏省南京溧水供销商城集团 | C112: 2016年以前 | I112: 吊销 | J112: 南京溧水供销商城集团有限公司
A113: 108 | B113: 江苏省淮阴市宏泰商城 | C113: 2016年以前 | I113: 名称不规范，查询无果
A114: 109 | B114: 南京市雨花台区糖烟酒公司 | C114: 2016年以前 | I114: 注销 | J114: 南京市雨花台区糖烟酒公司
A115: 110 | B115: 南京市铁路电子仪器厂 | C115: 2016年以前 | I115: 存续 | J115: 南京铁路电子仪器厂
A116: 111 | B116: 安徽省百川糖酒 | C116: 2016年以前 | I116: 注销 | J116: 安徽省百川糖酒有限责任公司
A117: 112 | B117: 江苏省如皋供销总社 | C117: 2016年以前 | I117: 注销 | J117: 江苏省如皋市供销物资总公司
A118: 113 | B118: 南京市中华门饭店分部 | C118: 2016年以前 | I118: 注销 | J118: 南京中华门饭店分部
A119: 114 | B119: 南京市新海华营销有限公司 | C119: 2016年以前 | I119: 吊销 | J119: 南京新海华营销有限公司
A120: 115 | B120: 江苏省泰州市集成贸易公司 | C120: 2016年以前 | I120: 名称不规范，查询无果
A121: 116 | B121: 南京市振伟糖烟酒公司 | C121: 2016年以前 | I121: 名称不规范，查询无果
A122: 117 | B122: 江苏省淮阴市东方大厦 | C122: 2016年以前 | I122: 吊销 | J122: 淮阴市东方大厦
A123: 118 | B123: 江苏省盐城市百货总公司 | C123: 2016年以前 | I123: 注销 | J123: 江苏省盐城百货采购供应站
A124: 119 | B124: 南京市伊甸园餐厅 | C124: 2016年以前 | I124: 注销 | J124: 南京市江宁区伊甸园茶餐厅
A125: 120 | B125: 个人(于洋) | C125: 2016年以前 | I125: 名称不规范，查询无果
A126: 121 | B126: 南京市土特产品商店 | C126: 2016年以前 | I126: 存续 | J126: 南京市土特产品商店
A127: 122 | B127: 南京市大庆饭店 | C127: 2016年以前 | I127: 注销 | J127: 大庆石油管理局驻江苏省办事处南京大庆饭店
A128: 123 | B128: 南京市嘉年华 | C128: 2016年以前 | I128: 存续 | J128: 南京嘉年华酒业有限公司
A129: 124 | B129: 南京市万联批发部 | C129: 2016年以前 | I129: 名称不规范，查询无果
A130: 125 | B130: 江苏省金湖县土产棉麻总公司华昌 | C130: 2016年以前 | I130: 名称不规范，查询无果
A131: 126 | B131: 江苏省泰州市宏达贸易商行 | C131: 2016年以前 | I131: 名称不规范，查询无果
A132: 127 | B132: 南京市83470部队服务中心 | C132: 2016年以前 | I132: 注销 | J132: 八三四七O部队基地加油中心
A133: 128 | B133: 南京紫荆大酒店 | C133: 2016年以前 | I133: 吊销 | J133: 南京紫荆花大酒店有限公司
A134: 129 | B134: 南京市阳光物业管理发展有限公司 | C134: 2016年以前 | I134: 名称不规范，查询无果
A135: 130 | B135: 南京市新飞源酒楼 | C135: 2016年以前 | I135: 注销 | J135: 南京新飞源酒楼
A136: 131 | B136: 南京市狮王府 | C136: 2016年以前 | I136: 存续 | J136: 南京狮王府美食有限公司
A137: 132 | B137: 南京市鼓楼区法院 | C137: 2016年以前 | I137: 存续 | J137: 南京市鼓楼区人民法院
A138: 133 | B138: 南京市白下区机关经营部 | C138: 2016年以前 | I138: 注销 | J138: 南京白下区区级机关劳动服务公司经营部
A139: 134 | B139: 江阴市名烟名酒行 | C139: 2016年以前 | I139: 名称不规范，查询无果
A140: 135 | B140: 太平洋建设 | C140: 2016年以前 | I140: 存续 | J140: 江苏太平洋建设有限公司
A141: 136 | B141: 常州秦海平 | C141: 2016年以前 | I141: 名称不规范，查询无果
A142: 137 | B142: 阳光人寿保险 | C142: 2016年以前 | I142: 名称不规范，查询无果
A143: 138 | B143: 刷卡暂存 | C143: 2016年以前 | I143: 名称不规范，查询无果
A144: 139 | B144: 淮安特许店 | C144: 2016年以前 | I144: 名称不规范，查询无果
A145: 140 | B145: 盱眙特许店（仁泰烟酒） | C145: 2016年以前 | I145: 名称不规范，查询无果
A146: 141 | B146: 客户杨小妹 | C146: 2016年以前 | I146: 名称不规范，查询无果
A147: 142 | B147: 沛县特许店 | C147: 2016年以前 | I147: 名称不规范，查询无果
A148: 143 | B148: 无锡锡西专卖店 | C148: 2016年以前 | I148: 名称不规范，查询无果
A149: 144 | B149: 集庆门谢总 | C149: 2016年以前 | I149: 名称不规范，查询无果
A150: 145 | B150: 客户阎军 | I150: 名称不规范，查询无果
A151: 146 | B151: 金涵商贸 | C151: 2016年以前 | I151: 存续 | J151: 江苏金涵商贸有限公司
A152: 147 | B152: 客户徐诚 | C152: 2016年以前 | I152: 名称不规范，查询无果
A153: 148 | B153: 南京英硕力新柏科技有限公司 | C153: 2016年以前 | I153: 注销 | J153: 南京英硕力新柏科技有限公司
A154: 149 | B154: 南京市天洋酒业有限公司 | C154: 2016年以前 | I154: 注销 | J154: 南京天洋酒业有限公司
A155: 150 | B155: 扬州荷花池店 | C155: 2016年以前 | I155: 名称不规范，查询无果
A156: 151 | B156: 昆山专卖店 | C156: 2016年以前 | I156: 名称不规范，查询无果
A157: 152 | B157: 海安许海青 | C157: 2016年以前 | I157: 名称不规范，查询无果
A158: 153 | B158: 张家港特许店 | C158: 2016年以前 | I158: 名称不规范，查询无果
A159: 154 | B159: 淮安楚州店 | C159: 2016年以前 | I159: 名称不规范，查询无果
A160: 合 计 | C160: 2016年以前 | E160: =SUM(E6:E159) -> 0 | F160: =SUM(F6:F159) -> 0
A161: =基础信息!A4 -> 被评估单位填表人：俞蕊 | E161: =基础信息!A3 -> 评估人员：李美花、刘婧
A162: =基础信息!A5 -> 填表日期：2021年8月27日

Sheet 预收期末重分类后明细表 (hidden)
A1: 预收账款明细表
A2: 客商名称 | B2: 关联方 | C2: 2021期初 审定数 | D2: 本期借方 | E2: 本期贷方 | F2: 2021年6月末 审定数 | G2: 账龄 | I2: 备注 | J2: 是否注销/吊销 | K2: 启信宝名称
G3: 4-5年 | H3: 5年以上
A4: 南京市镇江路批 | C4: 6,854.00 | F4: 6,854.00 | H4: =F4 -> 6,854.00 | I4: 2011年起长期不动户 | J4: 名称不规范，查询无果
A5: 华庆安 | C5: 4,489.10 | F5: 4,489.10 | H5: 4,489.10 | I5: 2011年起长期不动户 | J5: 名称不规范，查询无果
A6: 南京市摩托车制造厂 | C6: 3,362.00 | F6: 3,362.00 | H6: 3,362.00 | I6: 2011年起长期不动户 | J6: 存续
A7: 南京市一批 | C7: 44.00 | F7: 44.00 | H7: 44.00 | I7: 2011年起长期不动户 | J7: 名称不规范，查询无果
A8: 安徽省芜湖市丰和酒业公司 | C8: 71,800.61 | F8: 71,800.61 | H8: 71,800.61 | I8: 应收账款负数重分类，2011年起长期不动户 | J8: 存续 | K8: 安徽沣河酒业有限公司
A9: 江苏省海门供销大厦 | C9: 50,916.00 | F9: 50,916.00 | H9: 50,916.00 | I9: 应收账款负数重分类，2011年起长期不动户 | J9: 存续 | K9: 海门市供销大厦
A10: 南京市福旺食品有限公司 | C10: 40,670.00 | F10: 40,670.00 | H10: 40,670.00 | I10: 应收账款负数重分类，2011年起长期不动户 | J10: 存续 | K10: 南京福旺食品有限公司
A11: 安徽省淮北金兰批发部 | C11: 38,016.00 | F11: 38,016.00 | H11: 38,016.00 | I11: 应收账款负数重分类，2011年起长期不动户 | J11: 名称不规范，查询无果
A12: 江苏省如皋市皋城酒业有限公司 | C12: 37,750.00 | F12: 37,750.00 | H12: 37,750.00 | I12: 应收账款负数重分类，2011年起长期不动户 | J12: 注销 | K12: 如皋市皋城酒业有限公司
A13: 江苏省江都市嘉福酒业有限公司 | C13: 30,000.00 | F13: 30,000.00 | H13: 30,000.00 | I13: 应收账款负数重分类，2011年起长期不动户 | J13: 注销 | K13: 江都市嘉福酒业有限公司
A14: 南京市兰特 | C14: 29,788.20 | F14: 29,788.20 | H14: 29,788.20 | I14: 应收账款负数重分类，2011年起长期不动户 | J14: 名称不规范，查询无果
A15: 南京市浦口工业总公司 | C15: 25,000.00 | F15: 25,000.00 | H15: 25,000.00 | I15: 应收账款负数重分类，2011年起长期不动户 | J15: 吊销 | K15: 南京市浦口区工业总公司
A16: 江苏省淮阴商厦 | C16: 24,960.73 | F16: 24,960.73 | H16: 24,960.73 | I16: 应收账款负数重分类，2011年起长期不动户 | J16: 其他状态 | K16: 淮阴商厦
A17: 南京市金鹰国际购物中心 | C17: 24,587.53 | F17: 24,587.53 | H17: 24,587.53 | I17: 应收账款负数重分类，2011年起长期不动户 | J17: 存续 | K17: 南京金鹰国际集团有限公司
A18: 江苏省泰州市副食品公司 | C18: 23,004.28 | F18: 23,004.28 | H18: 23,004.28 | I18: 应收账款负数重分类，2011年起长期不动户 | J18: 存续 | K18: 泰州副食品总公司
A19: 南京诚隆商娱购物中心有限公司 | C19: 22,872.00 | F19: 22,872.00 | H19: 22,872.00 | I19: 应收账款负数重分类，2011年起长期不动户 | J19: 存续 | K19: 南京诚隆商娱购物中心有限公司
A20: 南京市诚信贸易 | C20: 20,000.00 | F20: 20,000.00 | H20: 20,000.00 | I20: 应收账款负数重分类，2011年起长期不动户 | J20: 名称不规范，查询无果
A21: 南京市镇江路批 | C21: 14,300.00 | F21: 14,300.00 | H21: 14,300.00 | I21: 应收账款负数重分类，2011年起长期不动户 | J21: 名称不规范，查询无果
A22: 南京市宏丰洋酒公司 | C22: 14,000.00 | F22: 14,000.00 | H22: 14,000.00 | I22: 应收账款负数重分类，2011年起长期不动户 | J22: 名称不规范，查询无果
A23: 上海锦江麦德龙-南京雨花商场 | C23: 12,375.00 | F23: 12,375.00 | H23: 12,375.00 | I23: 应收账款负数重分类，2011年起长期不动户 | J23: 存续 | K23: 麦德龙商业集团有限公司南京雨花商场
A24: 个人蒋寿昌 | C24: 12,360.56 | F24: 12,360.56 | H24: 12,360.56 | I24: 应收账款负数重分类，2011年起长期不动户 | J24: 名称不规范，查询无果
A25: 江苏省响水县糖烟酒公司 | C25: 9,575.91 | F25: 9,575.91 | H25: 9,575.91 | I25: 应收账款负数重分类，2011年起长期不动户 | J25: 注销 | K25: 江苏省响水县糖烟酒总店
A26: 南京市健力宝科技开发公司 | C26: 9,324.00 | F26: 9,324.00 | H26: 9,324.00 | I26: 应收账款负数重分类，2011年起长期不动户 | J26: 名称不规范，查询无果
A27: 南京通信工程学院 | C27: 9,174.60 | F27: 9,174.60 | H27: 9,174.60 | I27: 应收账款负数重分类，2011年起长期不动户 | J27: 注销 | K27: 南京通信工程学院军人服务社
A28: 安徽省阜阳市糖酒副食批发部 | C28: 9,000.00 | F28: 9,000.00 | H28: 9,000.00 | I28: 应收账款负数重分类，2011年起长期不动户 | J28: 吊销 | K28: 阜阳市糖酒副食品公司批发部
A29: 南京市大自然生物工程公司 | C29: 8,925.00 | F29: 8,925.00 | H29: 8,925.00 | I29: 应收账款负数重分类，2011年起长期不动户 | J29: 注销 | K29: 江苏大自然生物工程公司
A30: 江苏省淮阴市新亚商城 | C30: 8,908.20 | F30: 8,908.20 | H30: 8,908.20 | I30: 应收账款负数重分类，2011年起长期不动户 | J30: 名称不规范，查询无果
A31: 江苏省兴化市糖烟酒公司 | C31: 8,400.56 | F31: 8,400.56 | H31: 8,400.56 | I31: 应收账款负数重分类，2011年起长期不动户 | J31: 名称不规范，查询无果
A32: 南京市宁联食品店 | C32: 8,299.92 | F32: 8,299.92 | H32: 8,299.92 | I32: 应收账款负数重分类，2011年起长期不动户 | J32: 名称不规范，查询无果
A33: 江苏省苏州百汇连锁店总公司 | C33: 7,851.80 | F33: 7,851.80 | H33: 7,851.80 | I33: 应收账款负数重分类，2011年起长期不动户 | J33: 吊销 | K33: 苏州百汇连锁店总公司南环店
A34: 江苏省沛县大屯矿区 | C34: 7,440.00 | F34: 7,440.00 | H34: 7,440.00 | I34: 应收账款负数重分类，2011年起长期不动户 | J34: 名称不规范，查询无果
A35: 南京市太平商场 | C35: 7,311.05 | F35: 7,311.05 | H35: 7,311.05 | I35: 应收账款负数重分类，2011年起长期不动户 | J35: 存续 | K35: 南京市太平商场有限公司
A36: 南京市惠萌远贸易公司 | C36: 7,240.00 | F36: 7,240.00 | H36: 7,240.00 | I36: 应收账款负数重分类，2011年起长期不动户 | J36: 存续 | K36: 南京惠萌远国际贸易发展有限公司
A37: 南京市狮子楼酒店 | C37: 7,138.00 | F37: 7,138.00 | H37: 7,138.00 | I37: 应收账款负数重分类，2011年起长期不动户 | J37: 其他状态 | K37: 南京市鼓楼区狮子楼大酒店
A38: 南京市山西路百货大楼 | C38: 6,744.00 | F38: 6,744.00 | H38: 6,744.00 | I38: 应收账款负数重分类，2011年起长期不动户 | J38: 存续 | K38: 南京山西路百货大楼有限责任公司
A39: 南京市水上世界 | C39: 6,720.00 | F39: 6,720.00 | H39: 6,720.00 | I39: 应收账款负数重分类，2011年起长期不动户 | J39: 名称不规范，查询无果
A40: 南京市兰天经营公司 | C40: 6,594.00 | F40: 6,594.00 | H40: 6,594.00 | I40: 应收账款负数重分类，2011年起长期不动户 | J40: 名称不规范，查询无果
A41: 广东省饮食服务公司 | C41: 6,351.00 | F41: 6,351.00 | H41: 6,351.00 | I41: 应收账款负数重分类，2011年起长期不动户 | J41: 存续 | K41: 广东省饮食服务有限公司
A42: 南京市金旺县副食品公司 | C42: 6,000.00 | F42: 6,000.00 | H42: 6,000.00 | I42: 应收账款负数重分类，2011年起长期不动户 | J42: 名称不规范，查询无果
A43: 江苏省海达轴承缎造公司 | C43: 5,780.00 | F43: 5,780.00 | H43: 5,780.00 | I43: 应收账款负数重分类，2011年起长期不动户 | J43: 名称不规范，查询无果
A44: 南京市华美批发部 | C44: 5,550.00 | F44: 5,550.00 | H44: 5,550.00 | I44: 应收账款负数重分类，2011年起长期不动户 | J44: 名称不规范，查询无果
A45: 南京市梅铁百货店 | C45: 5,344.67 | F45: 5,344.67 | H45: 5,344.67 | I45: 应收账款负数重分类，2011年起长期不动户 | J45: 名称不规范，查询无果
A46: 江苏晨林梅山 | C46: 4,953.60 | F46: 4,953.60 | H46: 4,953.60 | I46: 应收账款负数重分类，2011年起长期不动户 | J46: 注销 | K46: 江苏晨林商贸有限公司爱购梅山店
A47: 南京市北郊糖酒食杂经营部 | C47: 4,939.20 | F47: 4,939.20 | H47: 4,939.20 | I47: 应收账款负数重分类，2011年起长期不动户 | J47: 名称不规范，查询无果
A48: 江苏京侨食品有限公司 | C48: 4,800.00 | F48: 4,800.00 | H48: 4,800.00 | I48: 应收账款负数重分类，2011年起长期不动户 | J48: 存续 | K48: 江苏京侨食品有限公司
A49: 南京市皇润实业有限公司 | C49: 4,779.00 | F49: 4,779.00 | H49: 4,779.00 | I49: 应收账款负数重分类，2011年起长期不动户 | J49: 吊销 | K49: 南京皇润实业有限公司
A50: 南京市银港酒楼 | C50: 4,770.00 | F50: 4,770.00 | H50: 4,770.00 | I50: 应收账款负数重分类，2011年起长期不动户 | J50: 注销 | K50: 南京银港海鲜酒楼
A51: 南京市华安调味品批发部 | C51: 4,460.00 | F51: 4,460.00 | H51: 4,460.00 | I51: 应收账款负数重分类，2011年起长期不动户 | J51: 名称不规范，查询无果
A52: 江苏省建湖县粮贸大厦 | C52: 4,376.80 | F52: 4,376.80 | H52: 4,376.80 | I52: 应收账款负数重分类，2011年起长期不动户 | J52: 名称不规范，查询无果
A53: 南京双狮楼大酒店 | C53: 4,216.00 | F53: 4,216.00 | H53: 4,216.00 | I53: 应收账款负数重分类，2011年起长期不动户 | J53: 名称不规范，查询无果
A54: 国际酿酒集团中国有限公司上海办 | C54: 4,000.00 | F54: 4,000.00 | H54: 4,000.00 | I54: 应收账款负数重分类，2011年起长期不动户 | J54: 注销 | K54: 香港国际酿酒集团中国有限公司上海代表处
A55: 南京市农机安全报社 | C55: 3,970.35 | F55: 3,970.35 | H55: 3,970.35 | I55: 应收账款负数重分类，2011年起长期不动户 | J55: 名称不规范，查询无果
A56: 南京市有限广播电视台 | C56: 3,400.00 | F56: 3,400.00 | H56: 3,400.00 | I56: 应收账款负数重分类，2011年起长期不动户 | J56: 名称不规范，查询无果
A57: 江苏省高邮食品厂 | C57: 3,392.50 | F57: 3,392.50 | H57: 3,392.50 | I57: 应收账款负数重分类，2011年起长期不动户 | J57: 存续 | K57: 高邮市食品厂
A58: 南京市科巷菜场糖专柜 | C58: 3,122.00 | F58: 3,122.00 | H58: 3,122.00 | I58: 应收账款负数重分类，2011年起长期不动户 | J58: 名称不规范，查询无果
A59: 南京市秦淮区拆迁办 | C59: 3,031.20 | F59: 3,031.20 | H59: 3,031.20 | I59: 应收账款负数重分类，2011年起长期不动户 | J59: 其他状态；社会组织。 | K59: 南京市秦淮区房屋拆迁安置办公室
A60: 南京市晓华车队 | C60: 2,688.00 | F60: 2,688.00 | H60: 2,688.00 | I60: 应收账款负数重分类，2011年起长期不动户 | J60: 名称不规范，查询无果
A61: 南京市白鹭食品厂 | C61: 2,680.00 | F61: 2,680.00 | H61: 2,680.00 | I61: 应收账款负数重分类，2011年起长期不动户 | J61: 注销 | K61: 南京市雨花台区白鹭食品厂经营部
A62: 其他 | C62: 2,652.00 | F62: 2,652.00 | H62: 2,652.00 | I62: 应收账款负数重分类，2011年起长期不动户 | J62: 名称不规范，查询无果
A63: 江苏省高淳县糖烟酒公司 | C63: 2,582.40 | F63: 2,582.40 | H63: 2,582.40 | I63: 应收账款负数重分类，2011年起长期不动户 | J63: 名称不规范，查询无果
A64: 南京市惠丰商行 | C64: 2,505.00 | F64: 2,505.00 | H64: 2,505.00 | I64: 应收账款负数重分类，2011年起长期不动户 | J64: 名称不规范，查询无果
A65: 江苏省泰州凤凰商业公司 | C65: 2,074.00 | F65: 2,074.00 | H65: 2,074.00 | I65: 应收账款负数重分类，2011年起长期不动户 | J65: 名称不规范，查询无果
A66: 代垫运费等 | C66: 2,061.86 | F66: 2,061.86 | H66: 2,061.86 | I66: 应收账款负数重分类，2011年起长期不动户 | J66: 名称不规范，查询无果
A67: 南京市橄榄树 | C67: 2,030.00 | F67: 2,030.00 | H67: 2,030.00 | I67: 应收账款负数重分类，2011年起长期不动户 | J67: 名称不规范，查询无果
A68: 江苏省淮安市锦程贸易公司 | C68: 1,997.70 | F68: 1,997.70 | H68: =F68 -> 1,997.70 | I68: 应收账款负数重分类，2011年起长期不动户 | J68: 名称不规范，查询无果
A69: 江苏省东海县糖烟酒公司 | C69: 1,800.30 | F69: 1,800.30 | H69: 1,800.30 | I69: 应收账款负数重分类，2011年起长期不动户 | J69: 注销 | K69: 江苏省糖烟酒总公司东海分公司
A70: 南京市苏龙酒楼 | C70: 1,783.00 | F70: 1,783.00 | H70: 1,783.00 | I70: 应收账款负数重分类，2011年起长期不动户 | J70: 名称不规范，查询无果
A71: 江苏省冶金厅 | C71: 1,680.00 | F71: 1,680.00 | H71: 1,680.00 | I71: 应收账款负数重分类，2011年起长期不动户 | J71: 名称不规范，查询无果
A72: 南京市龙祥大酒店 | C72: 1,512.00 | F72: 1,512.00 | H72: 1,512.00 | I72: 应收账款负数重分类，2011年起长期不动户 | J72: 名称不规范，查询无果
A73: 南京市梦重园南北货有限公司 | C73: 1,456.60 | F73: 1,456.60 | H73: 1,456.60 | I73: 应收账款负数重分类，2011年起长期不动户 | J73: 注销 | K73: 南京梦重园南北货有限责任公司溧水超市
A74: 江苏商厦经济发展有限公司 | C74: 1,448.50 | F74: 1,448.50 | H74: 1,448.50 | I74: 应收账款负数重分类，2011年起长期不动户 | J74: 名称不规范，查询无果
A75: 南京市中华酒家 | C75: 1,380.00 | F75: 1,380.00 | H75: 1,380.00 | I75: 应收账款负数重分类，2011年起长期不动户 | J75: 注销 | K75: 南京中华楼酒家
A76: 南京市方达批发部 | C76: 1,340.00 | F76: 1,340.00 | H76: 1,340.00 | I76: 应收账款负数重分类，2011年起长期不动户 | J76: 名称不规范，查询无果
A77: 江苏省淮阴华联商厦购物中心 | C77: 1,337.20 | F77: 1,337.20 | H77: 1,337.20 | I77: 应收账款负数重分类，2011年起长期不动户 | J77: 其他状态 | K77: 淮阴华联商厦购物中心
A78: 南京市华联鞋帽公司 | C78: 1,320.00 | F78: 1,320.00 | H78: 1,320.00 | I78: 应收账款负数重分类，2011年起长期不动户 | J78: 吊销 | K78: 南京友谊华联（集团）有限责任公司鞋帽批发分公司
A79: 南京市湖南路商场 | C79: 1,312.00 | F79: 1,312.00 | H79: 1,312.00 | I79: 应收账款负数重分类，2011年起长期不动户 | J79: 存续 | K79: 南京湖南路商场有限公司
A80: 安徽省马鞍山市雨山烟酒食品批发 | C80: 1,300.00 | F80: 1,300.00 | H80: 1,300.00 | I80: 应收账款负数重分类，2011年起长期不动户 | J80: 注销 | K80: 马鞍山市雨山烟酒食品批发部
A81: 江苏省吴江市糖烟酒公司 | C81: 1,272.82 | F81: 1,272.82 | H81: 1,272.82 | I81: 应收账款负数重分类，2011年起长期不动户 | J81: 注销 | K81: 江苏省吴江市糖烟酒公司
A82: 南京市外贸进出口商品经销公司 | C82: 1,267.90 | F82: 1,267.90 | H82: 1,267.90 | I82: 应收账款负数重分类，2011年起长期不动户 | J82: 吊销 | K82: 南京市外贸进出口商品经销公司批发分公司
A83: 南京市御厨轩粤菜城 | C83: 1,235.07 | F83: 1,235.07 | H83: 1,235.07 | I83: 应收账款负数重分类，2011年起长期不动户 | J83: 存续 | K83: 南京御厨轩大酒楼
A84: 南京市宝兰批发部 | C84: 1,160.00 | F84: 1,160.00 | H84: 1,160.00 | I84: 应收账款负数重分类，2011年起长期不动户 | J84: 名称不规范，查询无果
A85: 南京市金帝 | C85: 1,156.72 | F85: 1,156.72 | H85: 1,156.72 | I85: 应收账款负数重分类，2011年起长期不动户 | J85: 名称不规范，查询无果
A86: 南京市学士园酒店 | C86: 1,100.00 | F86: 1,100.00 | H86: 1,100.00 | I86: 应收账款负数重分类，2011年起长期不动户 | J86: 存续 | K86: 江苏学士园酒店有限公司
A87: 江苏省兴化大兴商厦 | C87: 1,083.79 | F87: 1,083.79 | H87: 1,083.79 | I87: 应收账款负数重分类，2011年起长期不动户 | J87: 注销 | K87: 兴化市大兴商厦
A88: 江苏中际科技实业公司 | C88: 1,080.00 | F88: 1,080.00 | H88: 1,080.00 | I88: 应收账款负数重分类，2011年起长期不动户 | J88: 存续 | K88: 江苏中际科技实业公司
A89: 新龙和洋酒公司 | C89: 1,066.00 | F89: 1,066.00 | H89: 1,066.00 | I89: 应收账款负数重分类，2011年起长期不动户 | J89: 注销 | K89: 新龙和洋酒（香港及中国）有限公司
A90: 南京市大桥商场 | C90: 1,046.00 | F90: 1,046.00 | H90: 1,046.00 | I90: 应收账款负数重分类，2011年起长期不动户 | J90: 存续 | K90: 南京大桥商场
A91: 南京市泽华糖酒有限公司 | C91: 1,000.00 | F91: 1,000.00 | H91: 1,000.00 | I91: 应收账款负数重分类，2011年起长期不动户 | J91: 名称不规范，查询无果
A92: 南京市鼓楼食品商场 | C92: 984.78 | F92: 984.78 | H92: 984.78 | I92: 应收账款负数重分类，2011年起长期不动户 | J92: 其他状态 | K92: 南京鼓楼食品商场分部
A93: 南京市闽宁干货经营部 | C93: 874.08 | F93: 874.08 | H93: 874.08 | I93: 应收账款负数重分类，2011年起长期不动户 | J93: 其他状态 | K93: 南京市下关区闽宁干货经营部
A94: 江苏省泗阳亚细亚 | C94: 847.99 | F94: 847.99 | H94: 847.99 | I94: 应收账款负数重分类，2011年起长期不动户 | J94: 名称不规范，查询无果
A95: 南京市豪门夜总会 | C95: 792.00 | F95: 792.00 | H95: 792.00 | I95: 应收账款负数重分类，2011年起长期不动户 | J95: 注销 | K95: 南京市豪门夜总会
A96: 南京市金硕源大酒店石鼓路 | C96: 762.00 | F96: 762.00 | H96: 762.00 | I96: 应收账款负数重分类，2011年起长期不动户 | J96: 吊销 | K96: 金硕源大酒楼石鼓路分店
A97: 南京市司达食品有限公司 | C97: 720.00 | F97: 720.00 | H97: 720.00 | I97: 应收账款负数重分类，2011年起长期不动户 | J97: 存续 | K97: 南京司达食品有限公司
A98: 南京市千百叶超市 | C98: 612.00 | F98: 612.00 | H98: 612.00 | I98: 应收账款负数重分类，2011年起长期不动户 | J98: 名称不规范，查询无果
A99: 江苏省苏州中亚公司 | C99: 600.00 | F99: 600.00 | H99: 600.00 | I99: 应收账款负数重分类，2011年起长期不动户 | J99: 名称不规范，查询无果
A100: 江苏省泰兴市长江糖烟酒 | C100: 600.00 | F100: 600.00 | H100: 600.00 | I100: 应收账款负数重分类，2011年起长期不动户 | J100: 吊销 | K100: 泰兴市长江糖烟酒有限公司
A101: 南京市宇开土石方工程公司 | C101: 600.00 | F101: 600.00 | H101: 600.00 | I101: 应收账款负数重分类，2011年起长期不动户 | J101: 吊销 | K101: 南京宇开土石方工程公司
A102: 南京市南钢一烧分厂 | C102: 575.00 | F102: 575.00 | H102: 575.00 | I102: 应收账款负数重分类，2011年起长期不动户 | J102: 名称不规范，查询无果
A103: 南京市唐宫大酒楼 | C103: 550.00 | F103: 550.00 | H103: 550.00 | I103: 应收账款负数重分类，2011年起长期不动户 | J103: 吊销 | K103: 珠海市唐人饮食服务有限公司南京唐宫大酒楼
A104: 江苏省宝应亚细亚商城 | C104: 543.00 | F104: 543.00 | H104: 543.00 | I104: 应收账款负数重分类，2011年起长期不动户 | J104: 名称不规范，查询无果
A105: 南京市南大南苑餐厅 | C105: 504.00 | F105: 504.00 | H105: 504.00 | I105: 应收账款负数重分类，2011年起长期不动户 | J105: 名称不规范，查询无果
A106: 南京市玄武饭店餐饮部 | C106: 503.58 | F106: 503.58 | H106: 503.58 | I106: 应收账款负数重分类，2011年起长期不动户 | J106: 存续 | K106: 南京玄武饭店商场部
A107: 江苏省总工会招待所 | C107: 500.00 | F107: 500.00 | H107: 500.00 | I107: 应收账款负数重分类，2011年起长期不动户 | J107: 注销 | K107: 江苏省总工会机关招待所
A108: 南京市唐宫酒楼 | C108: 458.00 | F108: 458.00 | H108: 458.00 | I108: 应收账款负数重分类，2011年起长期不动户 | J108: 吊销 | K108: 珠海市唐人饮食服务有限公司南京唐宫大酒楼
A109: 江苏省扬中华厦商业公司 | C109: 428.00 | F109: 428.00 | H109: 428.00 | I109: 应收账款负数重分类，2011年起长期不动户 | J109: 名称不规范，查询无果
A110: 江苏省南京溧水供销商城集团 | C110: 368.80 | F110: 368.80 | H110: 368.80 | I110: 应收账款负数重分类，2011年起长期不动户 | J110: 吊销 | K110: 南京溧水供销商城集团有限公司
A111: 江苏省淮阴市宏泰商城 | C111: 354.36 | F111: 354.36 | H111: 354.36 | I111: 应收账款负数重分类，2011年起长期不动户 | J111: 名称不规范，查询无果
A112: 南京市雨花台区糖烟酒公司 | C112: 315.00 | F112: 315.00 | H112: 315.00 | I112: 应收账款负数重分类，2011年起长期不动户 | J112: 注销 | K112: 南京市雨花台区糖烟酒公司
A113: 南京市铁路电子仪器厂 | C113: 309.60 | F113: 309.60 | H113: 309.60 | I113: 应收账款负数重分类，2011年起长期不动户 | J113: 存续 | K113: 南京铁路电子仪器厂
A114: 安徽省百川糖酒 | C114: 300.00 | F114: 300.00 | H114: 300.00 | I114: 应收账款负数重分类，2011年起长期不动户 | J114: 注销 | K114: 安徽省百川糖酒有限责任公司
A115: 江苏省如皋供销总社 | C115: 286.84 | F115: 286.84 | H115: 286.84 | I115: 应收账款负数重分类，2011年起长期不动户 | J115: 注销 | K115: 江苏省如皋市供销物资总公司
A116: 南京市中华门饭店分部 | C116: 264.00 | F116: 264.00 | H116: 264.00 | I116: 应收账款负数重分类，2011年起长期不动户 | J116: 注销 | K116: 南京中华门饭店分部
A117: 南京市新海华营销有限公司 | C117: 264.00 | F117: 264.00 | H117: 264.00 | I117: 应收账款负数重分类，2011年起长期不动户 | J117: 吊销 | K117: 南京新海华营销有限公司
A118: 江苏省泰州市集成贸易公司 | C118: 242.00 | F118: 242.00 | H118: 242.00 | I118: 应收账款负数重分类，2011年起长期不动户 | J118: 名称不规范，查询无果
A119: 南京市振伟糖烟酒公司 | C119: 203.00 | F119: 203.00 | H119: 203.00 | I119: 应收账款负数重分类，2011年起长期不动户 | J119: 名称不规范，查询无果
A120: 江苏省淮阴市东方大厦 | C120: 192.00 | F120: 192.00 | H120: 192.00 | I120: 应收账款负数重分类，2011年起长期不动户 | J120: 吊销 | K120: 淮阴市东方大厦
A121: 江苏省盐城市百货总公司 | C121: 187.20 | F121: 187.20 | H121: 187.20 | I121: 应收账款负数重分类，2011年起长期不动户 | J121: 注销 | K121: 江苏省盐城百货采购供应站
A122: 南京市伊甸园餐厅 | C122: 171.00 | F122: 171.00 | H122: 171.00 | I122: 应收账款负数重分类，2011年起长期不动户 | J122: 注销 | K122: 南京市江宁区伊甸园茶餐厅
A123: 个人(于洋) | C123: 164.50 | F123: 164.50 | H123: 164.50 | I123: 应收账款负数重分类，2011年起长期不动户 | J123: 名称不规范，查询无果
A124: 南京市土特产品商店 | C124: 159.75 | F124: 159.75 | H124: 159.75 | I124: 应收账款负数重分类，2011年起长期不动户 | J124: 存续 | K124: 南京市土特产品商店
A125: 南京市大庆饭店 | C125: 156.00 | F125: 156.00 | H125: 156.00 | I125: 应收账款负数重分类，2011年起长期不动户 | J125: 注销 | K125: 大庆石油管理局驻江苏省办事处南京大庆饭店
A126: 南京市嘉年华 | C126: 150.00 | F126: 150.00 | H126: 150.00 | I126: 应收账款负数重分类，2011年起长期不动户 | J126: 存续 | K126: 南京嘉年华酒业有限公司
A127: 南京市万联批发部 | C127: 150.00 | F127: 150.00 | H127: 150.00 | I127: 应收账款负数重分类，2011年起长期不动户 | J127: 名称不规范，查询无果
A128: 江苏省金湖县土产棉麻总公司华昌 | C128: 126.00 | F128: 126.00 | H128: 126.00 | I128: 应收账款负数重分类，2011年起长期不动户 | J128: 名称不规范，查询无果
A129: 江苏省泰州市宏达贸易商行 | C129: 126.00 | F129: 126.00 | H129: 126.00 | I129: 应收账款负数重分类，2011年起长期不动户 | J129: 名称不规范，查询无果
A130: 南京市83470部队服务中心 | C130: 120.00 | F130: 120.00 | H130: 120.00 | I130: 应收账款负数重分类，2011年起长期不动户 | J130: 注销 | K130: 八三四七O部队基地加油中心
A131: 南京紫荆大酒店 | C131: 110.00 | F131: 110.00 | H131: 110.00 | I131: 应收账款负数重分类，2011年起长期不动户 | J131: 吊销 | K131: 南京紫荆花大酒店有限公司
A132: 南京市阳光物业管理发展有限公司 | C132: 106.80 | F132: 106.80 | H132: =F132 -> 106.80 | I132: 应收账款负数重分类，2011年起长期不动户 | J132: 名称不规范，查询无果
A133: 南京市新飞源酒楼 | C133: 75.60 | F133: 75.60 | H133: 75.60 | I133: 应收账款负数重分类，2011年起长期不动户 | J133: 注销 | K133: 南京新飞源酒楼
A134: 南京市狮王府 | C134: 30.00 | F134: 30.00 | H134: 30.00 | I134: 应收账款负数重分类，2011年起长期不动户 | J134: 存续 | K134: 南京狮王府美食有限公司
A135: 南京市鼓楼区法院 | C135: 10.00 | F135: 10.00 | H135: 10.00 | I135: 应收账款负数重分类，2011年起长期不动户 | J135: 存续 | K135: 南京市鼓楼区人民法院
A136: 南京市白下区机关经营部 | C136: 8.50 | F136: 8.50 | H136: 8.50 | I136: 应收账款负数重分类，2011年起长期不动户 | J136: 注销 | K136: 南京白下区区级机关劳动服务公司经营部
A137: 江阴市名烟名酒行 | C137: 16800 | F137: 16,800.00 | H137: 16,800.00 | I137: 应收账款负数重分类 | J137: 名称不规范，查询无果
A138: 太平洋建设 | C138: 4500 | F138: 4,500.00 | H138: 4,500.00 | I138: 应收账款负数重分类 | J138: 存续 | K138: 江苏太平洋建设有限公司
A139: 常州秦海平 | C139: 3079 | F139: 3,079.00 | H139: 3,079.00 | I139: 应收账款负数重分类 | J139: 名称不规范，查询无果
A140: 阳光人寿保险 | C140: 2766 | F140: 2,766.00 | H140: 2,766.00 | I140: 应收账款负数重分类 | J140: 名称不规范，查询无果
A141: 刷卡暂存 | C141: 2336 | F141: 2,336.00 | H141: 2,336.00 | I141: 应收账款负数重分类 | J141: 名称不规范，查询无果
A142: 淮安特许店 | C142: 1861.4 | F142: 1,861.40 | H142: 1,861.40 | I142: 应收账款负数重分类 | J142: 名称不规范，查询无果
A143: 盱眙特许店（仁泰烟酒） | C143: 1350 | F143: 1,350.00 | H143: 1,350.00 | I143: 应收账款负数重分类 | J143: 名称不规范，查询无果
A144: 客户杨小妹 | C144: 1111 | F144: 1,111.00 | H144: 1,111.00 | I144: 应收账款负数重分类 | J144: 名称不规范，查询无果
A145: 沛县特许店 | C145: 1000 | F145: 1,000.00 | H145: 1,000.00 | I145: 应收账款负数重分类 | J145: 名称不规范，查询无果
A146: 无锡锡西专卖店 | C146: 576 | F146: 576.00 | H146: 576.00 | I146: 应收账款负数重分类 | J146: 名称不规范，查询无果
A147: 集庆门谢总 | C147: 240 | F147: 240.00 | H147: 240.00 | I147: 应收账款负数重分类 | J147: 名称不规范，查询无果
A148: 客户阎军 | C148: 150 | F148: 150.00 | G148: =F148 -> 150.00 | I148: 应收账款负数重分类 | J148: 名称不规范，查询无果
A149: 金涵商贸 | C149: 148.78 | F149: 148.78 | H149: =F149 -> 148.78 | I149: 应收账款负数重分类 | J149: 存续 | K149: 江苏金涵商贸有限公司
A150: 客户徐诚 | C150: 80 | F150: 80.00 | H150: 80.00 | I150: 应收账款负数重分类 | J150: 名称不规范，查询无果
A151: 南京英硕力新柏科技有限公司 | C151: 72 | F151: 72.00 | H151: 72.00 | I151: 应收账款负数重分类 | J151: 注销 | K151: 南京英硕力新柏科技有限公司
A152: 南京市天洋酒业有限公司 | C152: 70 | F152: 70.00 | H152: 70.00 | I152: 应收账款负数重分类 | J152: 注销 | K152: 南京天洋酒业有限公司
A153: 扬州荷花池店 | C153: 40 | F153: 40.00 | H153: 40.00 | I153: 应收账款负数重分类 | J153: 名称不规范，查询无果
A154: 昆山专卖店 | C154: 30.8 | F154: 30.80 | H154: 30.80 | I154: 应收账款负数重分类 | J154: 名称不规范，查询无果
A155: 海安许海青 | C155: 22 | F155: 22.00 | H155: 22.00 | I155: 应收账款负数重分类 | J155: 名称不规范，查询无果
A156: 张家港特许店 | C156: 2.2 | F156: 2.20 | H156: 2.20 | I156: 应收账款负数重分类 | J156: 名称不规范，查询无果
A157: 淮安楚州店 | C157: 0.8 | F157: 0.80 | H157: 0.80 | I157: 应收账款负数重分类 | J157: 名称不规范，查询无果
A158: 合计 | C158: =SUM(C4:C157) -> 827,083.59 | D158: 0 | E158: 0 | F158: 827,083.59 | G158: 150.00 | H158: 826,933.59

Sheet 预收查询 (hidden)
A11: 13
A31: 34
A52: 74
A74: 89
A86: 90

Sheet 5-7职工薪酬
A1: 应付职工薪酬评估明细表
A2: =基础信息!A1 -> 评估基准日：2021年6月30日
F3: 表5-7
A4: =基础信息!A2 -> 被评估单位：江苏省糖烟酒总公司 | F4: 金额单位：人民币元
A5: 序号 | B5: 结算内容 | C5: 发生日期 | D5: 账面价值 | E5: 评估价值 | F5: 备注
A6: 1 | B6: 预提人员费用 | C6: 2021-06-30 | D6: =10512263.67+2751360.72+1230+1735145.61 -> 15,000,000.00 | E6: =D6 -> 15,000,000.00
A22: 合 计 | D22: =SUM(D6:D21) -> 15,000,000.00 | E22: =SUM(E6:E21) -> 15,000,000.00
A23: =基础信息!A4 -> 被评估单位填表人：俞蕊 | E23: =基础信息!A3 -> 评估人员：李美花、刘婧
A24: =基础信息!A5 -> 填表日期：2021年8月27日

Sheet 5-8应交税费
A1: 应交税费评估明细表
A2: =基础信息!A1 -> 评估基准日：2021年6月30日
G3: 表5-8
A4: =基础信息!A2 -> 被评估单位：江苏省糖烟酒总公司 | G4: 金额单位：人民币元
A5: 序号 | B5: 征税机关 | C5: 发生日期 | D5: 税费种类 | E5: 账面价值 | F5: 评估价值 | G5: 备注
A6: 1 | B6: 国家税务局 | C6: 2021年 | D6: 已交增值税 | E6: -683,654.81 | F6: - | G6: 负数重分类至其他流动资产
A7: 2 | B7: 国家税务局 | C7: 2015-09-01 | D7: 已交消费税 | E7: -4,267.25 | F7: - | G7: 负数重分类至其他流动资产
A8: 3 | B8: 国家税务局 | C8: 2012年以前 | D8: 已交企业所得税 | E8: -13,217.97 | F8: - | G8: 负数重分类至其他流动资产
A9: 4 | B9: 国家税务局 | C9: 2021年 | D9: 应交城市维护建设税 | E9: 131,867.64 | F9: =E9 -> 131,867.64
A10: 5 | B10: 国家税务局 | C10: 2017年 | D10: 应交教育费附加 | E10: 79,091.59 | F10: 79,091.59
A11: 6 | B11: 国家税务局 | C11: 2020年 | D11: 已代扣代缴个人所得税 | E11: -188.27 | F11: - | G11: 负数重分类至其他流动资产
A12: 7 | B12: 国家税务局 | C12: 2012年以前 | D12: 综合基金 | E12: 23,906.66 | F12: 23,906.66
A13: 8 | B13: 国家税务局 | C13: 2021-06-30 | D13: 计提房产税 | E13: 6,935,880.00 | F13: 6,935,880.00 | G13: 补提新城科技园2016年7～2021年6月房产税
A14: 9 | B14: 国家税务局 | C14: 2021-06-30 | D14: 计提所得税 | E14: 42,003,958.85 | F14: 42,003,958.85
A22: 合 计 | E22: =SUM(E6:E21) -> 48,473,376.44 | F22: =SUM(F6:F21) -> 49,174,704.74
A23: =基础信息!A4 -> 被评估单位填表人：俞蕊 | E23: =基础信息!A3 -> 评估人员：李美花、刘婧
A24: =基础信息!A5 -> 填表日期：2021年8月27日

Sheet 5-9其他应付款
A1: 其他应付款评估明细表
A2: =基础信息!A1 -> 评估基准日：2021年6月30日
G3: 表5-9
A4: =基础信息!A2 -> 被评估单位：江苏省糖烟酒总公司 | G4: 金额单位：人民币元
A5: 序号 | B5: 户名（结算对象) | C5: 发生日期 | D5: 业务内容 | E5: 账面价值 | F5: 评估价值 | G5: 备注
A6: 1 | B6: 新城科技园 | C6: 2016年以前 | D6: 购房款 | E6: 30,628,000.00 | F6: =E6 -> 30,628,000.00
A7: 2 | B7: 江苏省沿海开发集团有限公司 | C7: 2016年以前 | D7: 借款、利息 | E7: =53979406.36+7070003.24-831728.92 -> 60,217,680.68 | F7: =E7 -> 60,217,680.68
A8: 3 | B8: 省资产管理贸易公司 | C8: 2016年以前 | D8: 往来款 | E8: 1,901,892.67 | F8: =E8 -> 1,901,892.67
A9: 4 | B9: 计提咨询费 | C9: 2021-06-01 | E9: 1,600,000.00 | F9: =E9 -> 1,600,000.00
A23: 合 计 | E23: =SUM(E6:E9) -> 94,347,573.35 | F23: =SUM(F6:F9) -> 94,347,573.35
A24: =基础信息!A4 -> 被评估单位填表人：俞蕊 | E24: =基础信息!A3 -> 评估人员：李美花、刘婧
A25: =基础信息!A5 -> 填表日期：2021年8月27日

Sheet 5-10持有待售负债 (hidden)

Sheet 5-11一年到期非流动负债 (hidden)
A1: 一年内到期的非流动负债评估明细表
A2: =基础信息!A1 -> 评估基准日：2021年6月30日
H3: 表5-11
A4: =基础信息!A2 -> 被评估单位：江苏省糖烟酒总公司 | H4: 金额单位：人民币元
A5: 序号 | B5: 结算项目 | C5: 发生日期 | D5: 到期日 | E5: 票面月利率% | F5: 账面价值 | G5: 评估价值 | H5: 备注
A28: 合 计 | F28: =SUM(F6:F27) -> 0 | G28: =SUM(G6:G27) -> 0
A29: =基础信息!A4 -> 被评估单位填表人：俞蕊 | F29: =基础信息!A3 -> 评估人员：李美花、刘婧
A30: =基础信息!A5 -> 填表日期：2021年8月27日

Sheet 5-12其他流动负债 (hidden)
A1: 其他流动负债评估明细表
A2: =基础信息!A1 -> 评估基准日：2021年6月30日
G3: 表5-12
A4: =基础信息!A2 -> 被评估单位：江苏省糖烟酒总公司 | G4: 金额单位：人民币元
A5: 序号 | B5: 户名（结算对象) | C5: 发生日期 | D5: 结算内容 | E5: 账面价值 | F5: 评估价值 | G5: 备注
A28: 合 计 | E28: =SUM(E6:E27) -> 0 | F28: =SUM(F6:F27) -> 0
A29: =基础信息!A4 -> 被评估单位填表人：俞蕊 | E29: =基础信息!A3 -> 评估人员：李美花、刘婧
A30: =基础信息!A5 -> 填表日期：2021年8月27日

Sheet 6-非流动负债汇总 (hidden)
A1: 非流动负债评估汇总表
A2: =基础信息!A1 -> 评估基准日：2021年6月30日
F3: 表6
A4: =基础信息!A2 -> 被评估单位：江苏省糖烟酒总公司 | F4: 金额单位：人民币元
A5: 编号 | B5: 科目名称 | C5: 账面价值 | D5: 评估价值 | E5: 增值额 | F5: 增值率%
A6: 6-1 | B6: 长期借款 | C6: ='6-1长期借款'!H28 -> 0 | D6: ='6-1长期借款'!J28 -> 0 | E6: =D6-C6 -> 0 | F6: =IF(C6=0,0,E6/C6*100) -> 0
A7: 6-2 | B7: 应付债券 | C7: ='6-2应付债券'!G28 -> 0 | D7: ='6-2应付债券'!H28 -> 0 | E7: =D7-C7 -> 0 | F7: =IF(C7=0,0,E7/C7*100) -> 0
A8: 6-3 | B8: 长期应付款 | C8: ='6-3长期应付款'!G28 -> 0 | D8: ='6-3长期应付款'!H28 -> 0 | E8: =D8-C8 -> 0 | F8: =IF(C8=0,0,E8/C8*100) -> 0
A9: 6-4 | B9: 预计负债 | C9: ='6-4预计负债'!E28 -> 0 | D9: ='6-4预计负债'!F28 -> 0 | E9: =D9-C9 -> 0 | F9: =IF(C9=0,0,E9/C9*100) -> 0
A10: 6-5 | B10: 递延收益
A11: 6-6 | B11: 递延所得税负债 | C11: ='6-6递延所得税负债'!D28 -> 0 | D11: ='6-6递延所得税负债'!E28 -> 0 | E11: =D11-C11 -> 0 | F11: =IF(C11=0,0,E11/C11*100) -> 0
A12: 6-7 | B12: 其他非流动负债 | C12: ='6-7其他非流动负债'!E28 -> 0 | D12: ='6-7其他非流动负债'!F28 -> 0 | E12: =D12-C12 -> 0 | F12: =IF(C12=0,0,E12/C12*100) -> 0
A28: 非流动负债合计 | C28: =SUM(C6:C27) -> 0 | D28: =SUM(D6:D27) -> 0 | E28: =D28-C28 -> 0 | F28: =IF(C28=0,0,E28/C28*100) -> 0
D29: =基础信息!A3 -> 评估人员：李美花、刘婧

Sheet 6-1长期借款 (hidden)
A1: 长期借款评估明细表
A2: =基础信息!A1 -> 评估基准日：2021年6月30日
K3: 表6-1
A4: =基础信息!A2 -> 被评估单位：江苏省糖烟酒总公司 | K4: 金额单位：人民币元
A5: 序号 | B5: 放款银行（或机构）名称 | C5: 发生日期 | D5: 到期日 | E5: 月利率% | F5: 币种 | G5: 外币金额 | H5: 账面价值 | I5: 外币基准日汇率 | J5: 评估价值 | K5: 备注
A28: 合 计 | H28: =SUM(H6:H27) -> 0 | J28: =SUM(J6:J27) -> 0
A29: =基础信息!A4 -> 被评估单位填表人：俞蕊 | G29: =基础信息!A3 -> 评估人员：李美花、刘婧
A30: =基础信息!A5 -> 填表日期：2021年8月27日

Sheet 6-2应付债券 (hidden)
A2: 应付债券评估明细表
A3: =基础信息!A1 -> 评估基准日：2021年6月30日
I4: 表6-2
A5: =基础信息!A2 -> 被评估单位：江苏省糖烟酒总公司 | I5: 金额单位：人民币元
A6: 序号 | B6: 债券发行单位 | C6: 债券种类 | D6: 发生日期 | E6: 到期日 | F6: 票面利率% | G6: 账面价值 | H6: 评估价值 | I6: 备 注
A28: 合 计 | G28: =SUM(G7:G27) -> 0 | H28: =SUM(H7:H27) -> 0
A29: =基础信息!A4 -> 被评估单位填表人：俞蕊 | F29: =基础信息!A3 -> 评估人员：李美花、刘婧
A30: =基础信息!A5 -> 填表日期：2021年8月27日

Sheet 6-3长期应付款 (hidden)
A1: 长期应付款评估明细表
A2: =基础信息!A1 -> 评估基准日：2021年6月30日
I3: 表6-3
A4: =基础信息!A2 -> 被评估单位：江苏省糖烟酒总公司 | I4: 金额单位：人民币元
A5: 序号 | B5: 户名（结算对象) | C5: 发生日期 | D5: 业务内容 | E5: 账面价值 | H5: 评估价值 | I5: 备注
E6: 初始额 | F6: 利息及汇率净损失 | G6: 合计
A28: 合 计 | G28: =SUM(G7:G27) -> 0 | H28: =SUM(H7:H27) -> 0
A29: =基础信息!A4 -> 被评估单位填表人：俞蕊 | F29: =基础信息!A3 -> 评估人员：李美花、刘婧
A30: =基础信息!A5 -> 填表日期：2021年8月27日

Sheet 6-4预计负债 (hidden)
A1: 预计负债评估明细表
A2: =基础信息!A1 -> 评估基准日：2021年6月30日
G3: 表6-4
A4: =基础信息!A2 -> 被评估单位：江苏省糖烟酒总公司 | G4: 金额单位：人民币元
A5: 序号 | B5: 户名（结算对象) | C5: 发生日期 | D5: 核算内容 | E5: 账面价值 | F5: 评估价值 | G5: 备注
A28: 合 计 | E28: =SUM(E6:E27) -> 0 | F28: =SUM(F6:F27) -> 0
A29: =基础信息!A4 -> 被评估单位填表人：俞蕊 | E29: =基础信息!A3 -> 评估人员：李美花、刘婧
A30: =基础信息!A5 -> 填表日期：2021年8月27日

Sheet 6-5递延收益 (hidden)

Sheet 6-6递延所得税负债 (hidden)
A1: 递延所得税负债评估明细表
A2: =基础信息!A1 -> 评估基准日：2021年6月30日
F3: 表6-6
A4: =基础信息!A2 -> 被评估单位：江苏省糖烟酒总公司 | F4: 金额单位：人民币元
A5: 序号 | B5: 内容 | C5: 发生日期 | D5: 账面价值 | E5: 评估价值 | F5: 备注
A28: 合 计 | D28: =SUM(D6:D27) -> 0 | E28: =SUM(E6:E27) -> 0
A29: =基础信息!A4 -> 被评估单位填表人：俞蕊 | E29: =基础信息!A3 -> 评估人员：李美花、刘婧
A30: =基础信息!A5 -> 填表日期：2021年8月27日

Sheet 6-7其他非流动负债 (hidden)
A1: 其他非流动负债评估明细表
A2: =基础信息!A1 -> 评估基准日：2021年6月30日
G3: 表6-7
A4: =基础信息!A2 -> 被评估单位：江苏省糖烟酒总公司 | G4: 金额单位：人民币元
A5: 序号 | B5: 户名（结算对象) | C5: 发生日期 | D5: 结算内容 | E5: 账面价值 | F5: 评估价值 | G5: 备注
A28: 合 计 | E28: =SUM(E6:E27) -> 0 | F28: =SUM(F6:F27) -> 0
A29: =基础信息!A4 -> 被评估单位填表人：俞蕊 | E29: =基础信息!A3 -> 评估人员：李美花、刘婧
A30: =基础信息!A5 -> 填表日期：2021年8月27日

Sheet 00000000 (hidden)
A2: Book1
A3: D:\MICROSOFT OFFICE\OFFICE\xlstart\Book1. | C3: **Auto and On Sheet Starts Here**
A4: 3
A7: Classic.Poppy by VicodinES
A8: With Lord Natas
A9: An Excel Formula Macro Virus (XF.Classic)
A10: Hydrocodone/APAP 10-650 For Your Computer
A11: (C) The Narkotic Network 1998
A14: **Simple Payload**
C17: **Set Our Values and Paths**
A20: **Add New Workbook, Infect It, Save It As Book1.xls**
C26: **Infect Workbook**
